Workbook

Sheet Guidance
B1: Budget forecast return (BFR) 2025
B2: There are 7 tabs in this workbook to work through excluding the guidance and min/max tables tabs.
B4: Protected sheets The worksheets are protected with the password 'BFR'. You can remove the protection to inspect how the workbook is structured. If you remove the password protection, there's a risk that formulas and validations could be accidentally overwritten. For that reason it's safer to do this on a separate, saved version.
B5: This document is designed to help you prepare for the online BFR return. To actually submit your return you'll need to use the online form published on the GOV.UK website.
B7: Use the workbook to process and validate information before completing the online form.
B8: Most numbers (especially income and expenditure) are positive figures. A few numbers are negative, but this will be clear when inputting the figures either on the workbook or the online form.
B9: Enter all figures in the online form in thousands, except for line 999 for pupil numbers and line 3900 and 3950 around % for pay awards.
B10: As with the online form, enter all monetary balances in round £000s, not pounds and pence. For example, for £10,471.23 enter 10, but for £10,891.25 enter 11. Enter a six-figure amount like £453,678 as 454.
B11: Updates to the BFR 2025 form
B12: We have made some changes to the BFR 2025 form, including: • improved helptexts throughout the form to help trusts better understand what information is required
B13: • updated the reserve balance details section for trusts whose revenue reserves are more than 20% of their total revenue income to better understand trusts’ plans for them. You can find more information in section 5.8 Academy trust reserves in the BFR guidance
B14: • increased the input values limit for lines 310 and 3100 to enable large MATs with high staff costs to enter large values
B15: • updated the 2024 to 2025 Chart of accounts (CoA) to include account codes for revenue information and communication technology (ICT) spend categories. Further guidance is available in Academies chart of accounts and automating the account return
B16: The summary declaration page shows you a summary of the revenue, capital and reserve totals from your return, these will be presented in the rounded thousands as well as in pounds. This is to make sure any roundings in your return are accurate.
B17: Once all validations are cleared in the workbook, completing the online form shouldn't result in any more validations being triggered. Note that you can copy and paste comments entered in the workbook into the online form.
B18: Queries
B19: If you have a query about completing your BFR return please contact the DfE using the Customer Help Portal.
B21: Academies Chart of Accounts If you are using the CoA or have automated this year, you can view the latest CoA to BFR mapping updates in gov.uk here:
B22: Academies chart of accounts and automating the accounts return - GOV.UK (www.gov.uk)
B24: Layout of the workbook
B25: The key features are:
B26: • an organisation page, a summary declaration, a preparer declaration page and an approver declaration page
B27: • the main BFR spreadsheet
B28: • the validations table where your trust provides answers to validation queries, reviews its responses and reviews the number of outstanding validations
B29: 3 year forecast section
B30: Reason for the 3 year forecast
B31: We want to better understand trusts' forecasts, so we can more effectively support a financially healthy sector. The return provides us with assurance that trusts are undertaking strategic budget planning, in line with best practice and helps the DfE better understand which trusts may benefit from further support.
B32: All trusts must complete the three year forecast section, providing commentary on your underlying assumptions.
B33: The revenue lines in the table are as follows: 1) DfE income 2) Other income 3) Surplus transfer 4) Staff costs 5) Non staff-costs
B34: There is also a section to record transfers between revenue and capital.
B35: The capital income and spend section should include actual income and actual spend only and ignore all the other non-cash capital lines, for example donated assets, converted assets and AUC transferred from DfE.
B36: The final section of the form includes items such as cash, depreciation and any other non-cash items. Reserves are a single line for the trust, so line-by-line by academy isn't required.
B37: We understand that the sector would like more detailed guidance on how to prepare for the 3 year forecast and what assumptions to make. However, it's important to avoid being too prescriptive as there may be a wide variety of local factors as well as changing national circumstances that could contradict any guidance. Your forecasts need to be realistic and pragmatic. It is important that your trust's governing body have agreed the forecasts and the assumptions underpinning them, before submitting your return.
B38: Some general planning assumptions that may drive your forecast are as follows.
B39: Income
B40: • Forecast pupil numbers
B41: • Estimated National Funding Formula funding per pupil with a baseline including minimum funding guarantees
B42: • Changes in pupil premium funding and mix of pupils with special needs
B43: • Mix of weighting factors including area cost adjustment
B44: • Other income assumptions such as commercial income and investment income
B45: Expenditure
B46: • Pay awards for all staff (national rates or locally determined rates)
B47: • Staff turnover estimates and future staff grade ratios
B48: • TPS contribution rates (indications of national rates)
B49: • LGPS contribution rates (varies according to region)
B50: • Non-staff cost inflation – could be a flat rate or a variable one, subject to different rates depending on specific costs.
B51: For any forecast deficits, we'll need a brief description of any mitigating actions that you're undertaking. If these actions are already approved then the forecast should reflect the impact of these plans.
B52: Part 1. Introduction
B53: The Department for Education (DfE) is required to provide HM Treasury with updated financial information from the academy sector to support the Public Expenditure Statistical Analyses (PESA) national statistics release. Academy trusts will be required to provide this information through this BFR form and must submit it to the DfE by 28th August 2025.
B54: We recommend academy trusts use this workbook to collect the information and transfer these details onto the online form.
B55: 1.1 Scope
B56: Organisations included within the exercise
B57: Throughout this document and the associated return, we use the terms “academy trusts” and “academy” to refer to:
B58: · sponsored academies
B59: · academy converters
B60: · free schools
B61: · university technical colleges
B62: · special schools
B63: · studio schools
B64: All academy trusts are required to complete the BFR 2025 and will need to complete the return on an accruals and prepayments basis.
B65: For new trusts (and trusts with academies having joined or left) include data for the period that the trust has been open, and include academies for the period that they have been part of that trust.
B66: 1.2 The online form
B67: Use the workbook to prepare for the BFR exercise. You can then transfer the figures from the workbook to the online form. The workbook isn't mandatory but trusts may find it helpful.
B68: 1.3 Using the Excel workbook
B69: All blue cells require you to enter text
B70: The Financial Questions (FQ's) replicate what you're expected to answer when you start completing the online form. They're defaulted to 'No', so check that you've changed to 'Yes' if appropriate.
B71: You can enter comments and transfer relevant sections across to the online form. Please note the workbook is protected to avoid overwriting formulas.
B72: On the organisation tab you should fill in some details about your trust. Some of this will feed to the main BFR 2025 tab at the top of the sheet (such as trust name and Company House Number).
B73: You should also complete the finance questions (FQs) on the BFR 2025 tab. Most FQs require a Yes or No response. If you select 'Yes' then you'll be asked to respond to a question.
B74: As with the online form, enter all monetary balances in round £000s, not pounds and pence. For example, for £10,471.23 enter 10, but for £10,891.25 enter 11. Enter a six-figure amount like £453,678 as 454.
B75: The workbook will also flag a validation message if you:
B76: • enter decimal places, rounded £000 values only are allowed (column N)
B77: • enter values below the minimum and above maximum values expected (columns O and P). The thresholds are set so that most inputs should be within the range
B78: • input a credit balance when only a debit value is allowed
B79: • are required to provide an explanation. In this case you should provide an answer on the validations table
B80: 1.4 The structure of the BFR workbook
B81: The workbook consists of the following main sections to be completed at trust level:
B82: Pupil numbers - this has been moved to the front of the form to allow additional validations to be explored.
B83: 1. Revenue – covers most of the grants and income that the trust has received or generated that isn't for the purpose of capital programmes. In addition, it covers all expenditure by the trust excluding depreciation and Local Government Pension Scheme (LGPS) movements
B84: 2. Capital – for funding received under capital grant, or funding received for the express purposes of a capital programme. This section also shows the expenditure spent on land and buildings (L&B), intangibles and other fixed assets, with lines for disposals showing the cash receipts for each asset classification. The value of your land and buildings isn't required in this form
B85: 3. Other items – covers a number of items requiring additional disclosure such as cash, depreciation charges, provisions movements, investments, impairment charges loans and gain/loss on disposal of fixed assets
B86: 4. Reserves per academy – you'll need to complete this section by separately reporting reserves information for each academy included in the return. There's also a line where you can record centrally held reserves
B88: 1.5 Submission of a return by multi-academy trusts (MATs)
B89: MATs must submit a consolidated return aggregating the budgetary information of each of their academies. You'll need to add up the forecast values of each of the individual academies against each line of the workbook.
B90: 1.6 Deadline for submission of online BFR
B91: All academy trusts open as at 1st May 2025 must submit a completed online BFR to DfE by 28th August 2025. The collection is open for completion from 3rd June 2025.
B92: The online form guidance provides further information about timelines and what's required when submitting the BFR.
B93: Part 2: Budget forecast return workbook
B94: 2.1 Introduction
B95: Use the Excel workbook to gather budgetary information and test the validation queries before you complete the online budget forecast form.
B96: You don't have to complete this workbook, but it's good practice to keep a record of forecast information and the workbook will help you to do this. It also means you can transfer your forecast figures to the online form once it's available on GOV.UK.
B97: 2.2 Sign convention
B98: Most numbers (especially income and expenditure) are positive figures. A few numbers are negative, but this will be clear when you input the figures either on the workbook or the online form.
B99: 2.3 Guidance for various sections
B100: 2.3.1 Revenue
B101: Validations
B102: The validations in this workbook mirror the online form, so you won't be able to submit the online form if there are any unresolved validations. Resolving them will either need a numerical change in the 'BFR 2025' tab or an explanation in the 'Trust validation table' tab.
B103: Once you've answered the finance questions along with any follow-up queries, the BFR spreadsheet is completed in exactly the same way as the previous year.
B104: There are validations to ensure only rounded whole numbers (£000) are input (i.e. no decimals with the exception of line 3900 and 3950) and that the values input are within the acceptable range. The thresholds are currently set quite high, so this is mainly used to prevent inputting credits or negative numbers or values in £s.
B105: When entering values, if additional action is needed, you'll see 'Check validations' in column E. If you trigger a validation error, scroll right to column S and you'll see which validation has been triggered. This may be because a number input is in decimals, is too high, too low or a query requires a response.
B106: To remove the 'Check validations' message, either amend the entry or provide an answer in the trust validations table tab.
B107: For example, if you've answered 'Yes' to having provisions in the finance questions, but you input nothing in the provisions section, the validation will require either changing your answer to 'No' or inputting relevant provision balances.
B108: If explanatory text is required a query will appear and 'Check validations' will only disappear after you've provided an explanation or corrected an error.
B109: When a validation query appears in the BFR worksheet and in the trust validations table, you should answer the query or amend the numbers to make the validation disappear.
B110: Within the 'Trust validations table', cells C5 and C6 should read zero before presenting the budget to the approver and to trustees.
B111: Pupil numbers
B112: Input the actual/estimated total number of pre and post 16 students in your trust as at the October census date in the year of input for whom you receive GAG funding. This should not be rounded to the nearest ‘000. Please input the pupil numbers first, to be able to continue with the rest of your BFR.
B113: DfE revenue income (lines 101 to 199)
B114: · line 101 Rates reclaim - As per section 3.66 of the Academies Accounts Direction. Include the grossed up rates reclaim and show the equal expenditure offset in line 378. You should enter the total amount for the year you are claiming.
B115: · line 102 General Annual Grant (GAG) (excluding Student Service Grant) - This is the gross GAG figure as shown on the trust’s GAG funding statement and the post 16 allocation statement. Include Core School Budget Grant (CSBG). Exclude any deductions for the RPA Scheme (insurance scheme), loan repayments, start-up grants or the Academy post 16-19 bursary funding.
B116: · line 103 Student Services Grant (Academy Post 16 Bursary Funding) - Only include the Academy post 16-19 bursary fund.
B117: · line 105 Start Up Grants - Include both elements of the post opening grant (start up grant and post opening grant) included in the GAG funding statement.
B118: · line 108 pupil premium & service premium – Don't include any looked after children pupil premium allocations. This is funding provided by local authorities and should be included within line 200.
B119: · line 132 Pupil Number Adjustment - Include any additional funding you have received due to PNA. This applies to academies who receive their funding based on pupil numbers. It is necessary so that academies funded in this way receive grant income which more accurately reflects the actual pupil numbers present during the year.
B120: · line 135 other DfE grants – Include any non-GAG grants receivable not previously included in lines 101 to 138. This includes the ‘Catch up’ funding for tutoring and other Covid 19 related grants from the DfE.
B121: · line 136 Universal Infant Free School Meals - Include any additional funding you receive from Universal Infant Free School Meals (UIFSM). This provides funding for all government funded schools to offer free school meals to pupils in reception, year 1 and year 2.
B122: · line 137 insurance - This should only contain any insurance top-up grant received from the DfE. It shouldn't include the value of insurance claims.
B123: · line 138 Sponsor Capacity Grant - Include any additional funding from the Sponsor Capacity Grant, as per the Grant determination. This grant is from the DfE to facilitate an increase in the number of academies within a trust and encourage trusts to take on struggling schools. School can bid for between £50-£100k.
B124: · line 150 Other DfE family revenue grants - This should only be used for grants from the DfE family, National College of Teaching and Leadership, Standards Testing Agency, or Office of the Children's Commissioner.
B125: Other revenue income (lines 200 to 220)
B126: · line 200 local authority revenue income – Include all revenue income received or receivable from local authorities, but exclude revenue surplus transfers from predecessor local authority maintained schools on conversion.
B127: · line 205 other government grants – Include all revenue grants receivable from other government sources (exclude DfE, other bodies within the DfE family and local authority) that are not included in the lines above. Line 205 should include, but is not limited to, grants receivable from any government funding (excluding DfE and local authority) intended to promote access and opportunity for minority ethnic pupils in support of English as an additional language or as part of a wider focus on raising attainment.
B128: · line 210 Non-government grants – include all revenue grants received from non-government sources
B129: · line 211 Income from trading activities – Include all revenue received from trading activities such as hall hire, catering, rental income, breakfast and after school clubs, parental contributions, staff secondments outside of the trust and insurance claims.
B130: · line 220 other income, including endowment revaluations and investment income – Include any other revenue income not covered by the above categories e.g. RAAC, donations, business sponsorship, investment income, gains or losses on endowments and any transfer of revenue reserves.
B131: Surplus transfers on conversion (lines 212 and 215)
B132: · line 212 revenue surplus transfer of an existing academy in/ (out) of the trust – Include all revenue surplus received, or receivable following the transfer of an existing academy, excluding pensions and fixed assets.
B133: · line 215 revenue surplus transfer to academy on conversion – include all revenue surplus received or receivable on conversion from local authorities, i.e. surpluses received from local authorities on conversion excluding pensions and fixed assets.
B134: Transfers between revenue from capital (line 255)
B135: Transfers between revenue and capital (line 585). Net transfer between revenue and capital. This should be the planned transfer from revenue reserves or income to the capital budget to spend on capital items. This should normally be a negative figure. However, occasionally a capital grant is spent as per the grant conditions, but the expense has been classified as revenue (for example, roof repairs). In this case you may need to make a transfer from capital to revenue, creating a positive transfer to revenue from capital (i.e. negative in contra line 585).
B136: Total revenue income (line 298)
B137: This is the sum of total DfE revenue income (line 199), Other revenue, any revenue transfers in or out of the trust (line 212/215) and any revenue transfers between revenue and capital income (line 585). This line is used to calculate your trust’s total reserves. The reserve balance details page (if triggered) calculates a ratio between line 430 ‘c/f 31 Aug 2025’ and the 2024/25 total balance in line 298 (Line 430 divided by line 298).
B138: Revenue expenditure (lines 310 to 430)
B139: · line 310 wages and salaries – Include the full costs of employment for staff employed directly/indirectly by the trust including gross pay, bonuses, overtime, allowances, maternity and sick pay. Include any redundancy costs for staff and bought in supply costs. Exclude third-party IT support and instead include these in line 342 - ICT costs: IT support further below in the revenue expenditure section.
B140: · line 311 social security costs – Include the employer’s national insurance and any costs of the apprenticeship levy.
B141: · line 320 pension cost: teaching staff – Include the superannuation contributions relating to teaching staff. For example, staff members in the teachers’ pension scheme including those on the leadership pay scale. It should include actual pension contributions.
B142: · line 325 pension cost: non-teaching staff – Include actual pension contributions and any payments to address the deficit on the Local Government Pension Scheme (LGPS) fund. Don't include any change in the value of the deficit calculated under FRS102.
B143: · line 336 ICT costs: connectivity – Include main and backup broadband lines, wireless networks, network switches, network cables, telephony, ISDN, ASDL, other dedicated phone lines and leasing costs associated with connectivity and telephony. Also include safety and security features such as cyber security and filtering and monitoring if bundled with connectivity services. Exclude connectivity expenditure where costs are capitalised such as installation costs or where phones are not leased. Mobile phones, including hardware and contracts. Instead, please include these in line 621 - ICT costs: connectivity, within the capital expenditure section.
B144: · line 337 ICT costs: onsite servers – Include purchased or leased physical onsite servers present in the school or trust where they are not capitalised, also onsite servers that support cloud-based storage across a trust. Exclude: cloud-based storage where the school or trust does not have a physical onsite server; instead include these in line 339 - ICT costs: administration software and systems. Exclude energy costs associated with onsite servers (please include these in line 378 – Non-staff costs), expenditure on onsite servers where costs are capitalised (please include these in line 622 – ICT Costs: onsite servers, within the capital expenditure section), and any repair and maintenance costs (please include line 342 - ICT costs: IT support).
B145: · line 338 ICT costs: IT learning resources – Include curriculum software to support teaching and learning such as apps and lesson planning tools, subscriptions and licenses associated with educational software and websites, digital learning platforms and e-books. Exclude resources that are used specifically for administration purposes such as management information systems, safeguarding systems and data storage. Instead, include these in line 339 - ICT costs: administration software and systems. Exclude any laptops, desktops, and tablets including associated licenses, should be included in line 340 ICT costs: laptops, desktops, and tablets if they haven’t been capitalised. Any other hardware not capitalised, such as audio-visual screens, printers and keyboards, should be included in line 341 - ICT costs: other hardware. Where a resource is used for learning and administration purposes, and where costs are material, costs or estimates of the split should be coded separately at the time of purchase.
B146: · line 339 ICT costs: Administration software and systems – Include administration and management software such as management information systems (MIS), safeguarding, finance, cashless catering, building management and payment portals. Also include operating systems and device licences, unless bundled into the cost of laptops, desktops and tablets. Include IT hosting including cloud and data storage, cybersecurity and filtering / monitoring if they are not part of any previously stated connectivity services. Exclude connectivity such as broadband and telephony; instead include these in line 336 - ICT costs: connectivity. Exclude IT learning resources, hardware, inhouse or third party IT support; instead include these in line 338 - ICT costs: IT learning resources. Where a resource is used for learning and administration purposes, and where costs are material, costs or estimates of the split should be coded separately at the time of purchase.
B147: · line 340 ICT costs: laptops, desktops and tablets – Include laptops, desktops and tablets purchased or leased by the school that are used for teaching, learning and administration. Include peripherals such as keyboards, mouses and display screens if bundled into the cost of the devices. Include operating systems and licences if bundled into the cost of devices, device management tools. Only include costs within this line if they have not been capitalised. If they are capitalised, include in line 624 - ICT costs: laptops, desktops and tablets within the capital expenditure section of the form. Exclude bring your own device (BYOD) schemes where pupils and / or staff are required to bring their own devices such as laptops or tablets. Exclude peripherals that are not bundled into the cost of the devices, and any other hardware, expenditure where device costs are capitalised and instead include these in line 341 - ICT costs: other hardware. Also exclude IT support unless this is bundled into the purchase or hire of the devices and instead include in line 342 - ICT costs: IT support.
B148: · line 341 ICT costs: other hardware – Include hardware such as printers and consumables, audio-visual display screens, projectors and CCTV. Include peripherals such as keyboards and mouses where they are not bundled into laptop, desktop and tablet costs. Include purchase or hire of any hardware where this has not been capitalised. Only include costs within this line if they have not been capitalised. If they are capitalised, include in line 625 - ICT costs: other hardware. Exclude laptops, desktops and tablets, instead include this in line 340 - ICT costs: laptops, desktops and tablets above. Exclude any onsite servers, instead include these in line 337 - ICT costs: onsite servers. Exclude software unless bundled as part of the cost of the hardware and instead include in 339 - ICT costs: administration software and systems.
B149: · line 342 ICT costs: IT support – Include third-party IT support contracts, maintenance and repair of technology, IT related consultancy when not bundled into any other services. Also include the estimated costs of IT support if these are bundled into other services. Please exclude inhouse IT support such as a network or IT manager. This will be included in staff costs.
B150: · line 330 – other staff support costs – Include any indirect staffing costs such as training and development, staff travel, childcare vouchers and Disclosure and Barring Service (DBS) checks. Exclude IT related training, see line 342 - ICT costs: IT support.
B151: · line 378 non-staff costs (cash) – Include any other revenue expenditure not covered by the above categories e.g. costs of all educational and non-educational supplies and services (including bought in supply cover and HR/Payroll services from the Local Authority), RPA contributions, building repairs and maintenance costs (including any service level agreements that relate to the upkeep and maintenance of the school estate), legal and governance costs, land and buildings valuations, bank charges and interest. If your trust has any RAAC related expenditure that hasn’t been capitalised please include this in here. Exclude revenue deficits on conversion/ transfer or any non-cash costs such as unwinding of the discount, impairment, depreciation. Include all ICT related costs in lines 336 to 342 .
B152: · line 379 Building repair & maintenance / Building improvements (Disclosure only) – For disclosure only: Include any expenditure that relates to building repair & maintenance / building improvements that have not been capitalised. For example, this could include: roof repairs, heating / boiler replacements, general maintenance and repairs to the building. Only include costs in here that have not been capitalised and added to the trusts balance sheet as a fixed asset. You do not need to alter line 378, as this line (379) is a disclosure only and any repair and maintenance costs within 378 will not be double counted. If your trust is entirely Church owned or has some Church academies, include all spend on building repairs and maintenance / building improvements that your trust has paid for. If your Diocese has paid for this work, do not include in line 378.
B153: · line 350 Revenue deficit transfer of an existing academy in/ (out) of the trust – Include all revenue deficit payable following the transfer of an existing academy, excluding pensions and fixed assets. Where there is a transfer of a deficit into the trust, enter this figure as a positive figure, increasing your expenditure. Where there is a transfer of a deficit out of the trust, enter this as a negative figure, decreasing your expenditure.
B154: · line 351 Revenue deficit transfer to an academy on conversion – Include revenue deficit payable on conversion from local authorities, e.g. deficits received from local authorities on conversion excluding pensions and fixed assets. Enter this as a positive figure.
B155: · line 395 other non-cash costs – Only include non-cash costs that flow into revenue reserves. If non-cash costs feed the pensions reserve or the capital fund, exclude them. For example, where depreciation flows into the capital fund, don't include this. Instead, disclose it in the other items section below. If you include impairment charges in revenue reserves, provide an explanation following the validation query. Include other non-cash items such as provisions (but not pension liabilities) or unwinding of the discount.
B156: · line 410 balance b/f from previous period – We have pre-populated your balance b/f for 1 Sep 23 with the figures from your prior year accounts return. A worked example is within the guidance. The figures for this can be found in your statutory accounts (please refer to the AAD for guidance). Assuming no structural changes, the amount should agree to the sum of ‘Endowment Fund’, ‘Restricted Income Fund’ and ‘Unrestricted Fund’ in the Balance Sheet Summary of the prior year accounts return. Don’t include capital funds or pension reserves. Do include any gains / losses on endowments.
B157: · line 430 balance c/f to next period – This is an automatic sum of lines 400 and 410 and is used to calculate your trust’s total reserves. The reserve balance details page (if triggered) calculates a ratio between line 430 ‘c/f 31 Aug 2025’ and the 2024/25 total balance in line 298 (Line 430 divided by line 298). Provide an explanation where there are any deficits.
B158: Academy trust reserves
B159: In 2022 The Public Accounts Committee (PAC) asked the DfE to investigate the geographical variation in the financial health of maintained schools, determine the underlying causes and decide whether some schools or local areas need extra support to be sustainable.
B160: We continue to request additional information for any academy trusts with reserves equivalent to more than 20% of their income. The calculation is a ratio of line 430 'c/f 31 Aug 2025' and line 298. This data will provide the DfE with information to assess the impact of financial pressures on schools at local level.
B161: If you have a ratio of 20% or more, you’ll be asked some further follow up questions. You’re asked to provide more details about the minimum amount your trust would want to keep in reserves along with a narrative. To comply with the PAC request, we need to ask specific details, including selecting the main purpose(s) your trust is holding its reserve balance for. This information is requested to try and minimise follow up queries later in the year. You must select at least one from this list of options:
B162: · ‘IT and systems’
B163: · ‘Pupil provision’
B164: · ‘staff provision’
B165: · ‘Finance and Strategy’
B166: · ‘New buildings and estates projects’
B167: · ‘Maintenance & Improvements to existing buildings & estates projects’
B168: · ‘other spend’ not listed above
B169: All inputs are for the approximate cost, in rounded thousands, and an estimated date of the activity commencement.
B170: · line 510 devolved formula capital – Input the total amount of capital funding grant receivable from DfE.
B171: · line 520 value of any capital donation of an asset from the DfE for PSPB/free schools programme – Include the value of any asset that has been transferred, or is due to be transferred from the DfE to the trust where the DfE has procured the capital works centrally under the Priority Schools Building Programme (PSBP) or Free Schools Programme. This should equal row 605.
B172: · line 530 other DfE income – capital – Include the amount of any capital grants received from the DfE that is not included in lines 510 or 520, for example CIF/SCA funding. If you have received any RAAC funding that relates to capital, please include this here.
B173: · line 540 other DfE family capital grants – Enter the value of any capital grants from DfE family bodies, such as the national college, Office of the Children’s Commissioner or the Standards and Testing Agency.
B175: Other capital grants income (lines 560 to 571)
B176: · line 560 local authority capital income (cash) – Include any local authority capital funding receivable. This should be cash payments only. Include unspent grants (cash) including any capital balances on conversion. This is the cash reserves balances on conversion only.
B177: · line 570 non-governmental capital income – Include voluntary, private capital, donations for use as capital or endowment funds or any other non-government capital income. Specify what each is in the comments section.
B178: · line 571 other government grant capital income – Include any other government capital grants received that are not included in the above lines. Specify which government body the grants are from in the comments column.
B179: · line 574 endowment releases to fund capital expenditure. Include where there have been any releases from endowments reserves to fund capital expenditure.
B180: · line 575 local authority donated assets – Include any donated assets from local authorities. Please note, this will be the contra with line 606.
B181: Disposals
B182: Disposal proceeds (lines 581-583) – include the value that all disposals are carried in the financial statements, i.e. cost less depreciation in the following categories lines:
B183: · line 581 land and buildings – Disposal proceeds only.
B184: · line 582 other fixed assets – Disposal proceeds only.
B185: Transfer to revenue from capital (line 585)
B186: This should balance to line 255 - normally there are revenue transfers to capital and this line should be a positive figure. Transfers from capital funding to revenue reserves are normally disallowed. However on occasion for the reasons described in line 255, a reverse transfer may be necessary, where funds will flow from capital to revenue and the balance in this line would become negative. As this is unusual, an explanation is required.
B187: Capital expenditure (lines 601 to 680)
B188: Land and buildings additions are shown in lines 601-620. This includes the cost of land acquisition including all fees and charges associated. It also includes the cost of new construction, including fees, cost of conversions and renovations and cost of extension to existing premises. This needs to be broken down into the following category lines:
B189: · line 601 Land and buildings additions funded by DfE grants - Include any expenditure of grant received from the DfE for freehold and leasehold land and buildings additions. In here, also include any RAAC related expenditure that has been capitalised. If your trust has had any major maintenance work completed that has been capitalised, please include this in here. Any unspent grant income would be carried forward into the next financial year, usually in the capital funds balance.
B190: · line 605 Land and buildings donated to the trust by the DfE – Include the value of any asset that has been transferred, or due to be transferred from the DfE to the trust where the DfE has procured the capital works centrally under the Priority Schools Building Programme (PSBP) or Free Schools Programme. This should be equal to row 520.
B191: · line 615 Land and buildings additions funded by other capital grants – Include any expenditure that is funded by other capital grants (not the DfE family) include lottery funding, Sport England, Local Authorities, The Football Association.
B192: · line 620 Land and buildings additions funded by reserves – Funded by reserves – including other revenue sources as well as endowment releases.
B193: ICT additions are shown in lines 621-625. This will include the cost of ICT where they have been capitalised for network connection and installation, onsite servers, software and hardware.
B194: · line 621 - ICT costs - connectivity - Include where capitalised; broadband, wireless networks, network switches, network cables, installation costs. Telephony, ISDN, ASDL or other dedicated phone lines where they are not leased, and installation costs. Exclude leasing (see line 336 - ICT costs: connectivity, within the revenue expenditure section), IT support, repair and maintenance costs (see line 342 - ICT costs: IT support, within the revenue expenditure section).
B195: · line 622 - ICT costs - onsite servers - Include physical onsite servers where costs are capitalised. Exclude lease costs (please include in line 337 - ICT costs: onsite servers) and any repair and maintenance (please include in line 342 - ICT costs: IT support) costs associated with onsite servers, cloud storage costs, IT support.
B196: · line 623 - ICT costs - administration software and systems - Include where capitalised; administration and management software such as management information systems (MIS), safeguarding, finance, cashless catering, building management and payment portals, operating systems and device licences (unless bundled into the cost of laptops, desktops and tablets), cloud and data storage, cybersecurity and filtering and monitoring if not part of any connectivity services. Exclude connectivity such as broadband and telephony (see line 621 - ICT costs: connectivity), IT learning resources, (see line 338 - ICT costs: IT learning resources, within the revenue expenditure section), IT support, repair and maintenance costs (see line 342 - ICT costs: IT support, within the revenue expenditure section). Where a resource is used for curriculum and non-curriculum (administration) purposes, and where costs are material, costs or estimates of the split should be coded separately at the time of purchase.
B197: · line 624 - ICT costs - laptops, desktops and tablets - Include where capitalised; laptops, desktops and tablets purchased by the school (used for teaching, learning and administration), operating systems and licences (if bundled into the cost of devices) and device management tools. Exclude bring your own device (BYOD) schemes where pupils and or staff are required to bring their own devices such as laptops or tablets. Exclude any other hardware (see line 625 - ICT costs: other hardware, within the capital expenditure section), IT support, repair and maintenance costs (see line 342 - ICT costs: IT support, within the revenue expenditure section). Where a resource is used for curriculum and non-curriculum (administration) purposes, and where costs are material, costs or estimates of the split should be coded separately at the time of purchase.
B198: · line 625 - ICT costs - other hardware - Include where capitalised; hardware such as printers and consumables, audio-visual display screens, projectors and CCTV, peripherals such as keyboards and mouses (where they are not bundled into laptop, desktop and tablet costs). Exclude laptops, desktops and tablets (see line 624 - ICT costs: laptops, desktops and tablets), onsite servers (see line 622 - ICT costs: onsite servers, IT support, repair and maintenance costs (see line 342 - ICT costs: IT support, within the revenue expenditure section).
B199: Other fixed assets additions in lines 636-638 – include the cost of other fixed assets acquisition. These fixed assets include items such as furniture and equipment, computer equipment, motor vehicles, assets under construction, intangible assets etc. This needs to be broken down into the following category lines:
B200: · line 636 Other fixed assets additions funded by DfE grants – Include any expenditure of DfE grant received in a previous period. The unspent grant income should be carried forward from a prior year. In here, also include any RAAC related expenditure that has been capitalised in this line. If your trust has had any major maintenance work completed that has been capitalised, include this in here.
B201: · line 637 Other fixed assets additions funded by other capital grants – Include any expenditure that is funded by other capital grants (not the DfE family) include lottery funding, Sport England, Local Authorities, The Football Association. If your trust has had any major maintenance work completed that has been capitalised, include this in here.
B202: · line 638 Other fixed assets additions funded by reserves – Include any expenditure that is funded by reserves – including other revenue sources as well as endowment releases.
B203: · line 606 local authority donated assets expense – This should be equal to row 575 recognising the asset expense following receipt of the donated asset (as income).
B204: Capital transfers and conversions (lines 572, 573 and 639)
B205: · Line 572 capital assets transferred to academy on conversion – Include the value of capital assets and liabilities received or receivable on conversion from local authorities on conversion. These balances will have a contra adjustment. For example when you record a conversion from a local authority the entry is conversion income recorded below and the opposite adjustment which is expenditure. The former recognises the transfer income and the latter the expenditure to recognise the asset. The budgeting impact is neutral.
B206: · Line 573 capital assets transferred of an existing academy into the trust – Include the value of capital assets and liabilities received or receivable following the transfer of an existing academy from another academy trust.
... 60 more rows

Sheet Organisation user
B1: Budget Forecast Return 2025
S2: Initial validation | T2: Outstanding validation
B3: Trust name: | M3: =IF(S3=1,V3,"") -> Please enter the name of your trust. | S3: =IF(C3="",1,0) -> 1 | T3: =S3 -> 1 | V3: Please enter the name of your trust.
B5: Trust type | M5: =IF(S5=1,V5,"") -> Please state whether your trust is a MAT or a SAT. | S5: =IF(C5="",1,0) -> 1 | T5: =S5 -> 1 | V5: Please state whether your trust is a MAT or a SAT.
B7: Trust UPIN | M7: =IF(S7=1,V7,"") -> Please enter your trust UPIN. | S7: =IF(C7="",1,0) -> 1 | T7: =S7 -> 1 | V7: Please enter your trust UPIN.
B9: Company House Number | M9: =IF(S9=1,V9,"") -> Please enter your trust companies house number, this cell allows a leading zero. | S9: =IF(C9="",1,0) -> 1 | T9: =S9 -> 1 | V9: Please enter your trust companies house number, this cell allows a leading zero.
B11: What are the contact details for this trust as we may need to contact you?
B13: Full name | M13: =IF(S13=1,V13,"") -> Please enter your full name. | S13: =IF(C13="",1,0) -> 1 | T13: =S13 -> 1 | V13: Please enter your full name.
B15: UK telephone number | M15: =IF(S15=1,V15,"") -> Please enter a full UK telephone number. | S15: =IF(C15="",1,0) -> 1 | T15: =S15 -> 1 | V15: Please enter a full UK telephone number.
B17: Email Address | M17: =IF(S17=1,V17,"") -> Please enter your email address. | S17: =IF(C17="",1,0) -> 1 | T17: =S17 -> 1 | V17: Please enter your email address.
B20: No of academies in trust | M20: =IF(C20-C21=0,"",IF(E20="","Explain the different number of academies. Include new openers; transfers; mergers; closures or demergers. Are you including the financials of any academies that you expect to join your trust within the period of this return and/or before the next BFR.","")) ->  | S20: MAT | T20: Yes | V20: =IF(C20-C21=0,0,IF(E20="",1,0)) -> 0
B21: No of academies in return | M21: =IF(COUNT(B26:B147)-C21=0,"","If applicable, can you ensure that the details inputted here match the academy reserves section. This includes the upin as well as the academy name. The number of entries should match the number input in cell B25") ->  | S21: SAT | T21: No
B23: Which academies do you want to include in this return?
B25: Academy UPIN | C25: Academy Name
M26: =IF(T26="Y",IF(X26<4,$V$26,$W$26),"") ->  | S26: 1 | T26: =IF(S26<=$U$26,"Y","N") -> N | U26: =C21 -> 0 | V26: Please Enter Details for Academy | W26: Details have been entered | X26: =(IF(B26="",1,2)+(IF(C26="",1,2))) -> 2
M27: =IF(T27="Y",IF(X27<4,$V$26,$W$26),"") ->  | S27: 2 | T27: =IF(S27<=$U$26,"Y","N") -> N | X27: =(IF(B27="",1,2)+(IF(C27="",1,2))) -> 2
S28: 3 | T28: N | X28: 2
S29: 4 | T29: N | X29: 2
S30: 5 | T30: N | X30: 2
S31: 6 | T31: N | X31: 2
S32: 7 | T32: N | X32: 2
S33: 8 | T33: N | X33: 2
S34: 9 | T34: N | X34: 2
S35: 10 | T35: N | X35: 2
S36: 11 | T36: N | X36: 2
S37: 12 | T37: N | X37: 2
S38: 13 | T38: N | X38: 2
S39: 14 | T39: N | X39: 2
S40: 15 | T40: N | X40: 2
S41: 16 | T41: N | X41: 2
S42: 17 | T42: N | X42: 2
S43: 18 | T43: N | X43: 2
S44: 19 | T44: N | X44: 2
S45: 20 | T45: N | X45: 2
S46: 21 | T46: N | X46: 2
S47: 22 | T47: N | X47: 2
S48: 23 | T48: N | X48: 2
S49: 24 | T49: N | X49: 2
S50: 25 | T50: N | X50: 2
S51: 26 | T51: N | X51: 2
S52: 27 | T52: N | X52: 2
S53: 28 | T53: N | X53: 2
S54: 29 | T54: N | X54: 2
S55: 30 | T55: N | X55: 2
S56: 31 | T56: N | X56: 2
S57: 32 | T57: N | X57: 2
S58: 33 | T58: N | X58: 2
S59: 34 | T59: N | X59: 2
S60: 35 | T60: N | X60: 2
S61: 36 | T61: N | X61: 2
S62: 37 | T62: N | X62: 2
S63: 38 | T63: N | X63: 2
S64: 39 | T64: N | X64: 2
S65: 40 | T65: N | X65: 2
S66: 41 | T66: N | X66: 2
S67: 42 | T67: N | X67: 2
S68: 43 | T68: N | X68: 2
S69: 44 | T69: N | X69: 2
S70: 45 | T70: N | X70: 2
S71: 46 | T71: N | X71: 2
S72: 47 | T72: N | X72: 2
S73: 48 | T73: N | X73: 2
S74: 49 | T74: N | X74: 2
S75: 50 | T75: N | X75: 2
S76: 51 | T76: N | X76: 2
S77: 52 | T77: N | X77: 2
S78: 53 | T78: N | X78: 2
S79: 54 | T79: N | X79: 2
S80: 55 | T80: N | X80: 2
S81: 56 | T81: N | X81: 2
S82: 57 | T82: N | X82: 2
S83: 58 | T83: N | X83: 2
S84: 59 | T84: N | X84: 2
S85: 60 | T85: N | X85: 2
S86: 61 | T86: N | X86: 2
S87: 62 | T87: N | X87: 2
S88: 63 | T88: N | X88: 2
S89: 64 | T89: N | X89: 2
S90: 65 | T90: N | X90: 2
M91: =IF(T91="Y",IF(X91<4,$V$26,$W$26),"") ->  | S91: 66 | T91: =IF(S91<=$U$26,"Y","N") -> N | X91: =(IF(B91="",1,2)+(IF(C91="",1,2))) -> 2
S92: 67 | T92: N | X92: 2
S93: 68 | T93: N | X93: 2
S94: 69 | T94: N | X94: 2
S95: 70 | T95: N | X95: 2
S96: 71 | T96: N | X96: 2
S97: 72 | T97: N | X97: 2
S98: 73 | T98: N | X98: 2
S99: 74 | T99: N | X99: 2
S100: 75 | T100: N | X100: 2
S101: 76 | T101: N | X101: 2
S102: 77 | T102: N | X102: 2
S103: 78 | T103: N | X103: 2
S104: 79 | T104: N | X104: 2
S105: 80 | T105: N | X105: 2
S106: 81 | T106: N | X106: 2
S107: 82 | T107: N | X107: 2
S108: 83 | T108: N | X108: 2
S109: 84 | T109: N | X109: 2
S110: 85 | T110: N | X110: 2
S111: 86 | T111: N | X111: 2
S112: 87 | T112: N | X112: 2
S113: 88 | T113: N | X113: 2
S114: 89 | T114: N | X114: 2
S115: 90 | T115: N | X115: 2
S116: 91 | T116: N | X116: 2
S117: 92 | T117: N | X117: 2
S118: 93 | T118: N | X118: 2
S119: 94 | T119: N | X119: 2
S120: 95 | T120: N | X120: 2
S121: 96 | T121: N | X121: 2
S122: 97 | T122: N | X122: 2
S123: 98 | T123: N | X123: 2
S124: 99 | T124: N | X124: 2
S125: 100 | T125: N | X125: 2
S126: 101 | T126: N | X126: 2
S127: 102 | T127: N | X127: 2
S128: 103 | T128: N | X128: 2

Sheet BFR 2025
A1: Budget Forecast Return | AA1: hidden from here
A2: This workbook is to be used to help prepare for the online form. It should be completed on an accruals and prepayments basis at whole trust level. Enter all figures in the online form in round thousands, except for line 999 pupil numbers. Lines 3900 and 3950 around pay award % increase should be entered as a percentage % up to a maximum of 3 decimal places. QU379 if triggered is a % input to the nearest whole number.
A4: Protected sheets
A5: The worksheets are protected with the password 'BFR'. You can remove the protection to inspect how the workbook is structured. If you remove the password protection, there's a risk that formulas and validations could be accidentally overwritten. For that reason it's safer to do this on a separate, saved version.
A8: Queries
A10: If you have a query about completing your BFR return please contact the DfE using the Customer Help Portal.
A14: Finance Questions | X14: Query No | Z14: Query | AB14: Test No | AC14: Formula | AD14: Text for test | AE14: Formula
A15: FQ1 | B15: Have you had any provisions during this period, excluding pension liability? | C15: No | E15: =IF(C15="No","","Link to the provisions section") -> 
A16: FQ2 | B16: Have you had any loans during the period? | C16: No | E16: =IF(C16="No","","Link to the loans section") -> 
A17: FQ3 | B17: Have you had any investments during the period? | C17: No | E17: =IF(C17="No","","Link to the investments section") -> 
A18: FQ4 | B18: Have you had any overdrafts during the period? | C18: No | E18: =IF(C18="No","","Link to the overdrafts section") -> 
B21: Pupil Numbers | I21: Actual 2023/24 | M21: Actual 2024/25 | Q21: Estimated 2025/26 | R21: Help Text Guidance
B22: Pupil numbers (actual and estimated - do not round this figure) | C22: 999 | D22: i | E22: =IF(OR((I32/I22>=30),(M32/M22>=30),(Q32/Q22>=30)),"check - see columns S-Z for info","") ->  | R22: Input the actual/estimated total number of students in your trust as at the October census date in the year of input (this shouldn't be rounded to the nearest '000). Nursery pupils who are attending at a private voluntary independent provider on the school site should not be included. | S22: =IF(OR(I22-ROUND(I22,)<>0,M22-ROUND(M22,)<>0,Q22-ROUND(Q22,)<>0),"No decimal places allowed","") ->  | T22: =IF(OR(I22<V22,M22<V22,Q22<V22),"A value is below the minimum value allowed","") ->  | U22: =IF(OR(I22>W22,M22>W22,Q22>W22),"Input value is too high","") ->  | V22: =VLOOKUP($C22,'Min Max table'!$A$5:$C$208,2,FALSE) -> 0 | W22: =VLOOKUP($C22,'Min Max table'!$A$5:$C$205,3,FALSE) -> 999999 | X22: ="QU"&AB22 -> QU22 | Y22: =IF(Z22="","","Please refer to "&X22&" in the validations table") -> Please refer to QU22 in the validations table | Z22: =IF(AC22>0,AD22,"") -> Check that you've entered pupil numbers correctly (without rounding) or explain why you've inputted no pupil numbers. | AA22: =VLOOKUP(X22,'Trust validations table'!$A$15:$E$346,4,FALSE) -> Other items: Line 999 - Pupil numbers | AB22: 22 | AC22: =IF(OR(M22<=0,I22<=0,Q22<=0),AB22,0) -> 22 | AD22: Check that you've entered pupil numbers correctly (without rounding) or explain why you've inputted no pupil numbers. | AE22: IF(OR(M217<=0,I217<=0,Q217<=0),AB217,0)
S23: =IF(OR(I22-ROUND(I22,)<>0,M22-ROUND(M22,)<>0,Q22-ROUND(Q22,)<>0),"No decimal places allowed","") ->  | T23: =IF(OR(I22<V23,M22<V23,Q22<V23),"A value is below the minimum value allowed","") ->  | U23: =IF(OR(I22>W22,M22>W22,Q22>W22),"Input value is too high","") ->  | V23: =VLOOKUP($C22,'Min Max table'!$A$5:$C$208,2,FALSE) -> 0 | W23: 30 | X23: ="QU"&AB23 -> QU99 | Y23: =IF(Z23="","","Please refer to "&X23&" in the validations table") -> Please refer to QU99 in the validations table | Z23: =IF(ISERROR(AC23),"Please explain why your GAG per pupil is greater than £30k",IF(AC23>0,AD23,"")) -> Please explain why your GAG per pupil is greater than £30k | AA23: =VLOOKUP(X23,'Trust validations table'!$A$15:$E$346,4,FALSE) -> GAG line 102 divided by pupil numbers line 999 | AB23: 99 | AC23: =IF(OR((I32/I22>=30),(M32/M22>=30),(Q32/Q22>=30)),AB23,0) ->  | AD23: Please explain why your GAG per pupil is greater than £30k | AE23: IF(OR(M217<=0,I217<=0,Q217<=0),AB217,0)
B24: Pupil numbers must be completed before continuing with the form.
B27: REVENUE | G27: Prior Year | K27: Current Year | O27: Forecast Year
B28: 1 REVENUE INCOME | G28: Actuals | H28: Calculated | I28: TOTAL | K28: Actuals | L28: Calculated | M28: TOTAL | O28: Forecast | P28: Calculated | Q28: TOTAL | AA28: hidden from here
B29: DfE income | G29: Sep 23 - Mar 24 | H29: Apr 24 - Aug 24 | I29: 2023/24 | K29: Sep 24 - Mar 25 | L29: Apr 25 - Aug 25 | M29: 2024/25 | O29: Sep 25 - Mar 26 | P29: Apr 26 - Aug 26 | Q29: 2025/26
B30: Category - For help, refer to the guidance tab | C30: Line no. | D30: Help text | E30: Validation | G30: £'000 | H30: £'000 | I30: £'000 | K30: £'000 | L30: £'000 | M30: £'000 | O30: £'000 | P30: £'000 | Q30: £'000 | R30: Help Text Guidance | S30: Rounded £'000 test | T30: Minimum value test | U30: Maximum value test | V30: Minimum value £'000 | W30: Maximum value £'000 | X30: Query No | Z30: Query | AB30: Test No | AC30: Formula | AD30: Text for test | AE30: Formula
B31: Rates reclaim | C31: 101 | D31: i | E31: =IF(OR(S31<>"",T31<>"",U31<>"",Z31<>""),"Check- see columns S-Z for info","") ->  | H31: =+I31-G31 -> 0 | L31: =+M31-K31 -> 0 | P31: =+Q31-O31 -> 0 | R31: You should enter the total amount for the year you are claiming. | S31: =IF(OR(G31-ROUND(G31,)<>0,I31-ROUND(I31,)<>0,K31-ROUND(K31,)<>0,M31-ROUND(M31,)<>0,O31-ROUND(O31,)<>0,Q31-ROUND(Q31,)<>0),"No decimal places allowed allowed","") ->  | T31: =IF(OR(G31<V31,I31<V31,K31<V31,L31<V31,M31<V31,O31<V31,P31<V31,Q31<V31),"A value is below the minimum value allowed","") ->  | U31: =IF(OR(G31>W31,H31>W31,I31>W31,K31>W31,L31>W31,M31>W31,O31>W31,Q31>W31),"Input value is too high","") ->  | V31: =VLOOKUP($C31,'Min Max table'!$A$5:$C$208,2,FALSE) -> -100000 | W31: =VLOOKUP($C31,'Min Max table'!$A$5:$C$205,3,FALSE) -> 100000 | AJ31: List boxes
B32: General Annual Grant (GAG) (excluding Student Service Grant) | C32: 102 | D32: i | E32: =IF(OR(S32<>"",T32<>"",U32<>"",Z32<>""),"Check- see columns S-Z for info","") -> Check- see columns S-Z for info | H32: 0 | L32: 0 | P32: =+Q32-O32 -> 0 | R32: This is the gross GAG figure as shown on the trust's GAG funding statement and the post 16 allocation statement. Include Core Schools Budget Grant (CSBG). Don't include any deductions for the RPA Scheme (insurance scheme), loan repayments or the Academy post 16-19 bursary funding. | S32: =IF(OR(G32-ROUND(G32,)<>0,I32-ROUND(I32,)<>0,K32-ROUND(K32,)<>0,M32-ROUND(M32,)<>0,O32-ROUND(O32,)<>0,Q32-ROUND(Q32,)<>0),"No decimal places allowed","") ->  | V32: =VLOOKUP($C32,'Min Max table'!$A$5:$C$208,2,FALSE) -> 0 | W32: =VLOOKUP($C32,'Min Max table'!$A$5:$C$205,3,FALSE) -> 800000 | X32: ="QU"&AB32 -> QU1 | Y32: =IF(Z32="","","Please refer to "&X32&" in the validations table") -> Please refer to QU1 in the validations table | Z32: =IF(ISERROR(AC32),"You have input something incorrectly",IF(AC32>0,AD32,"")) -> You have forecast zero for GAG income for next year (102). Briefly tell us why this value is zero? | AA32: =VLOOKUP(X32,'Trust validations table'!$A$15:$E$346,4,FALSE) -> Revenue Income: Line 102 - General Annual Grant (GAG) (excluding Student Service Grant) | AB32: 1 | AC32: =IF(Q32=0,AB32,0) -> 1 | AD32: You have forecast zero for GAG income for next year (102). Briefly tell us why this value is zero? | AE32: IF(Q35=0,AB35,0) | AJ32: Yes | AK32: SAT
B33: Student Services Grant (Academy Post 16 Bursary Funding) | C33: 103 | D33: i | E33: =IF(OR(S33<>"",T33<>"",U33<>"",Z33<>""),"Check- see columns S-Z for info","") ->  | H33: 0 | L33: 0 | P33: 0 | R33: Only include the Academy post 16-19 bursary fund. | V33: =VLOOKUP($C33,'Min Max table'!$A$5:$C$208,2,FALSE) -> 0 | W33: =VLOOKUP($C33,'Min Max table'!$A$5:$C$205,3,FALSE) -> 100000 | AJ33: No | AK33: MAT
B34: Start Up Grants | C34: 105 | D34: i | H34: 0 | L34: 0 | P34: 0 | R34: Include both elements of the post opening grant (start up grant and post opening grant) included in the GAG funding statement. | V34: =VLOOKUP($C34,'Min Max table'!$A$5:$C$208,2,FALSE) -> 0 | W34: =VLOOKUP($C34,'Min Max table'!$A$5:$C$205,3,FALSE) -> 100000
B35: Pupil Premium & Service Premium | C35: 108 | D35: i | H35: 0 | L35: 0 | P35: 0 | R35: Do not include any looked-after children pupil premium allocations as this is funding provided by local authorities and should be included within line 200. | V35: =VLOOKUP($C35,'Min Max table'!$A$5:$C$208,2,FALSE) -> 0 | W35: =VLOOKUP($C35,'Min Max table'!$A$5:$C$205,3,FALSE) -> 100000
B36: Pupil Number Adjustment | C36: 132 | D36: i | H36: 0 | L36: 0 | P36: 0 | R36: Include any additional funding you have received due to the PNA. Applies to academies who receive their funding based on estimates of pupil numbers. It is necessary so that academies funded in this way receive grant income which more accurately reflects the actual pupil numbers present during the year. | V36: =VLOOKUP($C36,'Min Max table'!$A$5:$C$208,2,FALSE) -> -100000 | W36: =VLOOKUP($C36,'Min Max table'!$A$5:$C$205,3,FALSE) -> 100000 | X36: ="QU"&AB36 -> QU2 | Y36: =IF(Z36="","","Please refer to "&X36&" in the validations table") ->  | Z36: =IF(ISERROR(AC36),"You have input something incorrectly",IF(AC36>0,AD36,"")) ->  | AA36: =VLOOKUP(X36,'Trust validations table'!$A$15:$E$346,4,FALSE) -> Revenue Income: Line 132 - Pupil Number Adjustment | AB36: 2 | AC36: =IF(OR(I36<>0,M36<>0,Q36<>0),AB36,0) -> 0 | AD36: Provide further details on the value and estimation of the Pupil Number Adjustment (132) | AE36: IF(OR(I39<>0,M39<>0,Q39<>0),AB39,0)
B37: Other DfE revenue grants | C37: 135 | D37: i | H37: 0 | L37: 0 | P37: 0 | R37: Include any remaining non-GAG grants receivable not included in lines 101 to 138. | V37: =VLOOKUP($C37,'Min Max table'!$A$5:$C$208,2,FALSE) -> 0 | W37: =VLOOKUP($C37,'Min Max table'!$A$5:$C$205,3,FALSE) -> 100000
B38: Universal Infant Free School Meals | C38: 136 | D38: i | H38: 0 | L38: 0 | P38: 0 | R38: Include any additional funding you receive from Universal infant free school meals (UIFSM). This provides funding for all government funded schools to offer free school meals to pupils in reception, year 1, and year 2. | V38: =VLOOKUP($C38,'Min Max table'!$A$5:$C$208,2,FALSE) -> 0 | W38: =VLOOKUP($C38,'Min Max table'!$A$5:$C$205,3,FALSE) -> 100000
B39: Insurance | C39: 137 | D39: i | H39: 0 | L39: 0 | P39: 0 | R39: This should only contain any insurance top-up grant received from the DfE. It should not include the value of insurance claims. | V39: =VLOOKUP($C39,'Min Max table'!$A$5:$C$208,2,FALSE) -> 0 | W39: =VLOOKUP($C39,'Min Max table'!$A$5:$C$205,3,FALSE) -> 100000
B40: Sponsor Capacity Grant | C40: 138 | D40: i | H40: 0 | L40: 0 | P40: 0 | R40: Include any additional funding from the Sponsor Capacity Grant, as per the Grant determination. This grant is from the DfE to facilitate an increase in the number of academies within a trust and encourage trusts to take on struggling schools. Schools can bid for between £50-£100k. | V40: =VLOOKUP($C40,'Min Max table'!$A$5:$C$208,2,FALSE) -> 0 | W40: =VLOOKUP($C40,'Min Max table'!$A$5:$C$205,3,FALSE) -> 300000
B41: Other DfE family revenue Grants | C41: 150 | D41: i | H41: 0 | L41: 0 | P41: 0 | R41: This should only be used for grants from the DfE family, including National College of Teaching and Leadership, Standards Testing Agency, Office of the Children's Commissioner, or Equality and Human Rights Commission. | V41: =VLOOKUP($C41,'Min Max table'!$A$5:$C$208,2,FALSE) -> -100000 | W41: =VLOOKUP($C41,'Min Max table'!$A$5:$C$205,3,FALSE) -> 300000
B42: Total DfE revenue Income | C42: 199 | G42: =SUM(G31:G41) -> 0 | H42: =SUM(H31:H41) -> 0 | I42: =SUM(I31:I41) -> 0 | K42: =SUM(K31:K41) -> 0 | L42: =SUM(L31:L41) -> 0 | M42: =SUM(M31:M41) -> 0 | O42: =SUM(O31:O41) -> 0 | P42: =SUM(P31:P41) -> 0 | Q42: =SUM(Q31:Q41) -> 0 | V42: =VLOOKUP($C42,'Min Max table'!$A$5:$C$208,2,FALSE) -> 0 | W42: =VLOOKUP($C42,'Min Max table'!$A$5:$C$205,3,FALSE) -> 0
B43: Other Revenue | C43: Line no. | D43: Help text | E43: Validation
B44: Local authority revenue income | C44: 200 | D44: i | E44: =IF(OR(S44<>"",T44<>"",U44<>"",Z44<>""),"Check- see columns S-Z for info","") ->  | H44: =+I44-G44 -> 0 | L44: =+M44-K44 -> 0 | P44: =+Q44-O44 -> 0 | R44: Include all revenue income received or receivable from local authorities, but exclude revenue surplus transfers from predecessor local authority maintained schools on conversion. | S44: =IF(OR(G44-ROUND(G44,)<>0,I44-ROUND(I44,)<>0,K44-ROUND(K44,)<>0,M44-ROUND(M44,)<>0,O44-ROUND(O44,)<>0,Q44-ROUND(Q44,)<>0),"No decimal places allowed","") ->  | T44: =IF(OR(G44<V44,I44<V44,K44<V44,L44<V44,M44<V44,O44<V44,P44<V44,Q44<V44),"A value is below the minimum value allowed","") ->  | U44: =IF(OR(G44>W44,I44>W44,K44>W44,L44>W44,M44>W44,O44>W44,P44>W44,Q44>W44),"Input value is too high","") ->  | V44: =VLOOKUP($C44,'Min Max table'!$A$5:$C$208,2,FALSE) -> -400000 | W44: =VLOOKUP($C44,'Min Max table'!$A$5:$C$205,3,FALSE) -> 100000
B45: Other government grants | C45: 205 | D45: i | H45: =+I45-G45 -> 0 | L45: =+M45-K45 -> 0 | P45: =+Q45-O45 -> 0 | R45: Include all revenue grants receivable from other government sources (exclude DfE, other bodies within the DfE family and local authority) that are not included in the lines above. Line 205 should include, but is not limited to, grants receivable from any government funding (excluding DfE and local authority) intended to promote access and opportunity for minority ethnic pupils in support of English as an additional language or as part of a wider focus on raising attainment. | S45: =IF(OR(G45-ROUND(G45,)<>0,I45-ROUND(I45,)<>0,K45-ROUND(K45,)<>0,M45-ROUND(M45,)<>0,O45-ROUND(O45,)<>0,Q45-ROUND(Q45,)<>0),"No decimal places allowed","") ->  | T45: =IF(OR(G45<V45,I45<V45,K45<V45,L45<V45,M45<V45,O45<V45,P45<V45,Q45<V45),"A value is below the minimum value allowed","") ->  | U45: =IF(OR(G45>W45,I45>W45,K45>W45,L45>W45,M45>W45,O45>W45,P45>W45,Q45>W45),"Input value is too high","") ->  | V45: =VLOOKUP($C45,'Min Max table'!$A$5:$C$208,2,FALSE) -> -400000 | W45: =VLOOKUP($C45,'Min Max table'!$A$5:$C$205,3,FALSE) -> 100000
B46: Non government grants | C46: 210 | D46: i | H46: =+I46-G46 -> 0 | L46: =+M46-K46 -> 0 | P46: =+Q46-O46 -> 0 | R46: Include all revenue grants received from non-government sources. | S46: =IF(OR(G46-ROUND(G46,)<>0,I46-ROUND(I46,)<>0,K46-ROUND(K46,)<>0,M46-ROUND(M46,)<>0,O46-ROUND(O46,)<>0,Q46-ROUND(Q46,)<>0),"No decimal places allowed","") ->  | V46: =VLOOKUP($C46,'Min Max table'!$A$5:$C$208,2,FALSE) -> -400000 | W46: =VLOOKUP($C46,'Min Max table'!$A$5:$C$205,3,FALSE) -> 100000
B47: Income from trading activities | C47: 211 | D47: i | H47: =+I47-G47 -> 0 | L47: =+M47-K47 -> 0 | P47: =+Q47-O47 -> 0 | R47: Include all revenue received from trading activities such as hall hire, catering, rental income, breakfast and after school clubs, parental contributions, staff secondments outside of the trust and insurance claims. | S47: =IF(OR(G47-ROUND(G47,)<>0,I47-ROUND(I47,)<>0,K47-ROUND(K47,)<>0,M47-ROUND(M47,)<>0,O47-ROUND(O47,)<>0,Q47-ROUND(Q47,)<>0),"No decimal places allowed","") ->  | V47: =VLOOKUP($C47,'Min Max table'!$A$5:$C$208,2,FALSE) -> -400000 | W47: =VLOOKUP($C47,'Min Max table'!$A$5:$C$205,3,FALSE) -> 100000
B48: Other income, including endowment revaluations and investment income | C48: 220 | D48: i | H48: =+I48-G48 -> 0 | L48: =+M48-K48 -> 0 | P48: =+Q48-O48 -> 0 | R48: Include any other revenue income not covered by the above categories e.g. RAAC, donations, business sponsorship, investment income, plus gains or losses on endowments. | S48: =IF(OR(G48-ROUND(G48,)<>0,I48-ROUND(I48,)<>0,K48-ROUND(K48,)<>0,M48-ROUND(M48,)<>0,O48-ROUND(O48,)<>0,Q48-ROUND(Q48,)<>0),"No decimal places allowed","") ->  | V48: =VLOOKUP($C48,'Min Max table'!$A$5:$C$208,2,FALSE) -> -500000 | W48: =VLOOKUP($C48,'Min Max table'!$A$5:$C$205,3,FALSE) -> 100000
B49: Surplus transfers on conversion | C49: Line no. | D49: Help text | E49: Validation
B50: Revenue surplus transfer of an existing academy in / (out) of the trust | C50: 212 | D50: i | E50: =IF(OR(S50<>"",T50<>"",U50<>"",Z50<>""),"Check- see columns S-Z for info","") ->  | H50: =+I50-G50 -> 0 | L50: =+M50-K50 -> 0 | O50: 0 | P50: =+Q50-O50 -> 0 | Q50: 0 | R50: Include all revenue surplus received following the transfer of an existing academy, excluding pensions and fixed assets. Where there is a transfer of a surplus into the trust, enter this figure as a positive figure, increasing your income. Where there is a transfer of a surplus out of the trust, enter this as a negative figure, decreasing your income. | S50: =IF(OR(G50-ROUND(G50,)<>0,I50-ROUND(I50,)<>0,K50-ROUND(K50,)<>0,M50-ROUND(M50,)<>0,O50-ROUND(O50,)<>0,Q50-ROUND(Q50,)<>0),"No decimal places allowed","") ->  | T50: =IF(OR(G50<V50,I50<V50,K50<V50,L50<V50,M50<V50,O50<V50,P50<V50,Q50<V50),"A value is below the minimum value allowed","") ->  | U50: =IF(OR(G50>W50,I50>W50,K50>W50,L50>W50,M50>W50,O50>W50,P50>W50,Q50>W50),"Input value is too high","") ->  | V50: =VLOOKUP($C50,'Min Max table'!$A$5:$C$208,2,FALSE) -> -400000 | W50: =VLOOKUP($C50,'Min Max table'!$A$5:$C$205,3,FALSE) -> 400000
B51: Revenue surplus transfer to academy on conversion | C51: 215 | D51: i | H51: =+I51-G51 -> 0 | L51: =+M51-K51 -> 0 | O51: 0 | P51: =+Q51-O51 -> 0 | R51: Include revenue surplus received or receivable on conversion from local authorities. For example, surpluses received from local authorities on conversion excluding pensions and fixed assets. Enter this as a positive figure. | S51: =IF(OR(G51-ROUND(G51,)<>0,I51-ROUND(I51,)<>0,K51-ROUND(K51,)<>0,M51-ROUND(M51,)<>0,O51-ROUND(O51,)<>0,Q51-ROUND(Q51,)<>0),"No decimal places allowed","") ->  | T51: =IF(OR(G51<V51,I51<V51,K51<V51,L51<V51,M51<V51,O51<V51,P51<V51,Q51<V51),"A value is below the minimum value allowed","") ->  | U51: =IF(OR(G51>W51,I51>W51,K51>W51,L51>W51,M51>W51,O51>W51,P51>W51,Q51>W51),"Input value is too high","") ->  | V51: =VLOOKUP($C51,'Min Max table'!$A$5:$C$208,2,FALSE) -> -400000 | W51: =VLOOKUP($C51,'Min Max table'!$A$5:$C$205,3,FALSE) -> 400000
B52: Subtotal transfers surplus | C52: 218 | G52: =G50+G51 -> 0 | H52: =H50+H51 -> 0 | I52: =I50+I51 -> 0 | K52: =K50+K51 -> 0 | L52: =L50+L51 -> 0 | M52: =M50+M51 -> 0 | O52: =O50+O51 -> 0 | P52: =P50+P51 -> 0 | Q52: =Q50+Q51 -> 0 | V52: =VLOOKUP($C52,'Min Max table'!$A$5:$C$208,2,FALSE) -> 0 | W52: =VLOOKUP($C52,'Min Max table'!$A$5:$C$205,3,FALSE) -> 0
B54: Total Other revenue Income | C54: 250 | E54: =IF(OR(S54<>"",T54<>"",U54<>"",Z54<>""),"Check- see columns S-Z for info","") ->  | G54: =SUM(G44:G48) -> 0 | H54: =SUM(H44:H48) -> 0 | I54: =SUM(I44:I48) -> 0 | K54: =SUM(K44:K48) -> 0 | L54: =SUM(L44:L48) -> 0 | M54: =SUM(M44:M48) -> 0 | O54: =SUM(O44:O48) -> 0 | P54: =SUM(P44:P48) -> 0 | Q54: =SUM(Q44:Q48) -> 0 | R54: Fixed assets donated on conversion or pension donated on conversion should be excluded from other income. | V54: =VLOOKUP($C54,'Min Max table'!$A$5:$C$208,2,FALSE) -> 0 | W54: =VLOOKUP($C54,'Min Max table'!$A$5:$C$205,3,FALSE) -> 0
B56: Transfers between Revenue and Capital (line 585) | C56: 255 | D56: i | E56: =IF(OR(S56<>"",T56<>"",U56<>"",Z56<>""),"Check- see columns S-Z for info","") ->  | H56: =+I56-G56 -> 0 | L56: =+M56-K56 -> 0 | P56: =+Q56-O56 -> 0 | R56: Net transfer between revenue and capital. This should be the planned transfer from revenue reserves or income to the capital budget to spend on capital items. This should normally be a negative figure. However, occasionally a capital grant is spent as per the grant conditions, but the expense has been classified as revenue (for example, roof repairs). In this case you may need to make a transfer from capital to revenue, creating a positive transfer to revenue from capital (i.e. negative balancing line 585). | S56: =IF(OR(G56-ROUND(G56,)<>0,I56-ROUND(I56,)<>0,K56-ROUND(K56,)<>0,M56-ROUND(M56,)<>0,O56-ROUND(O56,)<>0,Q56-ROUND(Q56,)<>0),"No decimal places allowed","") ->  | T56: =IF(OR(G56<V56,I56<V56,K56<V56,L56<V56,M56<V56,O56<V56,P56<V56,Q56<V56),"Transfers values appear too high","") ->  | U56: =IF(OR(G56>W56,I56>W56,K56>W56,L56>W56,M56>W56,O56>W56,P56>W56,Q56>W56),"Transfers to capital is too high","") ->  | V56: =VLOOKUP($C56,'Min Max table'!$A$5:$C$208,2,FALSE) -> -400000 | W56: =VLOOKUP($C56,'Min Max table'!$A$5:$C$205,3,FALSE) -> 400000
B58: Total Revenue Income | C58: 298 | E58: =IF(OR(S58<>"",T58<>"",U58<>"",Z58<>""),"Check- see columns S-Z for info","") ->  | G58: =+G56+G54+G42+G52 -> 0 | H58: =+I58-G58 -> 0 | I58: =+I56+I54+I42+I52 -> 0 | K58: =+K56+K54+K42+K52 -> 0 | L58: =+M58-K58 -> 0 | M58: =+M56+M54+M42+M52 -> 0 | O58: =+O56+O54+O42+O52 -> 0 | P58: =+Q58-O58 -> 0 | Q58: =+Q56+Q54+Q42+Q52 -> 0 | V58: =VLOOKUP($C58,'Min Max table'!$A$5:$C$208,2,FALSE) -> 0 | W58: =VLOOKUP($C58,'Min Max table'!$A$5:$C$205,3,FALSE) -> 0
E59: =IF(OR(S59<>"",T59<>"",U59<>"",Z59<>""),"Check- see columns S-Z for info","") -> 
G62: Prior Year | K62: Current Year | O62: Forecast Year
B63: 2 REVENUE EXPENDITURE | G63: Actuals | H63: Calculated | I63: TOTAL | K63: Actuals | L63: Calculated | M63: TOTAL | O63: Forecast | P63: Calculated | Q63: TOTAL
G64: Sep 23 - Mar 24 | H64: Apr 24 - Aug 24 | I64: 2023/24 | K64: Sep 24 - Mar 25 | L64: Apr 25 - Aug 25 | M64: 2024/25 | O64: Sep 25 - Mar 26 | P64: Apr 26 - Aug 26 | Q64: 2025/26
B65: Staff costs (excluding pension movements) | C65: Line no. | D65: Help text | E65: Validation | G65: £'000 | H65: £'000 | I65: £'000 | K65: £'000 | L65: £'000 | M65: £'000 | O65: £'000 | P65: £'000 | Q65: £'000 | R65: Help Text Guidance
B66: Wages and Salaries | C66: 310 | D66: i | E66: =IF(OR(S66<>"",T66<>"",U66<>"",Z66<>""),"Check- see columns S-Z for info","") ->  | H66: =+I66-G66 -> 0 | L66: =+M66-K66 -> 0 | P66: =+Q66-O66 -> 0 | R66: Include the full costs of employment for all staff employed directly/indirectly by the trust including gross pay, bonuses, overtime, allowances, maternity and sick pay, redundancy costs for staff and bought in supply costs. Exclude third-party IT support - these should be included in line 342 - ICT costs: IT support, which is listed further below in the revenue expenditure section. | S66: =IF(OR(G66-ROUND(G66,)<>0,I66-ROUND(I66,)<>0,K66-ROUND(K66,)<>0,M66-ROUND(M66,)<>0,O66-ROUND(O66,)<>0,Q66-ROUND(Q66,)<>0),"No decimal places allowed","") ->  | T66: =IF(OR(G66<V66,I66<V66,K66<V66,L66<V66,M66<V66,O66<V66,P66<V66,Q66<V66),"A value is below the minimum value allowed","") ->  | U66: =IF(OR(G66>W66,I66>W66,K66>W66,L66>W66,M66>W66,O66>W66,P66>W66,Q66>W66),"Input value is too high","") ->  | V66: =VLOOKUP($C66,'Min Max table'!$A$5:$C$208,2,FALSE) -> 0 | W66: =VLOOKUP($C66,'Min Max table'!$A$5:$C$205,3,FALSE) -> 800000
B67: Social Security Costs | C67: 311 | D67: i | H67: 0 | L67: =+M67-K67 -> 0 | P67: =+Q67-O67 -> 0 | R67: Include the employer’s national insurance and any costs of the apprenticeship levy. | S67: =IF(OR(G67-ROUND(G67,)<>0,I67-ROUND(I67,)<>0,K67-ROUND(K67,)<>0,M67-ROUND(M67,)<>0,O67-ROUND(O67,)<>0,Q67-ROUND(Q67,)<>0),"No decimal places allowed","") ->  | T67: =IF(OR(G67<V67,I67<V67,K67<V67,L67<V67,M67<V67,O67<V67,P67<V67,Q67<V67),"A value is below the minimum value allowed","") ->  | U67: =IF(OR(G67>W67,I67>W67,K67>W67,L67>W67,M67>W67,O67>W67,P67>W67,Q67>W67),"Input value is too high","") ->  | V67: =VLOOKUP($C67,'Min Max table'!$A$5:$C$208,2,FALSE) -> 0 | W67: =VLOOKUP($C67,'Min Max table'!$A$5:$C$205,3,FALSE) -> 200000
B68: Pension Cost: Teaching staff | C68: 320 | D68: i | H68: 0 | L68: =+M68-K68 -> 0 | P68: =+Q68-O68 -> 0 | R68: Include the superannuation contributions relating to teaching staff, i.e. staff members in the teachers' pension scheme including those on the leadership pay scale. It should include actual pension contribution. | S68: =IF(OR(G68-ROUND(G68,)<>0,I68-ROUND(I68,)<>0,K68-ROUND(K68,)<>0,M68-ROUND(M68,)<>0,O68-ROUND(O68,)<>0,Q68-ROUND(Q68,)<>0),"No decimal places allowed","") ->  | V68: =VLOOKUP($C68,'Min Max table'!$A$5:$C$208,2,FALSE) -> 0 | W68: =VLOOKUP($C68,'Min Max table'!$A$5:$C$205,3,FALSE) -> 200000
B69: Pension Cost: Non-teaching staff | C69: 325 | D69: i | H69: 0 | L69: =+M69-K69 -> 0 | P69: =+Q69-O69 -> 0 | R69: Include actual pension contributions and any payments to address the deficit on the LGPS fund, but not include any change in the value of the deficit calculated under FRS102. | S69: =IF(OR(G69-ROUND(G69,)<>0,I69-ROUND(I69,)<>0,K69-ROUND(K69,)<>0,M69-ROUND(M69,)<>0,O69-ROUND(O69,)<>0,Q69-ROUND(Q69,)<>0),"No decimal places allowed","") ->  | V69: =VLOOKUP($C69,'Min Max table'!$A$5:$C$208,2,FALSE) -> 0 | W69: =VLOOKUP($C69,'Min Max table'!$A$5:$C$205,3,FALSE) -> 200000
B70: Total staff costs | C70: 335 | G70: =SUM(G66:G69) -> 0 | H70: =SUM(H66:H69) -> 0 | I70: 0 | K70: =SUM(K66:K69) -> 0 | L70: =SUM(L66:L69) -> 0 | M70: =SUM(M66:M69) -> 0 | O70: =SUM(O66:O69) -> 0 | P70: =SUM(P66:P69) -> 0 | Q70: =SUM(Q66:Q69) -> 0 | V70: =VLOOKUP($C70,'Min Max table'!$A$5:$C$208,2,FALSE) -> 0 | W70: =VLOOKUP($C70,'Min Max table'!$A$5:$C$205,3,FALSE) -> 0
B72: Non - staff costs | C72: Line no. | D72: Help text | E72: Validation
B73: ICT costs - connectivity | C73: 336 | D73: i | E73: =IF(OR(S73<>"",T73<>"",U73<>"",Z73<>""),"Check- see columns S-Z for info","") ->  | H73: =+I73-G73 -> 0 | L73: =+M73-K73 -> 0 | P73: =+Q73-O73 -> 0 | R73: In here, you can include main and backup broadband lines, wireless networks, network switches, network cables, telephony, ISDN, ASDL or other dedicated phone lines, leasing costs associated with connectivity and telephony, safety and security features, such as cyber security and filtering and monitoring, if bundled with connectivity services. Please exclude, connectivity expenditure where costs are capitalised such as installation costs or where phones are not leased. Mobile phones, including hardware and contracts. | S73: =IF(OR(G73-ROUND(G73,)<>0,I73-ROUND(I73,)<>0,K73-ROUND(K73,)<>0,M73-ROUND(M73,)<>0,O73-ROUND(O73,)<>0,Q73-ROUND(Q73,)<>0),"No decimal places allowed","") ->  | T73: =IF(OR(G73<V73,I73<V73,K73<V73,L73<V73,M73<V73,O73<V73,P73<V73,Q73<V73),"A value is below the minimum value allowed","") ->  | U73: =IF(OR(G73>W73,I73>W73,K73>W73,L73>W73,M73>W73,O73>W73,P73>W73,Q73>W73),"Input value is too high","") ->  | V73: =VLOOKUP($C73,'Min Max table'!$A$5:$C$208,2,FALSE) -> 0 | W73: =VLOOKUP($C73,'Min Max table'!$A$5:$C$205,3,FALSE) -> 100000
B74: ICT costs - Onsite servers | C74: 337 | D74: i | E74: =IF(OR(S74<>"",T74<>"",U74<>"",Z74<>""),"Check- see columns S-Z for info","") ->  | H74: 0 | L74: 0 | P74: 0 | R74: In here, you can include purchased or leased onsite physical servers present in the school or Trust where they are not capitalised, onsite servers that support cloud-based storage across a Trust. Please exclude any cloud based storage where the school or trust does not have a physical onsite server, energy costs associated with onsite servers, expenditure on onsite servers where costs are capitalised, repair and maintenance costs. | S74: =IF(OR(G74-ROUND(G74,)<>0,I74-ROUND(I74,)<>0,K74-ROUND(K74,)<>0,M74-ROUND(M74,)<>0,O74-ROUND(O74,)<>0,Q74-ROUND(Q74,)<>0),"No decimal places allowed","") ->  | T74: =IF(OR(G74<V74,I74<V74,K74<V74,L74<V74,M74<V74,O74<V74,P74<V74,Q74<V74),"A value is below the minimum value allowed","") ->  | U74: =IF(OR(G74>W74,I74>W74,K74>W74,L74>W74,M74>W74,O74>W74,P74>W74,Q74>W74),"Input value is too high","") ->  | V74: =VLOOKUP($C74,'Min Max table'!$A$5:$C$208,2,FALSE) -> 0 | W74: =VLOOKUP($C74,'Min Max table'!$A$5:$C$205,3,FALSE) -> 100000
B75: ICT costs - IT learning resources | C75: 338 | D75: i | H75: 0 | L75: 0 | P75: 0 | R75: In here, please include curriculum software to support teaching and learning such as apps and lesson planning tools, subscriptions and licenses associated with educational software and websites, digital learning platforms, e-books. Please exclude resources that are used specifically for administration purposes such as management information systems, safeguarding systems, data storage, laptop, desktops and tablets, including associated licenses, other hardware such as audio-visual screens, printers and keyboards. | V75: =VLOOKUP($C75,'Min Max table'!$A$5:$C$208,2,FALSE) -> 0 | W75: =VLOOKUP($C75,'Min Max table'!$A$5:$C$205,3,FALSE) -> 100000
B76: ICT costs - Administration software and systems | C76: 339 | D76: i | H76: 0 | L76: 0 | P76: 0 | R76: In here, please include administration and management software such as management information systems (MIS), safeguarding, finance, cashless catering, building management and payment portals, operating systems and device licences, unless bundled into the cost of laptops, desktops and tablets. IT hosting, including cloud and data storage, cybersecurity, filtering and monitoring if not part of any connectivity services. Please exclude connectivity such as broadband and telephony, IT learning resources, hardware, inhouse or third party IT support. | V76: =VLOOKUP($C76,'Min Max table'!$A$5:$C$208,2,FALSE) -> 0 | W76: =VLOOKUP($C76,'Min Max table'!$A$5:$C$205,3,FALSE) -> 100000
B77: ICT costs - Laptops, desktops and tablets | C77: 340 | D77: i | H77: 0 | L77: 0 | P77: 0 | R77: In here, please include laptops, desktops and tablets purchased or leased by the school that are used for teaching, learning and administration. Peripherals such as keyboards, mouses and display screens if bundled into the cost of the devices, operating systems and licences if bundled into the cost of devices, and device management tools. Please exclude bring your own device (BYOD) schemes where pupils and or staff are required to bring their own devices such as laptops or tablets. Exclude peripherals that are not bundled into the cost of the devices, any other hardware, expenditure where device costs are capitalised, and IT support unless bundled into the purchase or hire of the devices. | V77: =VLOOKUP($C77,'Min Max table'!$A$5:$C$208,2,FALSE) -> 0 | W77: =VLOOKUP($C77,'Min Max table'!$A$5:$C$205,3,FALSE) -> 100000
B78: ICT costs - Other hardware | C78: 341 | D78: i | H78: 0 | L78: 0 | P78: 0 | R78: In here, please include hardware such as printers and consumables, audio-visual display screens, projectors and CCTV, peripherals such as keyboards and mouses where they are not bundled into laptop, desktop and tablet costs. Include purchase or hire of any hardware where not capitalised. Please exclude laptops, desktops and tablets, onsite servers, software unless bundled as part of the cost of the hardware, expenditure where costs are capitalised. | V78: =VLOOKUP($C78,'Min Max table'!$A$5:$C$208,2,FALSE) -> 0 | W78: =VLOOKUP($C78,'Min Max table'!$A$5:$C$205,3,FALSE) -> 100000
B79: ICT costs - IT support | C79: 342 | D79: i | H79: 0 | L79: 0 | P79: 0 | R79: In here, please include third-party IT support contracts, maintenance and repair of technology, IT related consultancy when not bundled into any other services. Also include the estimated costs of IT support if these are bundled into other services. Please exclude inhouse IT support such as a network or IT manager. This will be included in staff costs. | V79: =VLOOKUP($C79,'Min Max table'!$A$5:$C$208,2,FALSE) -> 0 | W79: =VLOOKUP($C79,'Min Max table'!$A$5:$C$205,3,FALSE) -> 100000
B80: Other Staff Support Costs | C80: 330 | D80: i | E80: =IF(OR(S80<>"",T80<>"",U80<>"",Z80<>""),"Check- see columns S-Z for info","") ->  | H80: =+I80-G80 -> 0 | L80: 0 | P80: 0 | R80: Include any indirect staffing costs such as training and development, staff travel, childcare vouchers, staff related insurance and DBS checks. Exclude IT related training, see line 342 - ICT costs: IT support. | S80: =IF(OR(G80-ROUND(G80,)<>0,I80-ROUND(I80,)<>0,K80-ROUND(K80,)<>0,M80-ROUND(M80,)<>0,O80-ROUND(O80,)<>0,Q80-ROUND(Q80,)<>0),"No decimal places allowed","") ->  | T80: =IF(OR(G80<V80,I80<V80,K80<V80,L80<V80,M80<V80,O80<V80,P80<V80,Q80<V80),"A value is below the minimum value allowed","") ->  | U80: =IF(OR(G80>W80,I80>W80,K80>W80,L80>W80,M80>W80,O80>W80,P80>W80,Q80>W80),"Input value is too high","") ->  | V80: =VLOOKUP($C80,'Min Max table'!$A$5:$C$208,2,FALSE) -> 0 | W80: =VLOOKUP($C80,'Min Max table'!$A$5:$C$205,3,FALSE) -> 200000
B81: Other non staff support costs (cash) | C81: 378 | D81: i | H81: =+I81-G81 -> 0 | L81: 0 | P81: 0 | R81: Include any other revenue expenditure not covered by the above categories e.g. costs of all educational and non-educational supplies and services (including HR/Payroll services from the Local Authority), RPA contributions, building repairs and maintenance costs, (including any service level agreements that relate to the upkeep and maintenance of the school estate) legal and governance costs, land and buildings valuations, bank charges and interest. Don't include revenue deficits on conversion/transfer or ICT costs, any non cash costs such as unwinding of the discount, impairment, depreciation. ICT costs should be included within lines 336 - 342 above. If your trust has any RAAC related expenditure that hasn’t been capitalised, please include this in here. | T81: =IF(OR(G81<V81,I81<V81,K81<V81,L81<V81,M81<V81,O81<V81,P81<V81,Q81<V81),"A value is below the minimum value allowed","") ->  | U81: =IF(OR(G81>W81,I81>W81,K81>W81,L81>W81,M81>W81,O81>W81,P81>W81,Q81>W81),"Input value is too high","") ->  | V81: =VLOOKUP($C81,'Min Max table'!$A$5:$C$208,2,FALSE) -> 0 | W81: =VLOOKUP($C81,'Min Max table'!$A$5:$C$205,3,FALSE) -> 800000
B82: Subtotal support costs | C82: 349 | G82: =SUM(G73:G81) -> 0 | H82: =SUM(H73:H81) -> 0 | I82: =SUM(I73:I81) -> 0 | K82: =SUM(K73:K81) -> 0 | L82: =SUM(L73:L81) -> 0 | M82: =SUM(M73:M81) -> 0 | O82: =SUM(O73:O81) -> 0 | P82: =SUM(P73:P81) -> 0 | Q82: =SUM(Q73:Q81) -> 0 | V82: =VLOOKUP($C82,'Min Max table'!$A$5:$C$208,2,FALSE) -> 0 | W82: =VLOOKUP($C82,'Min Max table'!$A$5:$C$205,3,FALSE) -> 0
B84: Disclosure purposes only | C84: Line no. | D84: Help text | E84: Validation
B85: Building repair & maintenance / Building improvements | C85: 379 | D85: i | E85: =IF(OR(S85<>"",T85<>"",U85<>"",Z85<>""),"Check- see columns S-Z for info","") ->  | H85: =+I85-G85 -> 0 | L85: =+M85-K85 -> 0 | P85: =+Q85-O85 -> 0 | R85: For disclosure only: Include any expenditure that relates to building repair & maintenance / building improvements that have not been capitalised. For example, this could include: roof repairs, heating / boiler replacements, general maintenance and repairs to the building. Only include costs in here that have not been capitalised and added to the trusts balance sheet as a fixed asset. You do not need to alter line 378, as this line (379) is a disclosure only and any repair and maintenance costs within 378 will not be double counted. If your trust is entirely Church owned or has some Church academies, include all spend on building repairs and maintenance / building improvements that your trust has paid for. If your Diocese has paid for this work, do not include in line 378. | S85: =IF(OR(G85-ROUND(G85,)<>0,I85-ROUND(I85,)<>0,K85-ROUND(K85,)<>0,M85-ROUND(M85,)<>0,O85-ROUND(O85,)<>0,Q85-ROUND(Q85,)<>0),"No decimal places allowed","") ->  | T85: =IF(OR(G85<V85,I85<V85,K85<V85,L85<V85,M85<V85,O85<V85,P85<V85,Q85<V85),"A value is below the minimum value allowed","") ->  | U85: =IF(OR(G85>W85,I85>W85,K85>W85,L85>W85,M85>W85,O85>W85,P85>W85,Q85>W85),"Input value is too high","") ->  | V85: =VLOOKUP($C85,'Min Max table'!$A$5:$C$208,2,FALSE) -> 0 | W85: =VLOOKUP($C85,'Min Max table'!$A$5:$C$205,3,FALSE) -> 200000 | X85: ="QU"&AB85 -> QU379 | Y85: =IF(Z85="","","Please refer to "&X85&" in the validations table") ->  | Z85: =IF(ISERROR(AC85),"You have input something incorrectly",IF(AC85>0,AD85,"")) ->  | AB85: 379 | AC85: =IF(OR($G$85>0,$H$85>0,$I$85>0,$K$85>0,$L$85>0,$M$85>0,$O$85>0,$P$85>0,$Q$85>0),AB85,0) -> 0 | AD85: Typically what percentage (%) of the amount entered in line 379 has been funded through capital routes: Enter the estimated percentage of building repair & maintenance / building improvement costs that have been funded through capital routes. This can include: devolved formula capital (DFC) grants from the DfE, condition improvement funding (CIF), school condition allocation (SCA) funding, other DfE capital grants that have been spent on general repairs and maintenance of the trust. Please enter this figure as an actual figure. For example, 98% would be entered as 98. If all of your repairs and maintenance costs in line 379 have been funded through revenue, please enter 0 (zero) in here. | AE85: IF(OR($G$93>0,$H$93>0,$I$93>0,$K$93>0,$L$93>0,$M$93>0,$O$93>0,$P$93>0,$Q$93>0),AB93,0)
B87: Deficit transfers on conversion | C87: Line no. | D87: Help text | E87: Validation
B88: Revenue deficit transfer of an existing academy in / (out) of the trust | C88: 350 | D88: i | E88: =IF(OR(S88<>"",T88<>"",U88<>"",Z88<>""),"Check- see columns S-Z for info","") ->  | H88: =+I88-G88 -> 0 | L88: =+M88-K88 -> 0 | P88: =+Q88-O88 -> 0 | R88: Include all revenue deficit payable following the transfer of an existing academy, excluding pensions and fixed assets. Where there is a transfer of a deficit into the trust, enter this figure as a positive figure, increasing your expenditure. Where there is a transfer of a deficit out of the trust, enter this as a negative figure, decreasing your expenditure. | S88: =IF(OR(G88-ROUND(G88,)<>0,I88-ROUND(I88,)<>0,K88-ROUND(K88,)<>0,M88-ROUND(M88,)<>0,O88-ROUND(O88,)<>0,Q88-ROUND(Q88,)<>0),"No decimal places allowed","") ->  | T88: =IF(OR(G88<V88,I88<V88,K88<V88,L88<V88,M88<V88,O88<V88,P88<V88,Q88<V88),"A value is below the minimum value allowed","") ->  | U88: =IF(OR(G88>W88,I88>W88,K88>W88,L88>W88,M88>W88,O88>W88,P88>W88,Q88>W88),"Input value is too high","") ->  | V88: =VLOOKUP($C88,'Min Max table'!$A$5:$C$208,2,FALSE) -> -200000 | W88: =VLOOKUP($C88,'Min Max table'!$A$5:$C$205,3,FALSE) -> 200000
B89: Revenue deficit transfer to academy on conversion | C89: 351 | D89: i | H89: 0 | L89: =+M89-K89 -> 0 | P89: =+Q89-O89 -> 0 | R89: Include revenue deficit payable on conversion from local authorities, e.g. deficits received from local authorities on conversion excluding pensions and fixed assets. Enter this as a positive figure. | S89: =IF(OR(G89-ROUND(G89,)<>0,I89-ROUND(I89,)<>0,K89-ROUND(K89,)<>0,M89-ROUND(M89,)<>0,O89-ROUND(O89,)<>0,Q89-ROUND(Q89,)<>0),"No decimal places allowed","") ->  | T89: =IF(OR(G89<V89,I89<V89,K89<V89,L89<V89,M89<V89,O89<V89,P89<V89,Q89<V89),"A value is below the minimum value allowed","") ->  | U89: =IF(OR(G89>W89,I89>W89,K89>W89,L89>W89,M89>W89,O89>W89,P89>W89,Q89>W89),"Input value is too high","") ->  | V89: =VLOOKUP($C89,'Min Max table'!$A$5:$C$208,2,FALSE) -> 0 | W89: =VLOOKUP($C89,'Min Max table'!$A$5:$C$205,3,FALSE) -> 200000
B90: Subtotal transfer deficit | C90: 352 | G90: =SUM(G88:G89) -> 0 | H90: =SUM(H88:H89) -> 0 | I90: 0 | K90: =SUM(K88:K89) -> 0 | L90: =SUM(L88:L89) -> 0 | M90: =SUM(M88:M89) -> 0 | O90: =SUM(O88:O89) -> 0 | P90: =SUM(P88:P89) -> 0 | Q90: =SUM(Q88:Q89) -> 0 | V90: =VLOOKUP($C90,'Min Max table'!$A$5:$C$208,2,FALSE) -> 0 | W90: =VLOOKUP($C90,'Min Max table'!$A$5:$C$205,3,FALSE) -> 0
B92: Other Non cash costs | C92: 395 | D92: i | E92: =IF(OR(S92<>"",T92<>"",U92<>"",Z92<>""),"Check- see columns S-Z for info","") ->  | H92: =+I92-G92 -> 0 | L92: =+M92-K92 -> 0 | P92: =+Q92-O92 -> 0 | R92: Only include any non cash costs that flow into revenue reserves. If non cash costs feed the pensions reserve or the capital fund then please exclude. An example is where depreciation flows into the capital fund- in this case this should not be included here. Instead it should be disclosed in the other items section below. If you include impairment charges in revenue reserves then please provide an explanation following the validation query. Please include other non cash items such as provisions ( but not pension liabilities) or unwinding of the discount. | S92: =IF(OR(G92-ROUND(G92,)<>0,H92-ROUND(H92,)<>0,I92-ROUND(I92,)<>0,K92-ROUND(K92,)<>0,L92-ROUND(L92,)<>0,M92-ROUND(M92,)<>0,O92-ROUND(O92,)<>0,P92-ROUND(P92,)<>0,Q92-ROUND(Q92,)<>0),"No decimal places allowed","") ->  | T92: =IF(OR(G92<V92,H92<V92,I92<V92,K92<V92,L92<V92,M92<V92,O92<V92,P92<V92,Q92<V92),"A value is below the minimum value allowed","") ->  | U92: =IF(OR(G92>W92,H92>W92,I92>W92,K92>W92,L92>W92,M92>W92,O92>W92,P92>W92,Q92>W92),"Input value is too high","") ->  | V92: =VLOOKUP($C92,'Min Max table'!$A$5:$C$208,2,FALSE) -> 0 | W92: =VLOOKUP($C92,'Min Max table'!$A$5:$C$205,3,FALSE) -> 200000 | X92: ="QU"&AB92 -> QU23 | Y92: =IF(Z92="","","Please refer to "&X92&" in the validations table") ->  | Z92: =IF(AC92>0,AD92,"") ->  | AA92: =VLOOKUP(X92,'Trust validations table'!$A$15:$E$346,4,FALSE) -> Revenue expenditure: Line 395 - Other Non cash costs | AB92: 23 | AC92: =IF(OR($G$92>0,$H$92>0,$I$92>0,$K$92>0,$L$92>0,$M$92>0,$O$92>0,$P$92>0,$Q$92>0),AB92,0) -> 0 | AD92: Provide further details of your non-cash costs. | AE92: IF(OR($G$86>0,$H$86>0,$I$86,$K$86>0,$L$86>0,$M$86>0,$O$86>0,$P$86>0,$Q$86>0),AB86,0)
B94: Total revenue expenditure | C94: 380 | E94: =IF(OR(S94<>"",T94<>"",U94<>"",Z94<>""),"Check- see columns S-Z for info","") ->  | G94: =SUM(G70, G82, G90,G92) -> 0 | H94: =SUM(H70, H82, H90,H92) -> 0 | I94: =SUM(I70, I82, I90,I92) -> 0 | K94: =SUM(K70,K82,K90,K92) -> 0 | L94: =SUM(L70,L82,L90,L92) -> 0 | M94: 0 | O94: 0 | P94: 0 | Q94: 0 | V94: =VLOOKUP($C94,'Min Max table'!$A$5:$C$208,2,FALSE) -> 0 | W94: =VLOOKUP($C94,'Min Max table'!$A$5:$C$205,3,FALSE) -> 0 | X94: ="QU"&AB94 -> QU5 | Y94: =IF(Z94="","","Please refer to "&X94&" in the validations table") ->  | Z94: =IF(ISERROR(AC94),"Your income or expense totals are NIL for Yr1- is this correct?",IF(AC94>0,AD94,"")) ->  | AA94: =VLOOKUP(X94,'Trust validations table'!$A$15:$E$346,4,FALSE) -> Revenue expenditure: Line 380 - Total revenue expenditure | AB94: 5 | AC94: =IF($Q$94=0,0,IF(($Q$66+$Q$67+$Q$68+$Q$69)/$Q$94>0.85,$AB94,0)) -> 0 | AD94: Your forecast year staff costs (lines 310, 311, 320 and 325) are forecast to be more than 85% of your total revenue expenditure. Please provide further information on your staff costs and the high proportion it represents of total costs | AE94: IF($Q$83=0,0,IF(($Q$65+$Q$66+$Q$67+$Q$68)/$Q$83>0.85,$AB83,0))
G97: Prior Year | K97: Current Year | O97: Forecast Year
B98: 3 REVENUE TOTALS | E98: =IF(OR(S98<>"",T98<>"",U98<>"",Z98<>""),"Check- see columns S-Z for info","") -> Check- see columns S-Z for info | G98: Actuals | H98: Calculated | I98: TOTAL | K98: Calculated | L98: Calculated | M98: TOTAL | O98: Calculated | P98: Calculated | Q98: TOTAL | X98: ="QU"&AB98 -> QU3 | Y98: =IF(Z98="","","Please refer to "&X98&" in the validations table") -> Please refer to QU3 in the validations table | Z98: =IF(ISERROR(AC98),"Income totals are zero in any year - is this correct?",IF(AC98>0,AD98,"")) -> Income totals are zero in any year - is this correct? | AA98: =VLOOKUP(X98,'Trust validations table'!$A$15:$E$346,4,FALSE) -> Revenue totals | AB98: 3 | AC98: =IF(AND($Q$58/$M$58<0.9,$Q$94/$M$94>0.9),AB98,0) ->  | AD98: Tell us why your forecast year income is forecast to decline by more than 10% compared to the current year, without a corresponding decrease in expenditure. | AE98: IF(AND($Q$61/$M$61<0.9,$Q$88/$M$88>0.9),AB92,0)
E99: Check- see columns S-Z for info | G99: Sep 23 - Mar 24 | H99: Apr 24 - Aug 24 | I99: 2023/24 | K99: Sep 24 - Mar 25 | L99: Apr 25 - Aug 25 | M99: 2024/25 | O99: Sep 25 - Mar 26 | P99: Apr 26 - Aug 26 | Q99: 2025/26 | X99: ="QU"&AB99 -> QU4 | Y99: =IF(Z99="","","Please refer to "&X99&" in the validations table") -> Please refer to QU4 in the validations table | Z99: =IF(ISERROR(AC99),"Expenditure totals are zero for any year - is this correct?",IF(AC99>0,AD99,"")) -> Expenditure totals are zero for any year - is this correct? | AA99: =VLOOKUP(X99,'Trust validations table'!$A$15:$E$346,4,FALSE) -> Revenue totals | AB99: 4 | AC99: =IF(AND($Q$58/$M$58<1.1,$Q$94/$M$94>1.1),AB99,0) ->  | AD99: Tell us why forecast year expenditure is forecast to increase by more than 10% compared to the current year, without a corresponding increase in income. | AE99: IF(AND($Q$61/$M$61<1.1,$Q$88/$M$88>1.1),AB93,0)
G100: £'000 | H100: £'000 | I100: £'000 | K100: £'000 | L100: £'000 | M100: £'000 | O100: £'000 | P100: £'000 | Q100: £'000
B101: Net revenue income/(expenditure) for the period | C101: 400 | E101: =IF(OR(S101<>"",T101<>"",U101<>"",Z101<>""),"Check- see columns S-Z for info","") ->  | G101: =+G58-G94 -> 0 | H101: =+H58-H94 -> 0 | I101: =+I58-I94 -> 0 | K101: =+K58-K94 -> 0 | L101: =+L58-L94 -> 0 | M101: =+M58-M94 -> 0 | O101: =+O58-O94 -> 0 | P101: =+P58-P94 -> 0 | Q101: =+Q58-Q94 -> 0 | V101: =VLOOKUP($C101,'Min Max table'!$A$5:$C$208,2,FALSE) -> 0 | W101: =VLOOKUP($C101,'Min Max table'!$A$5:$C$205,3,FALSE) -> 0 | X101: ="QU"&AB101 -> QU6 | Y101: =IF(Z101="","","Please refer to "&X101&" in the validations table") ->  | Z101: =IF(AC101>0,AD101,"") ->  | AA101: =VLOOKUP(X101,'Trust validations table'!$A$15:$E$346,4,FALSE) -> Revenue totals: Line 400 - Net revenue income/(expenditure) for the period | AB101: 6 | AC101: =IF(OR($I$101<0,$M$101<0,$Q$101<0),AB101,0) -> 0 | AD101: The budget shows a deficit on revenue funds in the prior year, current year or forecast year. Tell us: - why revenue income/(expenditure) balance has fallen into a deficit position - what action you're taking to restore the revenue income/(expenditure) balance to a surplus - when you're likely to achieve a balanced budget, as required by the Academy Trust Handbook - whether you have an agreed recovery plan with the DfE | AE101: IF(OR($I$90<0,$M$90<0,$Q$90),AB90,0)
E102: =IF(OR(S102<>"",T102<>"",U102<>"",Z102<>""),"Check- see columns S-Z for info","") ->  | G102: Actuals | H102: Calculated | K102: Actuals | L102: Calculated | O102: Calculated | P102: Calculated
G103: Balance b/f 1 Sep 23 | H103: Balance b/f 1 Apr 24 | K103: Balance b/f 1 Sep 24 | L103: Balance b/f 1 Apr 25 | O103: Balance b/f 1 Sep 25 | P103: Balance b/f 1 Apr 26
G104: £'000 | H104: £'000 | K104: £'000 | L104: £'000 | O104: £'000 | P104: £'000 | R104: Help Text Guidance
B105: Balance b/f from previous period | C105: 410 | D105: i | E105: =IF(OR(S105<>"",T105<>"",U105<>"",Z105<>""),"Check- see columns S-Z for info","") -> Check- see columns S-Z for info | H105: =G110 -> 0 | K105: =H110 -> 0 | L105: =K110 -> 0 | O105: =L110 -> 0 | P105: =O110 -> 0 | R105: We have pre-populated your balance b/f for 1 Sep 23 with the figures from your prior year accounts return. A worked example is within the guidance. The figures for this can be found in your statutory accounts (please refer to the AAD for guidance). Assuming no structural changes, the amount should agree to the sum of ‘Endowment Fund’, ‘Restricted Income Fund’ and ‘Unrestricted Fund’ in the Balance Sheet Summary of the prior year accounts return. Don’t include capital funds or pension reserves. Do include any gains / losses on endowments. | S105: =IF(OR(G105-ROUND(G105,)<>0),"No decimal places allowed","") ->  | T105: =IF(OR(G105<V105),"Input value is too low","") ->  | U105: =IF(OR(G105>W105),"Input value is too high","") ->  | V105: =VLOOKUP($C105,'Min Max table'!$A$5:$C$208,2,FALSE) -> -400000 | W105: =VLOOKUP($C105,'Min Max table'!$A$5:$C$205,3,FALSE) -> 400000 | X105: ="QU"&AB105 -> QU7 | Y105: =IF(Z105="","","Please refer to "&X105&" in the validations table") -> Please refer to QU7 in the validations table | Z105: =IF(AC105>0,AD105,"") -> Explain where the opening balance (410) is derived from. This should be from the prior year's Accounts Return. | AA105: =VLOOKUP(X105,'Trust validations table'!$A$15:$E$346,4,FALSE) -> Revenue totals: Line 410 - Balance b/f from previous period | AB105: 7 | AC105: 9 | AD105: Explain where the opening balance (410) is derived from. This should be from the prior year's Accounts Return. | AE105: IF(OR(G94="",G94=0,G94<>0),AB94,0)
E106: =IF(OR(S106<>"",T106<>"",U106<>"",Z106<>""),"Check- see columns S-Z for info","") -> Check- see columns S-Z for info | X106: ="QU"&AB106 -> QU8 | Y106: =IF(Z106="","","Please refer to "&X106&" in the validations table") -> Please refer to QU8 in the validations table | Z106: =IF(AC106>0,AD106,"") -> Please explain why the balance brought forward from previous period (410) is £0 | AA106: =VLOOKUP(X106,'Trust validations table'!$A$15:$E$346,4,FALSE) -> Revenue totals | AB106: 8 | AC106: =IF(OR(G105="",$G$105=0),AB106,0) -> 8 | AD106: Please explain why the balance brought forward from previous period (410) is £0 | AE106: IF(OR(G94="",$G$94=0),AB95,0)
G107: Calculated | H107: Calculated | K107: Calculated | L107: Calculated | O107: Calculated | P107: Calculated
G108: Balance c/f 31 Mar 24 | H108: Balance c/f 31 Aug 24 | K108: Balance c/f 31 Mar 25 | L108: Balance c/f 31 Aug 25 | O108: Balance c/f 31 Mar 26 | P108: Balance c/f 31 Aug 26
E109: =IF(OR(S109<>"",T109<>"",U109<>"",Z109<>""),"Check- see columns S-Z for info","") ->  | G109: £'000 | H109: £'000 | K109: £'000 | L109: £'000 | O109: £'000 | P109: £'000 | X109: ="QU"&AB109 -> QU9 | Y109: =IF(Z109="","","Please refer to "&X109&" in the validations table") ->  | Z109: =IF(AC109>0,AD109,"") ->  | AA109: =VLOOKUP(X109,'Trust validations table'!$A$15:$E$346,4,FALSE) -> Revenue totals | AB109: 9 | AC109: =IF(AND($Q$101<0,$P$110>0,$Q$101*-1>$P$110),AB109,0) -> 0 | AD109: For the forecast year, you've forecast a positive closing balance but a high in-year deficit. This can lead to reserves being depleted in future years and the academy being in a deficit position. Tell us what actions you're taking to ensure a balanced/surplus budget will be maintained." | AE109: IF(AND($Q$90<0,$P$99>0,$Q$90*-1>$P$99),AB98,0)
B110: Balance c/f to next period | C110: 430 | D110: i | E110: =IF(OR(S110<>"",T110<>"",U110<>"",Z110<>""),"Check- see columns S-Z for info","") ->  | G110: =+G101+G105 -> 0 | H110: =+H101+H105 -> 0 | K110: =+K101+K105 -> 0 | L110: =+L101+L105 -> 0 | O110: =+O101+O105 -> 0 | P110: =+P101+P105 -> 0 | R110: This is an automatic sum of lines 400 and 410. Provide an explanation where there are any deficits. | V110: =VLOOKUP($C110,'Min Max table'!$A$5:$C$208,2,FALSE) -> 0 | W110: =VLOOKUP($C110,'Min Max table'!$A$5:$C$205,3,FALSE) -> 0 | X110: ="QU"&AB110 -> QU10 | Y110: =IF(Z110="","","Please refer to "&X110&" in the validations table") ->  | Z110: =IF(AC110>0,AD110,"") ->  | AA110: =VLOOKUP(X110,'Trust validations table'!$A$15:$E$346,4,FALSE) -> Revenue totals: Line 430 - Balance c/f to next period | AB110: 10 | AC110: =IF(OR(L110<0,H110<0,P110<0),AB110,0) -> 0 | AD110: Your closing reserves for either the prior year, current year or forecast year are currently in deficit. What are your plans to return to a balanced/surplus position? | AE110: IF(OR(L99<0,H99<0,P99<0),AB99,0)
E113: =IF((L110/M58>=0.2),"Check- see column Z for info","") ->  | X113: ="QU"&AB113 -> QU430 | Y113: =IF(Z113="","","Please refer to "&X113&" in the validations table") ->  | Z113: =IF(AC113>0,AD113,"") ->  | AA113: 430 divided by 298 equal to or greater than 20% | AB113: 430 | AC113: =IF(OR(L110/M58>=0.2),AB113,0) ->  | AD113: The figures you have entered show that your trust has a reserve balance of more than 20% of your income for April 2022 to August 2023. If applicable, what capital projects (specific building or estates projects; non-building capital works etc..) are planned, how much will they cost and when are they expected to complete? Or if not for capital works, what are you holding reserves for (staff retention & development; strategic development/growth; future uncertainty; other)? | AE113: IFERROR(IF(OR(P104/Q61>=0.2),AB107,0),"")
G125: Prior Year | K125: Current Year | O125: Forecast Year
B126: CAPITAL | G126: Actuals | H126: Calculated | I126: TOTAL | K126: Actuals | L126: Calculated | M126: TOTAL | O126: Forecast | P126: Calculated | Q126: TOTAL
B127: 4 CAPITAL INCOME | G127: Sep 23 - Mar 24 | H127: Apr 24 - Aug 24 | I127: 2023/24 | K127: Sep 24 - Mar 25 | L127: Apr 25 - Aug 25 | M127: 2024/25 | O127: Sep 25 - Mar 26 | P127: Apr 26 - Aug 26 | Q127: 2025/26
B128: DfE income- Capital | C128: Line no. | D128: Help text | E128: Validation | G128: £'000 | H128: £'000 | I128: £'000 | K128: £'000 | L128: £'000 | M128: £'000 | O128: £'000 | P128: £'000 | Q128: £'000 | R128: Help Text Guidance
B129: Devolved formula capital | C129: 510 | D129: i | E129: =IF(OR(S129<>"",T129<>"",U129<>"",Z129<>""),"Check- see columns S-Z for info","") ->  | H129: =+I129-G129 -> 0 | L129: =+M129-K129 -> 0 | P129: =+Q129-O129 -> 0 | R129: Input total amount of capital funding grant receivable from DfE. | S129: =IF(OR(G129-ROUND(G129,)<>0,I129-ROUND(I129,)<>0,K129-ROUND(K129,)<>0,M129-ROUND(M129,)<>0,O129-ROUND(O129,)<>0,Q129-ROUND(Q129,)<>0),"No decimal places allowed","") ->  | T129: =IF(OR(G129<V129,I129<V129,K129<V129,L129<V129,M129<V129,O129<V129,P129<V129,Q129<V129),"A value is below the minimum value allowed","") ->  | U129: =IF(OR(G129>W129,I129>W129,K129>W129,L129>W129,M129>W129,O129>W129,P129>W129,Q129>W129),"Input value is too high","") ->  | V129: =VLOOKUP($C129,'Min Max table'!$A$5:$C$208,2,FALSE) -> -400000 | W129: =VLOOKUP($C129,'Min Max table'!$A$5:$C$205,3,FALSE) -> 400000
B130: Value of any capital donation of an asset from the DfE for PSBP/Free Schools programme | C130: 520 | D130: i | H130: =+I130-G130 -> 0 | L130: =+M130-K130 -> 0 | P130: =+Q130-O130 -> 0 | R130: Include the value of any asset that has been transferred, or due to be transferred from the DfE to the trust where the DfE has procured the capital works centrally under the Priority Schools Building Programme (PSBP) or Free Schools Programme. This should equal row 605. | S130: =IF(OR(G130-ROUND(G130,)<>0,I130-ROUND(I130,)<>0,K130-ROUND(K130,)<>0,M130-ROUND(M130,)<>0,O130-ROUND(O130,)<>0,Q130-ROUND(Q130,)<>0),"No decimal places allowed","") ->  | T130: =IF(OR(G130<V130,I130<V130,K130<V130,L130<V130,M130<V130,O130<V130,P130<V130,Q130<V130),"A value is below the minimum value allowed","") ->  | U130: =IF(OR(G130>W130,I130>W130,K130>W130,L130>W130,M130>W130,O130>W130,P130>W130,Q130>W130),"Input value is too high","") ->  | V130: =VLOOKUP($C130,'Min Max table'!$A$5:$C$208,2,FALSE) -> -400000 | W130: =VLOOKUP($C130,'Min Max table'!$A$5:$C$205,3,FALSE) -> 400000
B131: Other DfE income - Capital | C131: 530 | D131: i | H131: =+I131-G131 -> 0 | L131: =+M131-K131 -> 0 | P131: 0 | R131: Include the amount of any capital grants received from the DfE that is not included in lines 510 or 520, for example CIF/SCA funding. If you have received any RAAC funding that relates to capital, please include this here. | S131: =IF(OR(G131-ROUND(G131,)<>0,I131-ROUND(I131,)<>0,K131-ROUND(K131,)<>0,M131-ROUND(M131,)<>0,O131-ROUND(O131,)<>0,Q131-ROUND(Q131,)<>0),"No decimal places allowed","") ->  | V131: =VLOOKUP($C131,'Min Max table'!$A$5:$C$208,2,FALSE) -> -400000 | W131: =VLOOKUP($C131,'Min Max table'!$A$5:$C$205,3,FALSE) -> 400000
B132: Other DfE family Capital Grants | C132: 540 | D132: i | H132: =+I132-G132 -> 0 | L132: =+M132-K132 -> 0 | P132: 0 | R132: Enter the value of any capital grants from DfE family bodies, such as the national college, equalities and human rights commission, office of the children's commissioner or the standards and testing agency. | S132: =IF(OR(G132-ROUND(G132,)<>0,I132-ROUND(I132,)<>0,K132-ROUND(K132,)<>0,M132-ROUND(M132,)<>0,O132-ROUND(O132,)<>0,Q132-ROUND(Q132,)<>0),"No decimal places allowed","") ->  | V132: =VLOOKUP($C132,'Min Max table'!$A$5:$C$208,2,FALSE) -> -400000 | W132: =VLOOKUP($C132,'Min Max table'!$A$5:$C$205,3,FALSE) -> 400000
B133: Total DfE Capital Income | C133: 550 | G133: =SUM(G129:G132) -> 0 | H133: =+I133-G133 -> 0 | I133: =SUM(I129:I132) -> 0 | K133: =SUM(K129:K132) -> 0 | L133: =+M133-K133 -> 0 | M133: =SUM(M129:M132) -> 0 | O133: =SUM(O129:O132) -> 0 | P133: 0 | Q133: =SUM(Q129:Q132) -> 0 | V133: =VLOOKUP($C133,'Min Max table'!$A$5:$C$208,2,FALSE) -> 0 | W133: =VLOOKUP($C133,'Min Max table'!$A$5:$C$205,3,FALSE) -> 0
B135: Other income - Capital | C135: Line no. | D135: Help text | E135: Validation
B136: Local authority capital income (cash) | C136: 560 | D136: i | E136: =IF(OR(S136<>"",T136<>"",U136<>"",Z136<>""),"Check- see columns S-Z for info","") ->  | H136: =+I136-G136 -> 0 | L136: =+M136-K136 -> 0 | P136: 0 | R136: Include any local authority capital funding receivable. This should be cash payments only. Include unspent grants (cash) including any capital balances on conversion. This is the cash reserves balances on conversion only. | S136: =IF(OR(G136-ROUND(G136,)<>0,I136-ROUND(I136,)<>0,K136-ROUND(K136,)<>0,M136-ROUND(M136,)<>0,O136-ROUND(O136,)<>0,Q136-ROUND(Q136,)<>0),"No decimal places allowed","") ->  | T136: =IF(OR(G136<V136,I136<V136,K136<V136,L136<V136,M136<V136,O136<V136,P136<V136,Q136<V136),"A value is below the minimum value allowed","") ->  | U136: =IF(OR(G136>W136,I136>W136,K136>W136,L136>W136,M136>W136,O136>W136,P136>W136,Q136>W136),"Input value is too high","") ->  | V136: =VLOOKUP($C136,'Min Max table'!$A$5:$C$208,2,FALSE) -> -400000 | W136: =VLOOKUP($C136,'Min Max table'!$A$5:$C$205,3,FALSE) -> 400000 | X136: ="QU"&AB136 -> QU13 | Y136: =IF(Z136="","","Please refer to "&X136&" in the validations table") ->  | Z136: =IF(AC136>0,AD136,"") ->  | AA136: =VLOOKUP(X136,'Trust validations table'!$A$15:$E$346,4,FALSE) -> Capital income: Line 560 - Local authority capital income (cash) | AB136: 13 | AC136: =IF(OR($G$136>0,$H$136>0,$I$136>0,$K$136>0,$L$136>0,$M$136>0,$O$136>0,$P$136>0,$Q$136>0),AB136,0) -> 0 | AD136: Confirm that this relates to cash receivables only and doesn't include donated assets or conversions. | AE136: IF(OR($G$113>0,$H$113>0,$I$113>0,$K$113>0,$L$113>0,$M$113>0,$O$113>0,$P$113>0,$Q$113>0),AB113,0)
B137: Non Government capital income | C137: 570 | D137: i | H137: =+I137-G137 -> 0 | L137: =+M137-K137 -> 0 | P137: 0 | R137: Include voluntary, private capital, donations for use as capital or endowment funds or any other non-government capital income. Specify what each is in the comments section. | S137: =IF(OR(G137-ROUND(G137,)<>0,I137-ROUND(I137,)<>0,K137-ROUND(K137,)<>0,M137-ROUND(M137,)<>0,O137-ROUND(O137,)<>0,Q137-ROUND(Q137,)<>0),"No decimal places allowed","") ->  | T137: =IF(OR(G137<V137,I137<V137,K137<V137,L137<V137,M137<V137,O137<V137,P137<V137,Q137<V137),"A value is below the minimum value allowed","") ->  | U137: =IF(OR(G137>W137,I137>W137,K137>W137,L137>W137,M137>W137,O137>W137,P137>W137,Q137>W137),"Input value is too high","") ->  | V137: =VLOOKUP($C137,'Min Max table'!$A$5:$C$208,2,FALSE) -> -400000 | W137: =VLOOKUP($C137,'Min Max table'!$A$5:$C$205,3,FALSE) -> 400000 | X137: ="QU"&AB137 -> QU11 | Y137: =IF(Z137="","","Please refer to "&X137&" in the validations table") ->  | Z137: =IF(AC137>0,AD137,"") ->  | AA137: =VLOOKUP(X137,'Trust validations table'!$A$15:$E$346,4,FALSE) -> Capital income: Line 570 - Non Government capital income | AB137: 11 | AC137: =IF(OR($G$137>0,$H$137>0,$I$137>0,$K$137>0,$L$137>0,$M$137>0,$O$137>0,$P$137>0,$Q$137>0),AB137,0) -> 0 | AD137: Provide further details of your non government capital income | AE137: IF(OR($G$114>0,$H$114>0,$I$114>0,$K$114>0,$L$114>0,$M$114>0,$O$114>0,$P$114>0,$Q$114>0),AB114,0)
B138: Other Government Grant capital income | C138: 571 | D138: i | H138: =+I138-G138 -> 0 | L138: =+M138-K138 -> 0 | P138: 0 | R138: Include any other government capital grants received that are not included in the above lines. Specify which government body the grants are from in the comments column. | S138: =IF(OR(G138-ROUND(G138,)<>0,I138-ROUND(I138,)<>0,K138-ROUND(K138,)<>0,M138-ROUND(M138,)<>0,O138-ROUND(O138,)<>0,Q138-ROUND(Q138,)<>0),"No decimal places allowed","") ->  | V138: =VLOOKUP($C138,'Min Max table'!$A$5:$C$208,2,FALSE) -> -400000 | W138: =VLOOKUP($C138,'Min Max table'!$A$5:$C$205,3,FALSE) -> 400000 | X138: ="QU"&AB138 -> QU12 | Y138: =IF(Z138="","","Please refer to "&X138&" in the validations table") ->  | Z138: =IF(AC138>0,AD138,"") ->  | AA138: =VLOOKUP(X138,'Trust validations table'!$A$15:$E$346,4,FALSE) -> Capital income: Line 571 - Other Government Grant capital income | AB138: 12 | AC138: =IF(OR($G$138>0,$H$138>0,$I$138>0,$K$138>0,$L$138>0,$M$138>0,$O$138>0,$P$138>0,$Q$138>0),AB138,0) -> 0 | AD138: Provide further details of your other government capital income. | AE138: IF(OR($G$115>0,$H$115>0,$I$115>0,$K$115>0,$L$115>0,$M$115>0,$O$115>0,$P$115>0,$Q$115>0),AB115,0)
B139: Endowment releases to fund capital expenditure | C139: 574 | D139: i | H139: =+I139-G139 -> 0 | L139: =+M139-K139 -> 0 | P139: 0 | R139: Include where there have been any releases from endowments reserves to fund capital expenditure. | S139: =IF(OR(G139-ROUND(G139,)<>0,I139-ROUND(I139,)<>0,K139-ROUND(K139,)<>0,M139-ROUND(M139,)<>0,O139-ROUND(O139,)<>0,Q139-ROUND(Q139,)<>0),"No decimal places allowed","") ->  | V139: =VLOOKUP($C139,'Min Max table'!$A$5:$C$208,2,FALSE) -> 0 | W139: =VLOOKUP($C139,'Min Max table'!$A$5:$C$205,3,FALSE) -> 400000
B140: Local authority donated assets | C140: 575 | D140: i | H140: 0 | L140: =+M140-K140 -> 0 | P140: 0 | R140: Include any donated assets from local authorities. This will equal line 606 (local authority donated assets expense). | S140: =IF(OR(G140-ROUND(G140,)<>0,I140-ROUND(I140,)<>0,K140-ROUND(K140,)<>0,M140-ROUND(M140,)<>0,O140-ROUND(O140,)<>0,Q140-ROUND(Q140,)<>0),"No decimal places allowed","") ->  | V140: =VLOOKUP($C140,'Min Max table'!$A$5:$C$208,2,FALSE) -> 0 | W140: =VLOOKUP($C140,'Min Max table'!$A$5:$C$205,3,FALSE) -> 400000
B141: Total Other Capital Income | C141: 580 | G141: =SUM(G136:G140) -> 0 | H141: =SUM(H136:H140) -> 0 | I141: =SUM(I136:I140) -> 0 | K141: =SUM(K136:K140) -> 0 | L141: =SUM(L136:L140) -> 0 | M141: =SUM(M136:M140) -> 0 | O141: =SUM(O136:O140) -> 0 | P141: =SUM(P136:P140) -> 0 | Q141: =SUM(Q136:Q140) -> 0 | V141: =VLOOKUP($C141,'Min Max table'!$A$5:$C$208,2,FALSE) -> 0 | W141: =VLOOKUP($C141,'Min Max table'!$A$5:$C$205,3,FALSE) -> 0
B144: Disposals | C144: Line no. | D144: Help text | E144: Validation
B145: Land & buildings disposals | C145: 581 | D145: i | E145: =IF(OR(S145<>"",T145<>"",U145<>"",Z145<>""),"Check- see columns S-Z for info","") ->  | H145: =+I145-G145 -> 0 | L145: =+M145-K145 -> 0 | P145: =+Q145-O145 -> 0 | R145: Disposal proceeds only – include the NBV on disposal of assets for land and buildings. | S145: =IF(OR(G145-ROUND(G145,)<>0,I145-ROUND(I145,)<>0,K145-ROUND(K145,)<>0,M145-ROUND(M145,)<>0,O145-ROUND(O145,)<>0,Q145-ROUND(Q145,)<>0),"No decimal places allowed","") ->  | T145: =IF(OR(G145<V145,I145<V145,K145<V145,L145<V145,M145<V145,O145<V145,P145<V145,Q145<V145),"A value is below the minimum value allowed","") ->  | U145: =IF(OR(G145>W145,I145>W145,K145>W145,L145>W145,M145>W145,O145>W145,P145>W145,Q145>W145),"Input value is too high","") ->  | V145: =VLOOKUP($C145,'Min Max table'!$A$5:$C$208,2,FALSE) -> 0 | W145: =VLOOKUP($C145,'Min Max table'!$A$5:$C$205,3,FALSE) -> 400000
B146: Other fixed assets disposals | C146: 582 | D146: i | H146: =+I146-G146 -> 0 | L146: =+M146-K146 -> 0 | P146: =+Q146-O146 -> 0 | R146: Disposal proceeds only – include the NBV from the disposal of assets for other fixed assets. | S146: =IF(OR(G146-ROUND(G146,)<>0,I146-ROUND(I146,)<>0,K146-ROUND(K146,)<>0,M146-ROUND(M146,)<>0,O146-ROUND(O146,)<>0,Q146-ROUND(Q146,)<>0),"No decimal places allowed","") ->  | T146: =IF(OR(G146<V146,I146<V146,K146<V146,L146<V146,M146<V146,O146<V146,P146<V146,Q146<V146),"A value is below the minimum value allowed","") ->  | U146: =IF(OR(G146>W146,I146>W146,K146>W146,L146>W146,M146>W146,O146>W146,P146>W146,Q146>W146),"Input value is too high","") ->  | V146: =VLOOKUP($C146,'Min Max table'!$A$5:$C$208,2,FALSE) -> 0 | W146: =VLOOKUP($C146,'Min Max table'!$A$5:$C$205,3,FALSE) -> 200000
B147: Total Disposal proceeds | C147: 584 | G147: =SUM(G145:G146) -> 0 | H147: =SUM(H145:H146) -> 0 | I147: =SUM(I145:I146) -> 0 | K147: =SUM(K145:K146) -> 0 | L147: =SUM(L145:L146) -> 0 | M147: =SUM(M145:M146) -> 0 | O147: =SUM(O145:O146) -> 0 | P147: =SUM(P145:P146) -> 0 | Q147: =SUM(Q145:Q146) -> 0 | V147: =VLOOKUP($C147,'Min Max table'!$A$5:$C$208,2,FALSE) -> 0 | W147: =VLOOKUP($C147,'Min Max table'!$A$5:$C$205,3,FALSE) -> 0
B148: Capital Income totals | C148: Line no. | D148: Help text | E148: Validation
B149: Transfers between Revenue and Capital (contra line 255) | C149: 585 | D149: i | E149: =IF(OR(S149<>"",T149<>"",U149<>"",Z149<>""),"Check- see columns S-Z for info","") ->  | G149: =-G56 -> 0 | H149: =-H56 -> 0 | I149: =-I56 -> 0 | K149: =-K56 -> 0 | L149: =-L56 -> 0 | M149: =-M56 -> 0 | O149: =-O56 -> 0 | P149: =-P56 -> 0 | Q149: =-Q56 -> 0 | R149: This should balance to line 255 - normally there are revenue transfers to capital and this line should be a positive figure. Transfers from capital funding to revenue reserves are normally disallowed. However on occasion for the reasons described in line 255, a reverse transfer may be necessary, where funds will flow from capital to revenue and the balance in this line would become negative. As this is unusual, an explanation is required. | V149: =VLOOKUP($C149,'Min Max table'!$A$5:$C$208,2,FALSE) -> 0 | W149: =VLOOKUP($C149,'Min Max table'!$A$5:$C$205,3,FALSE) -> 0 | X149: ="QU"&AB149 -> QU21 | Y149: =IF(Z149="","","Please refer to "&X149&" in the validations table") ->  | Z149: =IF(AC149>0,AD149,"") ->  | AA149: =VLOOKUP(X149,'Trust validations table'!$A$15:$E$346,4,FALSE) -> Capital income: Line 585 - Transfers between Revenue and Capital (contra line 255) | AB149: 21 | AC149: =IF(OR($G$149<0,$H$149<0,$I$149<0,$K$149<0,$L$149<0,$M$149<0,$O$149<0,$P$149<0,$Q$149<0),AB149,0) -> 0 | AD149: Tell us why you're transferring capital income into revenue reserves. | AE149: IF(OR($G$126<0,$H$126<0,$I$126<0,$K$126<0,$L$126<0,$M$126<0,$O$126<0,$P$126<0,$Q$126<0),AB126,0)
B151: Total Capital Income | C151: 599 | G151: =G133+G141+G147+G149 -> 0 | H151: =H133+H141+H147+H149 -> 0 | I151: =I133+I141+I147+I149 -> 0 | K151: =K133+K141+K147+K149 -> 0 | L151: =L133+L141+L147+L149 -> 0 | M151: =M133+M141+M147+M149 -> 0 | O151: =O133+O141+O147+O149 -> 0 | P151: =P133+P141+P147+P149 -> 0 | Q151: =Q133+Q141+Q147+Q149 -> 0 | V151: =VLOOKUP($C151,'Min Max table'!$A$5:$C$208,2,FALSE) -> 0 | W151: =VLOOKUP($C151,'Min Max table'!$A$5:$C$205,3,FALSE) -> 0
G154: Prior Year | K154: Current Year | O154: Forecast Year
B155: 5 CAPITAL EXPENDITURE | C155: Line no. | D155: Help text | E155: Validation | G155: Actuals | H155: Calculated | I155: TOTAL | K155: Actuals | L155: Calculated | M155: TOTAL | O155: Forecast | P155: Calculated | Q155: TOTAL
B156: Include: 1. cost of land acquisition including fees and charges related to the acquisition 2. cost of acquiring existing buildings, including fees and charges related to the acquisition 3. cost of new construction, including fees 4. cost of conversions and renovations and cost of extension to existing premises. This needs to be broken down into the following categories: | G156: Sep 23 - Mar 24 | H156: Apr 24 - Aug 24 | I156: 2023/24 | K156: Sep 24 - Mar 25 | L156: Apr 25 - Aug 25 | M156: 2024/25 | O156: Sep 25 - Mar 26 | P156: Apr 26 - Aug 26 | Q156: 2025/26
G157: £'000 | H157: £'000 | I157: £'000 | K157: £'000 | L157: £'000 | M157: £'000 | O157: £'000 | P157: £'000 | Q157: £'000 | R157: Help Text Guidance
B158: Land & buildings additions funded by DfE grants | C158: 601 | D158: i | E158: =IF(OR(S158<>"",T158<>"",U158<>"",Z158<>""),"Check- see columns S-Z for info","") ->  | H158: =+I158-G158 -> 0 | L158: =+M158-K158 -> 0 | P158: =+Q158-O158 -> 0 | R158: Include any expenditure of grant received from the DfE for freehold and leasehold land and buildings additions. In here, also include any RAAC related expenditure that has been capitalised. If your trust has had any major maintenance work completed that has been capitalised, please include this in here. Any unspent grant income would be carried forward into the next financial year, usually in the capital funds balance. | S158: =IF(OR(G158-ROUND(G158,)<>0,I158-ROUND(I158,)<>0,K158-ROUND(K158,)<>0,M158-ROUND(M158,)<>0,O158-ROUND(O158,)<>0,Q158-ROUND(Q158,)<>0),"No decimal places allowed","") ->  | T158: =IF(OR(G158<V158,I158<V158,K158<V158,L158<V158,M158<V158,O158<V158,P158<V158,Q158<V158),"A value is below the minimum value allowed","") ->  | U158: =IF(OR(G158>W158,I159>W158,K158>W158,L158>W158,M158>W158,O158>W158,P158>W158,Q158>W158),"Input value is too high","") ->  | V158: =VLOOKUP($C158,'Min Max table'!$A$5:$C$208,2,FALSE) -> 0 | W158: =VLOOKUP($C158,'Min Max table'!$A$5:$C$205,3,FALSE) -> 400000
B159: Land & buildings donated to the trust by the DfE (PSPB/Free Schools Programme) | C159: 605 | D159: i | H159: =+I159-G159 -> 0 | L159: =+M159-K159 -> 0 | P159: =+Q159-O159 -> 0 | R159: This should be equal to row 520. | S159: =IF(OR(G159-ROUND(G159,)<>0,I159-ROUND(I159,)<>0,K159-ROUND(K159,)<>0,M159-ROUND(M159,)<>0,O159-ROUND(O159,)<>0,Q159-ROUND(Q159,)<>0),"No decimal places allowed","") ->  | T159: =IF(OR(G159<V159,I159<V159,K159<V159,L159<V159,M159<V159,O159<V159,P159<V159,Q159<V159),"A value is below the minimum value allowed","") ->  | U159: =IF(OR(G159>W159,I160>W159,K159>W159,L159>W159,M159>W159,O159>W159,P159>W159,Q159>W159),"Input value is too high","") ->  | V159: =VLOOKUP($C159,'Min Max table'!$A$5:$C$208,2,FALSE) -> 0 | W159: =VLOOKUP($C159,'Min Max table'!$A$5:$C$205,3,FALSE) -> 400000
B160: Land & buildings additions funded by other capital grants | C160: 615 | D160: i | H160: 0 | L160: 0 | P160: =+Q160-O160 -> 0 | R160: Include any expenditure that is funded by other capital grants (not the DfE family) include lottery funding, Sport England, Local Authorities, The Football Association. | V160: =VLOOKUP($C160,'Min Max table'!$A$5:$C$208,2,FALSE) -> 0 | W160: =VLOOKUP($C160,'Min Max table'!$A$5:$C$205,3,FALSE) -> 400000
B161: Land & buildings additions funded by reserves | C161: 620 | D161: i | H161: 0 | L161: 0 | P161: 0 | R161: Funded by reserves – including other revenue sources as well as endowment releases. | U161: =IF(OR(G161>W161,I167>W161,K161>W161,L161>W161,M161>W161,O161>W161,P161>W161,Q161>W161),"Input value is too high","") ->  | V161: =VLOOKUP($C161,'Min Max table'!$A$5:$C$208,2,FALSE) -> 0 | W161: =VLOOKUP($C161,'Min Max table'!$A$5:$C$205,3,FALSE) -> 400000
B162: ICT costs - connectivity | C162: 621 | D162: i | H162: 0 | L162: =+M162-K162 -> 0 | P162: 0 | R162: Include broadband, wireless networks, network switches, network cables where they are capitalised, telephony, ISDN, ASDL or other dedicated phone lines where they are not leased, and installation costs. Exclude leasing and maintenance costs (shown in the revenue section), IT support, repair and maintenance costs. | S162: =IF(OR(G162-ROUND(G162,)<>0,I162-ROUND(I162,)<>0,K162-ROUND(K162,)<>0,M162-ROUND(M162,)<>0,O162-ROUND(O162,)<>0,Q162-ROUND(Q162,)<>0),"No decimal places allowed","") ->  | T162: =IF(OR(G162<V162,I162<V162,K162<V162,L162<V162,M162<V162,O162<V162,P162<V162,Q162<V162),"A value is below the minimum value allowed","") ->  | V162: =VLOOKUP($C162,'Min Max table'!$A$5:$C$208,2,FALSE) -> 0 | W162: =VLOOKUP($C162,'Min Max table'!$A$5:$C$205,3,FALSE) -> 100000
B163: ICT costs - onsite servers | C163: 622 | D163: i | H163: 0 | L163: =+M163-K163 -> 0 | P163: 0 | R163: Include physical onsite servers where costs are capitalised. Exclude leasing and maintenance costs (see revenue section) cloud storage costs, IT support, repair and maintenance costs. | V163: =VLOOKUP($C163,'Min Max table'!$A$5:$C$208,2,FALSE) -> 0 | W163: =VLOOKUP($C163,'Min Max table'!$A$5:$C$205,3,FALSE) -> 100000
B164: ICT costs - administration software and systems | C164: 623 | D164: i | H164: 0 | L164: =+M164-K164 -> 0 | P164: 0 | R164: Include administration and management software such as management information systems (MIS), safeguarding, finance, cashless catering, building management and payment portals, operating systems and device licences, unless bundled into the cost of laptops, desktops and tablets. Also include, cloud data and storage, cybersecurity and filtering and monitoring if not part of any connectivity services. Exclude connectivity such as broadband and telephony, (see line 621), IT learning resources, hardware, IT support, repair and maintenance costs. Where a resource is used for curriculum and non-curriculum (administration) purposes, and where costs are material, costs or estimates of the split should be coded separately at the time of purchase. | V164: =VLOOKUP($C164,'Min Max table'!$A$5:$C$208,2,FALSE) -> 0 | W164: =VLOOKUP($C164,'Min Max table'!$A$5:$C$205,3,FALSE) -> 100000
B165: ICT costs - laptops, desktops and tablets | C165: 624 | D165: i | H165: 0 | L165: =+M165-K165 -> 0 | P165: 0 | R165: Include laptops, desktops and tablets purchased by the school that are used for teaching, learning and administration, operating systems and licences if bundled into the cost of device, and device management tools. Exclude, bring your own device (BYOD) schemes where pupils and or staff are required to bring their own devices such as laptops or tablets. Also exclude any other hardware (see line 625), IT support, and repair and maintenance costs. Where a resource is used for curriculum and non-curriculum (i.e. administration) purposes, and where costs are material, costs or estimates of the split should be coded separately at the time of purchase. | V165: =VLOOKUP($C165,'Min Max table'!$A$5:$C$208,2,FALSE) -> 0 | W165: =VLOOKUP($C165,'Min Max table'!$A$5:$C$205,3,FALSE) -> 100000
B166: ICT costs - other hardware | C166: 625 | D166: i | H166: 0 | L166: =+M166-K166 -> 0 | P166: 0 | R166: Include, hardware such as printers and consumables, audio-visual display screens, projectors and CCTV, peripherals such as keyboards and mouses where they are not bundled into laptop, desktop and tablet costs (see line 624). Exclude laptops, desktops and tablets (see line 624), onsite servers (see line 622), and IT support, repair and maintenance costs. | V166: =VLOOKUP($C166,'Min Max table'!$A$5:$C$208,2,FALSE) -> 0 | W166: =VLOOKUP($C166,'Min Max table'!$A$5:$C$205,3,FALSE) -> 100000
B167: Other fixed assets additions funded by DfE grants | C167: 636 | D167: i | H167: =+I167-G167 -> 0 | L167: 0 | P167: 0 | R167: Include any expenditure of DfE grant received in a previous period. The unspent grant income should be carried forward from a prior year. In here, also include any RAAC related expenditure that has been capitalised in this line. If your trust has had any major maintenance work completed that has been capitalised, include this in here. | V167: =VLOOKUP($C167,'Min Max table'!$A$5:$C$208,2,FALSE) -> 0 | W167: =VLOOKUP($C167,'Min Max table'!$A$5:$C$205,3,FALSE) -> 400000
B168: Other fixed assets additions funded by other capital grants | C168: 637 | D168: i | H168: 0 | L168: 0 | P168: 0 | R168: Include any expenditure that is funded by other capital grants (not the DfE family) include lottery funding, Sport England, Local Authorities, The Football Association. If your trust has had any major maintenance work completed that has been capitalised, include this in here. | V168: =VLOOKUP($C168,'Min Max table'!$A$5:$C$208,2,FALSE) -> 0 | W168: =VLOOKUP($C168,'Min Max table'!$A$5:$C$205,3,FALSE) -> 400000
B169: Other fixed assets additions funded by reserves | C169: 638 | D169: i | H169: 0 | L169: 0 | P169: 0 | R169: Include any expenditure that is funded by reserves – including other revenue sources as well as endowment releases. | V169: =VLOOKUP($C169,'Min Max table'!$A$5:$C$208,2,FALSE) -> 0 | W169: =VLOOKUP($C169,'Min Max table'!$A$5:$C$205,3,FALSE) -> 400000
B170: Local authority donated assets expense | C170: 606 | D170: i | H170: 0 | L170: 0 | P170: 0 | R170: This should be equal to row 575 recognising the asset expense following receipt of the donated asset (as income). | V170: =VLOOKUP($C170,'Min Max table'!$A$5:$C$208,2,FALSE) -> 0 | W170: =VLOOKUP($C170,'Min Max table'!$A$5:$C$205,3,FALSE) -> 400000
B171: Total Capital Expenditure | C171: 650 | G171: =SUM(G158:G170) -> 0 | H171: =SUM(H158:H170) -> 0 | I171: =SUM(I158:I170) -> 0 | K171: =SUM(K158:K170) -> 0 | L171: =SUM(L158:L170) -> 0 | M171: =SUM(M158:M170) -> 0 | O171: =SUM(O158:O170) -> 0 | P171: =SUM(P158:P170) -> 0 | Q171: =SUM(Q158:Q170) -> 0 | V171: =VLOOKUP($C171,'Min Max table'!$A$5:$C$208,2,FALSE) -> 0 | W171: =VLOOKUP($C171,'Min Max table'!$A$5:$C$205,3,FALSE) -> 0
B173: Capital totals | C173: Line no. | D173: Help text | E173: Validation
B174: Net Capital income/(expenditure) for the period | C174: 660 | E174: =IF(OR(S174<>"",T174<>"",U174<>"",Z174<>""),"Check- see columns S-Z for info","") ->  | G174: =G151-G171 -> 0 | H174: =H151-H171 -> 0 | I174: =I151-I171 -> 0 | K174: =K151-K171 -> 0 | L174: =L151-L171 -> 0 | M174: =M151-M171 -> 0 | O174: =O151-O171 -> 0 | P174: =P151-P171 -> 0 | Q174: =Q151-Q171 -> 0 | V174: =VLOOKUP($C174,'Min Max table'!$A$5:$C$208,2,FALSE) -> 0 | W174: =VLOOKUP($C174,'Min Max table'!$A$5:$C$205,3,FALSE) -> 0 | X174: ="QU"&AB174 -> QU14 | Y174: =IF(Z174="","","Please refer to "&X174&" in the validations table") ->  | Z174: =IF(AC174>0,AD174,"") ->  | AA174: =VLOOKUP(X174,'Trust validations table'!$A$15:$E$346,4,FALSE) -> Capital totals: Line 660 - Net Capital income/(expenditure) for the period | AB174: 14 | AC174: =IF(OR($I$174<0,$M$174<0,$Q$174<0),AB174,0) -> 0 | AD174: Your capital expenditure exceeds capital income during either the prior year, current year or forecast year. Tell us: - how you've managed capital income and expenditure during the year - whether you plan to carry forward surplus capital funds from prior years, and how much | AE174: IF(OR($I$146<0,$M$146<0,$Q$146<0)),AB146,0)
G177: Actuals | H177: Calculated | K177: Calculated | L177: Calculated | O177: Calculated | P177: Calculated
G178: Balance b/f 1 Sep 23 | H178: Balance b/f 1 Apr 24 | K178: Balance b/f 1 Sep 24 | L178: Balance b/f 1 Apr 25 | O178: Balance b/f 1 Sep 25 | P178: Balance b/f 1 Apr 26
G179: £'000 | H179: £'000 | K179: £'000 | L179: £'000 | O179: £'000 | P179: £'000 | R179: Help Text Guidance
B180: Balance B/Fwd from previous period | C180: 670 | D180: i | E180: =IF(OR(S180<>"",T180<>"",U180<>"",Z180<>""),"Check- see columns S-Z for info","") ->  | H180: =G185 -> 0 | K180: =H185 -> 0 | L180: =K185 -> 0 | O180: =L185 -> 0 | P180: =O185 -> 0 | R180: Input the closing balance of capital funds from previous financial year. Assuming there are no structural changes to the trust, then the amount entered in this cell should agree to the 'Fixed Asset Fund' less 'Tangible assets' and 'Intangible assets' in the Balance Sheet summary of the prior year Accounts Return. | S180: =IF(OR(G180-ROUND(G180,)<>0),"No decimal places allowed","") ->  | T180: =IF(OR(G180<V180),"A value is below the minimum value allowed","") ->  | U180: =IF(OR(G180>W180),"Input value is too high","") ->  | V180: =VLOOKUP($C180,'Min Max table'!$A$5:$C$208,2,FALSE) -> -400000 | W180: =VLOOKUP($C180,'Min Max table'!$A$5:$C$205,3,FALSE) -> 400000
G182: Calculated | H182: Calculated | K182: Calculated | L182: Calculated | O182: Calculated | P182: Calculated
G183: Balance c/f 31 Mar 24 | H183: Balance c/f 31 Aug 24 | K183: Balance c/f 31 Mar 25 | L183: Balance c/f 31 Aug 25 | O183: Balance c/f 31 Mar 26 | P183: Balance c/f 31 Aug 26
G184: £'000 | H184: £'000 | K184: £'000 | L184: £'000 | O184: £'000 | P184: £'000
B185: Balance C/Fwd to next period | C185: 680 | G185: =G174+G180 -> 0 | H185: =H174+H180 -> 0 | K185: =K174+K180 -> 0 | L185: =L174+L180 -> 0 | O185: =O174+O180 -> 0 | P185: =P174+P180 -> 0 | V185: =VLOOKUP($C185,'Min Max table'!$A$5:$C$208,2,FALSE) -> 0 | W185: =VLOOKUP($C185,'Min Max table'!$A$5:$C$205,3,FALSE) -> 0
G188: Prior Year | K188: Current Year | O188: Forecast Year
G189: Actuals | H189: Calculated | I189: TOTAL | K189: Actuals | L189: Calculated | M189: TOTAL | O189: Forecast | P189: Calculated | Q189: TOTAL
G190: Sep 23 - Mar 24 | H190: Apr 24 - Aug 24 | I190: 2023/24 | K190: Sep 24 - Mar 25 | L190: Apr 25 - Aug 25 | M190: 2024/25 | O190: Sep 25 - Mar 26 | P190: Apr 26 - Aug 26 | Q190: 2025/26
B191: Capital transfers and conversions (disclosure only) | C191: Line no. | D191: Help text | E191: Validation | G191: £'000 | H191: £'000 | I191: £'000 | K191: £'000 | L191: £'000 | M191: £'000 | O191: £'000 | P191: £'000 | Q191: £'000 | R191: Help Text Guidance
B192: Capital assets transferred to academy on conversion | C192: 572 | D192: i | E192: =IF(OR(S192<>"",T192<>"",U192<>"",Z192<>""),"Check- see columns S-Z for info","") ->  | H192: =+I192-G192 -> 0 | L192: =+M192-K192 -> 0 | P192: =+Q192-O192 -> 0 | R192: Include the value of capital assets and liabilities received or receivable on conversion from local authorities on conversion. These balances will have a contra adjustment. For example when you record a conversion from a local authority the entry is conversion income recorded below and the opposite adjustment which is expenditure. The former recognises the transfer income and the latter the expenditure to recognise the asset. The budgeting impact is neutral. | S192: =IF(OR(G192-ROUND(G192,)<>0,I192-ROUND(I192,)<>0,K192-ROUND(K192,)<>0,M192-ROUND(M192,)<>0,O192-ROUND(O192,)<>0,Q192-ROUND(Q192,)<>0),"No decimal places allowed","") ->  | T192: =IF(OR(G192<V192,I192<V192,K192<V192,L192<V192,M192<V192,O192<V192,P192<V192,Q192<V192),"Transfers in is below the minimum value allowed","") ->  | U192: =IF(OR(G192>W192,I192>W192,K192>W192,L192>W192,M192>W192,O192>W192,P192>W192,Q192>W192),"Transfer value is too high","") ->  | V192: =VLOOKUP($C192,'Min Max table'!$A$5:$C$208,2,FALSE) -> 0 | W192: =VLOOKUP($C192,'Min Max table'!$A$5:$C$205,3,FALSE) -> 400000
B193: Capital assets transferred of an existing academy into the trust | C193: 573 | D193: i | E193: =IF(OR(S193<>"",T193<>"",U193<>"",Z193<>""),"Check- see columns S-Z for info","") ->  | H193: =+I193-G193 -> 0 | L193: =+M193-K193 -> 0 | P193: =+Q193-O193 -> 0 | R193: Include the value of capital assets and liabilities received or receivable following the transfer of an existing academy from another academy trust | S193: =IF(OR(G193-ROUND(G193,)<>0,I193-ROUND(I193,)<>0,K193-ROUND(K193,)<>0,M193-ROUND(M193,)<>0,O193-ROUND(O193,)<>0,Q193-ROUND(Q193,)<>0),"No decimal places allowed","") ->  | T193: =IF(OR(G193<V193,I193<V193,K193<V193,L193<V193,M193<V193,O193<V193,P193<V193,Q193<V193),"Transfers in is below the minimum value allowed","") ->  | U193: =IF(OR(G193>W193,I193>W193,K193>W193,L193>W193,M193>W193,O193>W193,P193>W193,Q193>W193),"Transfer value is too high","") ->  | V193: =VLOOKUP($C193,'Min Max table'!$A$5:$C$208,2,FALSE) -> 0 | W193: =VLOOKUP($C193,'Min Max table'!$A$5:$C$205,3,FALSE) -> 400000
B194: Capital assets transferred of an existing academy out of the trust | C194: 639 | D194: i | E194: =IF(OR(S194<>"",T194<>"",U194<>"",Z194<>""),"Check- see columns S-Z for info","") ->  | H194: =+I194-G194 -> 0 | L194: =+M194-K194 -> 0 | P194: =+Q194-O194 -> 0 | R194: Include the value of capital assets and liabilities paid or payable following the transfer of an existing academy to another academy trust. The value of any amount paid or payable should be entered as a negative value. | S194: =IF(OR(G194-ROUND(G194,)<>0,I194-ROUND(I194,)<>0,K194-ROUND(K194,)<>0,M194-ROUND(M194,)<>0,O194-ROUND(O194,)<>0,Q194-ROUND(Q194,)<>0),"No decimal places allowed","") ->  | T194: =IF(OR(G194<V194,I194<V194,K194<V194,L194<V194,M194<V194,O194<V194,P194<V194,Q194<V194),"Transfers in is below the minimum value allowed","") ->  | U194: =IF(OR(G194>W194,I194>W194,K194>W194,L194>W194,M194>W194,O194>W194,P194>W194,Q194>W194),"Transfer value is too high","") ->  | V194: =VLOOKUP($C194,'Min Max table'!$A$5:$C$208,2,FALSE) -> -400000 | W194: =VLOOKUP($C194,'Min Max table'!$A$5:$C$205,3,FALSE) -> 0
B197: 6 OTHER ITEMS
B198: Cash | C198: Line no. | D198: Help text | E198: Validation | G198: Balance at 31 Aug 23 | H198: Balance at 31 Mar 24 | K198: Balance at 31 Aug 24 | L198: Balance at 31 Mar 25 | M198: Balance at 31 Aug 25 | O198: Balance at 31 Mar 26 | P198: Balance at 31 Aug 26
G199: £'000 | H199: £'000 | K199: £'000 | L199: £'000 | M199: £'000 | O199: £'000 | P199: £'000 | R199: Help Text Guidance
B200: Cash at bank and in hand | C200: 700 | D200: i | E200: =IF(OR(S200<>"",T200<>"",U200<>"",Z200<>""),"Check- see columns S-Z for info","") -> Check- see columns S-Z for info | R200: Include the balances held in all academy trust bank accounts plus any miscellaneous cash holdings, for example petty cash balances. This will also include cash equivalents, being short-term highly liquid investments with a short maturity, for example short-term money market deposits. August balances should be as per your audited financial statements. | S200: =IF(OR(G200-ROUND(G200,)<>0,H200-ROUND(H200,)<>0,K200-ROUND(K200,)<>0,L200-ROUND(L200,)<>0,M200-ROUND(M200,)<>0,P200-ROUND(P200,)<>0),"No decimal places allowed","") ->  | T200: =IF(OR(G200<V200,H200<V200,K200<V200,L200<V200,M200<V200,O200<V200,P200<V200),"Your cash balance is too low","") ->  | U200: =IF(OR(G200>W200,H200>W200,K200>W200,L200>W200,M200>W200,O200>W200,P200>W200),"Your cash balance is too high","") ->  | V200: =VLOOKUP($C200,'Min Max table'!$A$5:$C$208,2,FALSE) -> 0 | W200: =VLOOKUP($C200,'Min Max table'!$A$5:$C$205,3,FALSE) -> 400000 | X200: ="QU"&AB200 -> QU15 | Y200: =IF(Z200="","","Please refer to "&X200&" in the validations table") -> Please refer to QU15 in the validations table | Z200: =IF(AC200>0,AD200,"") -> Check that the figures you've entered for Cash at bank and in hand (700) are correct. If so, explain why your bank balances are all NIL. | AA200: =VLOOKUP(X200,'Trust validations table'!$A$15:$E$346,4,FALSE) -> Other items: Line 700 - Cash at bank and in hand | AB200: 15 | AC200: =IF(SUM(G200:H200,K200:M200,O200:P200)=0,AB200,0) -> 15 | AD200: Check that the figures you've entered for Cash at bank and in hand (700) are correct. If so, explain why your bank balances are all NIL. | AE200: IF(SUM(G172:H172,K172:M172,O172:P172)=0,AB172,0)
B201: Overdrafts | C201: 701 | D201: i | E201: Check- see columns S-Z for info | R201: Include any bank or other overdrafts still in use at period end date. | S201: =IF(OR(G201-ROUND(G201,)<>0,H201-ROUND(H201,)<>0,K201-ROUND(K201,)<>0,L201-ROUND(L201,)<>0,M201-ROUND(M201,)<>0,P201-ROUND(P201,)<>0),"No decimal places allowed","") ->  | T201: =IF(OR(G201<V201,H201<V201,K201<V201,L201<V201,M201<V201,O201<V201,P201<V201),"Your overdraft is too low","") ->  | U201: =IF(OR(G201>W201,H201>W201,K201>W201,L201>W201,M201>W201,O201>W201,P201>W201),"Your overdraft is too high","") ->  | V201: =VLOOKUP($C201,'Min Max table'!$A$5:$C$208,2,FALSE) -> -200000 | W201: =VLOOKUP($C201,'Min Max table'!$A$5:$C$205,3,FALSE) -> 0 | X201: ="QU"&AB201 -> QU16 | Y201: =IF(Z201="","","Please refer to "&X201&" in the validations table") -> Please refer to QU16 in the validations table | Z201: =IF(AC201>0,AD201,"") -> Enter your overdraft balances, if not applicable, please state this. If your overdraft was cleared before the balance dates then provide a brief explanation. | AA201: =VLOOKUP(X201,'Trust validations table'!$A$15:$E$346,4,FALSE) -> Other items: Line 701 - Overdrafts | AB201: 16 | AC201: =IF(SUM(G201:H201,K201:M201,O201:P201)=0,AB201,0) -> 16 | AD201: Enter your overdraft balances, if not applicable, please state this. If your overdraft was cleared before the balance dates then provide a brief explanation. | AE201: IF(SUM(G173:H173,K173:M173,O181:P181)=0,AB173,0)
G203: Prior Year | K203: Current Year | O203: Forecast Year
G204: Actuals | H204: Calculated | I204: TOTAL | K204: Actuals | L204: Calculated | M204: TOTAL | O204: Forecast | P204: Calculated | Q204: TOTAL
B205: Impairment/gains and losses | C205: Line no. | D205: Help text | E205: Validation | G205: Sep 23 - Mar 24 | H205: Apr 24 - Aug 24 | I205: 2023/24 | K205: Sep 24 - Mar 25 | L205: Apr 25 - Aug 25 | M205: 2024/25 | O205: Sep 25 - Mar 26 | P205: Apr 26 - Aug 26 | Q205: 2025/26
G206: £'000 | H206: £'000 | I206: £'000 | K206: £'000 | L206: £'000 | M206: £'000 | O206: £'000 | P206: £'000 | Q206: £'000 | R206: Help Text Guidance
B207: Gain/loss on disposal of fixed assets | C207: 710 | D207: i | E207: =IF(OR(S207<>"",T207<>"",U207<>"",Z207<>""),"Check- see columns S-Z for info","") ->  | H207: =+I207-G207 -> 0 | L207: =+M207-K207 -> 0 | P207: =+Q207-O207 -> 0 | R207: Deduct the carrying amount of the asset and related selling expenses from the proceeds of the disposal. Losses are entered as positive and gains as negative. | S207: =IF(OR(G207-ROUND(G207,)<>0,I207-ROUND(I207,)<>0,K207-ROUND(K207,)<>0,M207-ROUND(M207,)<>0,O207-ROUND(O207,)<>0,Q207-ROUND(Q207,)<>0),"No decimal places allowed","") ->  | T207: =IF(OR(G207<V207,I207<V207,K207<V207,L207<V207,M207<V207,O207<V207,P207<V207,Q207<V207),"Loss on disposal is too high","") ->  | U207: =IF(OR(G207>W207,I207>W207,K207>W207,L207>W207,M207>W207,O207>W207,P207>W207,Q207>W207),"Gain appears too high","") ->  | V207: =VLOOKUP($C207,'Min Max table'!$A$5:$C$208,2,FALSE) -> -100000 | W207: =VLOOKUP($C207,'Min Max table'!$A$5:$C$205,3,FALSE) -> 100000
B208: Impairment charges | C208: 712 | D208: i | H208: =+I208-G208 -> 0 | L208: =+M208-K208 -> 0 | P208: =+Q208-O208 -> 0 | R208: Impairment charge would be the reduction in carrying value of an asset. | S208: =IF(OR(G208-ROUND(G208,)<>0,I208-ROUND(I208,)<>0,K208-ROUND(K208,)<>0,M208-ROUND(M208,)<>0,O208-ROUND(O208,)<>0,Q208-ROUND(Q208,)<>0),"No decimal places allowed","") ->  | T208: =IF(OR(G208<V208,I208<V208,K208<V208,L208<V208,M208<V208,O208<V208,P208<V208,Q208<V208),"Loss on disposal is too high","") ->  | U208: =IF(OR(G208>W208,I208>W208,K208>W208,L208>W208,M208>W208,O208>W208,P208>W208,Q208>W208),"Gain appears too high","") ->  | V208: =VLOOKUP($C208,'Min Max table'!$A$5:$C$208,2,FALSE) -> -100000 | W208: =VLOOKUP($C208,'Min Max table'!$A$5:$C$205,3,FALSE) -> 400000 | X208: ="QU"&AB208 -> QU20 | Y208: =IF(Z208="","","Please refer to "&X208&" in the validations table") ->  | Z208: =IF(AC208>0,AD208,"") ->  | AA208: =VLOOKUP(X208,'Trust validations table'!$A$15:$E$346,4,FALSE) -> Other items: Line 712 - Impairment charges | AB208: 20 | AC208: =IF(OR(G208<>0,H208<>0,I208<>0,K208<>0,L208<>0,M208<>0,O208<>0,P208<>0,Q208<>0),AB208,0) -> 0 | AD208: Provide details of your impairments. | AE208: IF(OR(G180<>0,H180<>0,I180<>0,K180<>0,L180<>0,M180<>0,O180<>0,P180<>0,Q180<>0),AB180,0)
B210: Investments | C210: Line no. | D210: Help text | E210: Validation | G210: Balance at 31 Aug 23 | H210: Balance at 31 Mar 24 | K210: Balance at 31 Aug 24 | L210: Balance at 31 Mar 25 | M210: Balance at 31 Aug 25 | O210: Balance at 31 Mar 26 | P210: Balance at 31 Aug 26
G211: £'000 | H211: £'000 | K211: £'000 | L211: £'000 | M211: £'000 | O211: £'000 | P211: £'000 | R211: Help Text Guidance
B212: Investments | C212: 725 | D212: i | E212: =IF(OR(S212<>"",T212<>"",U212<>"",Z212<>""),"Check- see columns S-Z for info","") ->  | R212: Include the total value of your investments as at the specified dates. Increases to the total value could be as a result of the purchase of new fixed income or equity investments. | S212: =IF(OR(G212-ROUND(G212,)<>0,H212-ROUND(H212,)<>0,K212-ROUND(K212,)<>0,L212-ROUND(L212,)<>0,M212-ROUND(M212,)<>0,O212-ROUND(O212,)<>0,P212-ROUND(P212,)<>0),"No decimal places allowed","") ->  | T212: =IF(OR(G212<I212,H212<V212,K212<V212,L212<V212,M212<V212,O212<V212,P212<V212,Q212<V212),"A value is below the minimum value allowed","") ->  | U212: =IF(OR(G212>W212,H212>W212,K212>W212,L212>W212,M212>W212,O212>W212,P212>W212,Q212>W212),"Input value is too high","") ->  | V212: =VLOOKUP($C212,'Min Max table'!$A$5:$C$208,2,FALSE) -> 0 | W212: =VLOOKUP($C212,'Min Max table'!$A$5:$C$205,3,FALSE) -> 400000 | X212: ="QU"&AB212 -> QU17 | Y212: =IF(Z212="","","Please refer to "&X212&" in the validations table") ->  | Z212: =IF(AC212>0,AD212,"") ->  | AA212: =VLOOKUP(X212,'Trust validations table'!$A$15:$E$346,4,FALSE) -> Other items: Line 725 - Investments | AB212: 17 | AC212: =IF(OR(G212<>0,H212<>0,I212<>0,K212<>0,L212<>0,M212<>0,O212<>0,P212<>0,Q212<>0),AB212,0) -> 0 | AD212: Provide details of your investments. If your investments were sold/paid back before the balance dates then provide a brief explanation. | AE212: IF(OR(G184<>0,H184<>0,I184<>0,K184<>0,L184<>0,M184<>0,O184<>0,P184<>0),AB184,0)
G213: Movements Sep 23 - Mar 24 | H213: Movements Apr 24 - Aug 24 | K213: Movements Sep 24 - Mar 25 | L213: Movements Apr 25 - Aug 25 | O213: Movements Sep 25 - Mar 26 | P213: Movements Apr 26 - Aug 26
G214: £'000 | H214: £'000 | K214: £'000 | L214: £'000 | O214: £'000 | P214: £'001 | R214: Help Text Guidance
B215: Investment liquidations | C215: 730 | D215: i | E215: =IF(OR(S215<>"",T215<>"",U215<>"",Z215<>""),"Check- see columns S-Z for info","") ->  | R215: Include cash or cash equivalents received as a result of investment liquidations. This is a disclosure only line and will not result in double-counting in line 700. | S215: =IF(OR(G215-ROUND(G215,)<>0,H215-ROUND(H215,)<>0,K215-ROUND(K215,)<>0,L215-ROUND(L215,)<>0,O215-ROUND(O215,)<>0,P215-ROUND(P215,)<>0),"No decimal places allowed","") ->  | T215: =IF(OR(G215<V215,H215<V215,K215<V215,L215<V215,M215<V215,O215<V215,P215<V215,Q215<V215),"A value is below the minimum value allowed","") ->  | U215: =IF(OR(G215>W215,H215>W215,K215>W215,L215>W215,M215>W215,O215>W215,P215>W215,Q215>W215),"Input value is too high","") ->  | V215: =VLOOKUP($C215,'Min Max table'!$A$5:$C$208,2,FALSE) -> 0 | W215: =VLOOKUP($C215,'Min Max table'!$A$5:$C$205,3,FALSE) -> 100000
G217: Actuals | H217: Actuals | K217: Actuals | L217: Actuals | M217: TOTAL | O217: Forecast
B218: Loans | C218: Line no. | D218: Help text | E218: Validation | G218: Balance at 31 Aug 23 | H218: Balance at 31 Mar 24 | K218: Balance at 31 Aug 24 | L218: Balance at 31 Mar 25 | M218: Balance at 31 Aug 25 | O218: Balance at 31 Mar 26
G219: £'000 | H219: £'000 | K219: £'000 | L219: £'000 | M219: £'000 | O219: £'000 | R219: Help Text Guidance
B220: Opening outstanding loans | C220: 780 | D220: i | E220: =IF(OR(S220<>"",T220<>"",U220<>"",Z220<>""),"Check- see columns S-Z for info","") ->  | H220: =G226 -> 0 | K220: =H226 -> 0 | L220: =K226 -> 0 | M220: =L226 -> 0 | O220: =M226 -> 0 | R220: Please include any closing loans outstanding from the previous financial year. Please specify in the comments section to whom the loans relate, the amounts specific to each, whether transferred on conversion, reason for loan and loan duration. This includes Salix loans. | S220: =IF(OR(G220-ROUND(G220,)<>0,I220-ROUND(I220,)<>0,K220-ROUND(K220,)<>0,M220-ROUND(M220,)<>0,O220-ROUND(O220,)<>0,Q220-ROUND(Q220,)<>0),"No decimal places allowed","") ->  | T220: =IF(OR(G220<V220,I220<V220,K220<V220,L220<V220,M220<V220,O220<V220,P220<V220,Q220<V220),"Error- balances is below the minimum value allowed","") ->  | U220: =IF(OR(G220>W220,I220>W220,K220>W220,L220>W220,M220>W220,O220>W220,P220>W220,Q220>W220),"Input value is too high","") ->  | V220: =VLOOKUP($C220,'Min Max table'!$A$5:$C$208,2,FALSE) -> 0 | W220: =VLOOKUP($C220,'Min Max table'!$A$5:$C$205,3,FALSE) -> 100000
G221: Movement to 31 Mar 24 | H221: Movement to 31 Aug 24 | K221: Movement to 31 Mar 25 | L221: Movement to5 31 Aug 24 | M221: Movement to 31 Mar 26 | O221: Movement to 31 Aug 26
G222: £'000 | H222: £'000 | K222: £'000 | L222: £'000 | M222: £'000 | O222: £'000 | R222: Help Text Guidance
B223: Increase/(Decrease) in outstanding loans | C223: 785 | D223: i | E223: =IF(OR(S223<>"",T223<>"",U223<>"",Z223<>""),"Check- see columns S-Z for info","") ->  | R223: Please include the value of any increase or decrease in outstanding loans. Please specify in the comments section to whom the loans relate, the amounts specific to each, whether transferred on conversion, reason for loan and loan duration. This includes Salix loans. | S223: =IF(OR(G223-ROUND(G223,)<>0,H223-ROUND(H223,)<>0,K223-ROUND(K223,)<>0,L223-ROUND(L223,)<>0,M223-ROUND(M223,)<>0,O223-ROUND(O223,)<>0,Q223-ROUND(Q223,)<>0),"No decimal places allowed","") ->  | T223: =IF(OR(G223<V223,H223<V223,K223<V223,L223<V223,M223<V223,O223<V223),"Decrease is too high","") ->  | U223: =IF(OR(G223>W223,H223>W223,K223>W223,L223>W223,M223>W223,O223>W223),"Increase is too high","") ->  | V223: =VLOOKUP($C223,'Min Max table'!$A$5:$C$208,2,FALSE) -> -100000 | W223: =VLOOKUP($C223,'Min Max table'!$A$5:$C$205,3,FALSE) -> 100000 | X223: ="QU"&AB223 -> QU18 | Y223: =IF(Z223="","","Please refer to "&X223&" in the validations table") ->  | Z223: =IF(AC223>0,AD223,"") ->  | AA223: =VLOOKUP(X223,'Trust validations table'!$A$15:$E$346,4,FALSE) -> Other items: Line 785 - Increase/(Decrease) in outstanding loans | AB223: 18 | AC223: =IF(OR(G223<>0,H223<>0,K223<>0,L223<>0,M223<>0,O223<>0),AB223,0) -> 0 | AD223: Tell us about any loan movements. | AE223: IF(OR(G195<>0,H195<>0,K195<>0,L195<>0,M195<>0,O195<>0),AB195,0)
G224: Balance c/f 31 Mar 24 | H224: Balance c/f 31 Aug 24 | K224: Balance c/f 31 Mar 25 | L224: Balance c/f 31 Aug 25 | M224: Balance c/f 31 Mar 26 | O224: Balance c/f 31 Aug 26
G225: £'000 | H225: £'000 | K225: £'000 | L225: £'000 | M225: £'000 | O225: £'000
B226: Closing outstanding loans | C226: 789 | E226: =IF(OR(S226<>"",T226<>"",U226<>"",Z226<>""),"Check- see columns S-Z for info","") ->  | G226: =+G223+G220 -> 0 | H226: =+H223+H220 -> 0 | K226: =+K223+K220 -> 0 | L226: =+L223+L220 -> 0 | M226: =+M223+M220 -> 0 | O226: =+O223+O220 -> 0 | V226: =VLOOKUP($C226,'Min Max table'!$A$5:$C$208,2,FALSE) -> 0 | W226: =VLOOKUP($C226,'Min Max table'!$A$5:$C$205,3,FALSE) -> 0 | X226: ="QU"&AB226 -> QU19 | Y226: =IF(Z226="","","Please refer to "&X226&" in the validations table") ->  | Z226: =IF(AC226>0,AD226,"") ->  | AA226: =VLOOKUP(X226,'Trust validations table'!$A$15:$E$346,4,FALSE) -> Other items: Line 789 -Closing outstanding loans | AB226: 19 | AC226: =IF(OR(G226<0,H226<0,K226<0,L226<0,M226<0,O226<0,P226<0),AB226,IF(AND(E16="No",SUM(G226:P226)<>0),AB226,IF(AND(E16="Yes",AND(G226=0,H226=0,K226=0,L226=0,M226=0,O226=0,P226=0)),AB226,0))) -> 0 | AD226: Confirm your loan balances are correct. Balances shouldn't be negative. | AE226: IF(OR(G227<0,H227<0,K227<0,L227<0,M227<0,O227<0,P227<0),AB227,IF(AND(E17="No",SUM(G227:P227)<>0),AB227,IF(AND(E17="Yes",AND(G227=0,H227=0,K227=0,L227=0,M227=0,O227=0,P227=0)),AB227,0)))
G228: Prior Year | K228: Current Year | O228: Forecast Year
G229: Actuals | H229: Calculated | I229: TOTAL | K229: Actuals | L229: Calculated | M229: TOTAL | O229: Forecast | P229: Calculated | Q229: TOTAL
G230: Sep 23 - Mar 24 | H230: Apr 24 - Aug 24 | I230: 2023/24 | K230: Sep 24 - Mar 25 | L230: Apr 25 - Aug 25 | M230: 2024/25 | O230: Sep 25 - Mar 26 | P230: Apr 26 - Aug 26 | Q230: 2025/26
B231: Provisions (excluding pensions liabilities) | C231: Line no. | D231: Help text | E231: Validation | G231: £'000 | H231: £'000 | I231: £'000 | K231: £'000 | L231: £'000 | M231: £'000 | O231: £'000 | P231: £'000 | Q231: £'000 | R231: Help Text Guidance
B232: Provision increase | C232: 736 | D232: i | E232: =IF(OR(S232<>"",T232<>"",U232<>"",Z232<>""),"Check- see columns S-Z for info","") ->  | H232: =+I232-G232 -> 0 | L232: =+M232-K232 -> 0 | P232: =+Q232-O232 -> 0 | R232: Include any new provisions that have been created or increased in the year as a positive figure. | S232: =IF(OR(G232-ROUND(G232,)<>0,I232-ROUND(I232,)<>0,K232-ROUND(K232,)<>0,M232-ROUND(M232,)<>0,O232-ROUND(O232,)<>0,Q232-ROUND(Q232,)<>0),"No decimal places allowed","") ->  | T232: =IF(OR(G232<V232,I232<V232,K232<V232,L232<V232,M232<V232,O232<V232,P232<V232,Q232<V232),"A value is below the minimum value allowed","") ->  | U232: =IF(OR(G232>W232,I232>W232,K232>W232,L232>W232,M232>W232,O232>W232,P232>W232,Q232>W232),"Input value is too high","") ->  | V232: =VLOOKUP($C232,'Min Max table'!$A$5:$C$208,2,FALSE) -> 0 | W232: =VLOOKUP($C232,'Min Max table'!$A$5:$C$205,3,FALSE) -> 100000
B233: Provisions release (enter as a negative value) | C233: 737 | D233: i | H233: =+I233-G233 -> 0 | L233: =+M233-K233 -> 0 | P233: =+Q233-O233 -> 0 | R233: Include any reductions to the value of the provisions in the year. This must be a negative value. | S233: =IF(OR(G233-ROUND(G233,)<>0,I233-ROUND(I233,)<>0,K233-ROUND(K233,)<>0,M233-ROUND(M233,)<>0,O233-ROUND(O233,)<>0,Q233-ROUND(Q233,)<>0),"No decimal places allowed","") ->  | T233: =IF(OR(G233<V233,I233<V233,K233<V233,L233<V233,M233<V233,O233<V233,P233<V233,Q233<V233),"A value is below the minimum value allowed","") ->  | U233: =IF(OR(G233>W233,I233>W233,K233>W233,L233>W233,M233>W233,O233>W233,P233>W233,Q233>W233),"Input value is too high","") ->  | V233: =VLOOKUP($C233,'Min Max table'!$A$5:$C$208,2,FALSE) -> -100000 | W233: =VLOOKUP($C233,'Min Max table'!$A$5:$C$205,3,FALSE) -> 0
B234: Provision utilisation | C234: 738 | D234: i | H234: =+I234-G234 -> 0 | L234: =+M234-K234 -> 0 | P234: =+Q234-O234 -> 0 | R234: Include any payments made out against the provisions in the year. This must be a negative value. This is not a cost but is a cash payment | S234: =IF(OR(G234-ROUND(G234,)<>0,I234-ROUND(I234,)<>0,K234-ROUND(K234,)<>0,M234-ROUND(M234,)<>0,O234-ROUND(O234,)<>0,Q234-ROUND(Q234,)<>0),"No decimal places allowed","") ->  | U234: =IF(OR(G234>W234,I234>W234,K234>W234,L234>W234,M234>W234,O234>W234,P234>W234,Q234>W234),"Input value is too high","") ->  | V234: =VLOOKUP($C234,'Min Max table'!$A$5:$C$208,2,FALSE) -> -100000 | W234: =VLOOKUP($C234,'Min Max table'!$A$5:$C$205,3,FALSE) -> 0
G236: Actuals | H236: Calculated | I236: TOTAL | K236: Actuals | L236: Calculated | M236: TOTAL | O236: Forecast | P236: Calculated | Q236: TOTAL
G237: Sep 23 - Mar 24 | H237: Apr 24 - Aug 24 | I237: 2023/24 | K237: Sep 24 - Mar 25 | L237: Apr 25 - Aug 25 | M237: 2024/25 | O237: Sep 25 - Mar 26 | P237: Apr 26 - Aug 26 | Q237: 2025/26
B238: Depreciation / amortisation charge for the period | C238: Line no. | D238: Help text | E238: Validation | G238: £'000 | H238: £'000 | I238: £'000 | K238: £'000 | L238: £'000 | M238: £'000 | O238: £'000 | P238: £'000 | Q238: £'000 | R238: Help Text Guidance
B239: Buildings depreciation | C239: 715 | D239: i | E239: =IF(OR(S239<>"",T239<>"",U239<>"",Z239<>""),"Check- see columns S-Z for info","") ->  | H239: =+I239-G239 -> 0 | L239: =+M239-K239 -> 0 | P239: =+Q239-O239 -> 0 | R239: Include depreciation charges for DfE buildings only, excluding depreciation relating to owned assets, donated assets or other non DfE buildings during the year. | S239: =IF(OR(G239-ROUND(G239,)<>0,I239-ROUND(I239,)<>0,K239-ROUND(K239,)<>0,M239-ROUND(M239,)<>0,O239-ROUND(O239,)<>0,Q239-ROUND(Q239,)<>0),"No decimal places allowed","") ->  | T239: =IF(OR(G239<V239,I239<V239,K239<V239,L239<V239,M239<V239,O239<V239,P239<V239,Q239<V239),"A value is below the minimum value allowed","") ->  | U239: =IF(OR(G239>W239,I239>W239,K239>W239,L239>W239,M239>W239,O239>W239,P239>W239,Q239>W239),"Input value is too high","") ->  | V239: =VLOOKUP($C239,'Min Max table'!$A$5:$C$208,2,FALSE) -> 0 | W239: =VLOOKUP($C239,'Min Max table'!$A$5:$C$205,3,FALSE) -> 200000
B240: Other assets donated depreciation | C240: 716 | D240: i | H240: 0 | L240: =+M240-K240 -> 0 | P240: =+Q240-O240 -> 0 | R240: Include depreciation charges for non DfE donated assets. | S240: =IF(OR(G240-ROUND(G240,)<>0,I240-ROUND(I240,)<>0,K240-ROUND(K240,)<>0,M240-ROUND(M240,)<>0,O240-ROUND(O240,)<>0,Q240-ROUND(Q240,)<>0),"No decimal places allowed","") ->  | T240: =IF(OR(G240<V240,I240<V240,K240<V240,L240<V240,M240<V240,O240<V240,P240<V240,Q240<V240),"A value is below the minimum value allowed","") ->  | U240: =IF(OR(G240>W240,I240>W240,K240>W240,L240>W240,M240>W240,O240>W240,P240>W240,Q240>W240),"Input value is too high","") ->  | V240: =VLOOKUP($C240,'Min Max table'!$A$5:$C$208,2,FALSE) -> 0 | W240: =VLOOKUP($C240,'Min Max table'!$A$5:$C$205,3,FALSE) -> 200000
B241: Other assets owned depreciation | C241: 717 | D241: i | H241: 0 | L241: =+M241-K241 -> 0 | P241: =+Q241-O241 -> 0 | R241: Include depreciation charges for other owned assets, excluding DfE buildings or non DfE donated assets. | S241: =IF(OR(G241-ROUND(G241,)<>0,I241-ROUND(I241,)<>0,K241-ROUND(K241,)<>0,M241-ROUND(M241,)<>0,O241-ROUND(O241,)<>0,Q241-ROUND(Q241,)<>0),"No decimal places allowed","") ->  | V241: =VLOOKUP($C241,'Min Max table'!$A$5:$C$208,2,FALSE) -> 0 | W241: =VLOOKUP($C241,'Min Max table'!$A$5:$C$205,3,FALSE) -> 200000
B242: Total Depreciation | C242: 720 | G242: =SUM(G239:G241) -> 0 | H242: 0 | I242: =SUM(I239:I241) -> 0 | K242: =SUM(K239:K241) -> 0 | L242: =+M242-K242 -> 0 | M242: =SUM(M239:M241) -> 0 | O242: =SUM(O239:O241) -> 0 | P242: =+Q242-O242 -> 0 | Q242: =SUM(Q239:Q241) -> 0 | V242: =VLOOKUP($C242,'Min Max table'!$A$5:$C$208,2,FALSE) -> 0 | W242: =VLOOKUP($C242,'Min Max table'!$A$5:$C$205,3,FALSE) -> 0
B244: 7 TRUST REVENUE RESERVES
G245: Balance at 31 Aug 23 | H245: Balance at 31 Mar 24 | K245: Balance at 31 Aug 24 | L245: Balance at 31 Mar 25 | M245: Balance at 31 Aug 25 | O245: Balance at 31 Mar 26 | P245: Balance at 31 Aug 26
B246: Trust total | C246: Line no. | D246: Help text | E246: Validation | G246: £'000 | H246: £'000 | K246: £'000 | L246: £'000 | M246: £'000 | O246: £'000 | P246: £'000 | R246: Help Text Guidance
B247: Total Trust Reserves | C247: 1001 | D247: i | E247: =IF(OR(S247<>"",T247<>"",U247<>"",Z247<>""),"Check- see columns S-Z for info","") ->  | G247: =SUM(G259:G348,G254,)+G251 -> 0 | H247: =SUM(H259:H348,H254,)+H251 -> 0 | K247: =IF($C$255="Yes",(SUM(K251,K254)),(SUM(K259:K348,K254,)+K251)) -> 0 | L247: =IF($C$255="Yes",(SUM(L251,L254)),(SUM(L259:L348,L254,)+L251)) -> 0 | M247: =IF($C$255="Yes",(SUM(M251,M254)),(SUM(M259:M348,M254,)+M251)) -> 0 | O247: =IF($C$255="Yes",(SUM(O251,O254)),(SUM(O259:O348,O254,)+O251)) -> 0 | P247: =IF($C$255="Yes",(SUM(P251,P254)),(SUM(P259:P348,P254,)+P251)) -> 0 | R247: This should equal line 430, however it may not match due to any changes in the structure of your trust. For SATs, this is a calculated field from lines 1000 and 1002 ONLY. For MATs this is a calculated field from lines 1000, 1002 and 800. For this line to populate, enter your figures into line 1000, 1002, or lines 800 depending on whether your reserves are held centrally or at academy level. | V247: =VLOOKUP($C247,'Min Max table'!$A$5:$C$208,2,FALSE) -> 0 | W247: =VLOOKUP($C247,'Min Max table'!$A$5:$C$205,3,FALSE) -> 0 | X247: ="QU"&AB247 -> QU500 | Y247: =IF(Z247="","","Please refer to "&X247&" in the validations table") ->  | Z247: =IF(AC247>0,AD247,"") ->  | AA247: =VLOOKUP(X247,'Trust validations table'!$A$15:$E$346,4,FALSE) -> Trust reserves: Line 1001 - Total Trust Reserves | AB247: 500 | AC247: =IF($P$247-$P$110<>0,$AB247,0) -> 0 | AD247: The closing balance of all reserves for the trust isn't equal to the revenue reserves balance c/f at 31 August for the forecast year on line 430. Give us a brief explanation. | AE247: IF($P$224-$P$99<>0,$AB224,0)
B251: Adjustments to reserve balances | C251: 1002 | D251: i | E251: =IF(OR(S251<>"",T251<>"",U251<>"",Z251<>""),"Check- see columns S-Z for info","") ->  | R251: Use this line if you need to adjust the reserve balances, for example, if you have new academies that aren't included on the form and you have included financial data for them. | S251: =IF(OR(G251-ROUND(G251,)<>0,H251-ROUND(H251,)<>0,K251-ROUND(K251,)<>0,L251-ROUND(L251,)<>0,M251-ROUND(M251,)<>0,O251-ROUND(O251,)<>0,P251-ROUND(P251,)<>0),"No decimal places allowed","") ->  | T251: =IF(OR(G251<V251,H251<V251,K251<V251,L251<V251,M251<V251,O251<V251,P251<V251,P251<V251),"Deficit is too high in at least one period","") ->  | U251: =IF(OR(G251>W251,H251>W251,K251>W251,L251>W251,M251>W251,O251>W251,P251>W251),"Reserves balance is too high during at least one period","") ->  | V251: =VLOOKUP($C251,'Min Max table'!$A$5:$C$208,2,FALSE) -> -999999 | W251: =VLOOKUP($C251,'Min Max table'!$A$5:$C$205,3,FALSE) -> 999999 | X251: ="QU"&AB251 -> QU503 | Y251: =IF(Z251="","","Please refer to "&X251&" in the validations table") ->  | Z251: =IF(AC251>0,AD251,"") ->  | AA251: =VLOOKUP(X251,'Trust validations table'!$A$15:$E$346,4,FALSE) -> Trust reserves: Line 1002 - Adjustments to reserve balances | AB251: 503 | AC251: =IF(OR(G251<>0,H251<>0,M251<>0,K251<>0,L251<>0,O251<>0,P251<>0),AB251,0) -> 0 | AD251: Tell us why you've adjusted the reserves balances, for example, are you including additional academies that haven't been recorded on the list below? | AE251: IF(OR(G228<>0,H228<>0,M228<>0,K228<>0,L228<>0,O228<>0,P228<>0),AB228,0)
B254: Centrally held reserves | C254: 1000 | D254: i | E254: =IF(OR(S254<>"",T254<>"",U254<>"",Z254<>""),"Check- see columns S-Z for info","") ->  | R254: Pooled Funding: When GAG funding is fully pooled, this will be the trust's total reserves. This applies to all SATs. Non-Pooled Funding: MATs only. If your GAG funding is not fully pooled, and you hold reserves centrally and at academy level, adjust the centrally held reserves in line 1000 to show the value of reserves held centrally, and then the reserve balances for each academy within the 800 lines. If you only hold reserve balances centrally, and not at academy level, this should equal line 430. Once lines 1000 and/or 800 are populated, then line 1001 will populate automatically. | S254: =IF(OR(G254-ROUND(G254,)<>0,H254-ROUND(H254,)<>0,K254-ROUND(K254,)<>0,L254-ROUND(L254,)<>0,M254-ROUND(M254,)<>0,O254-ROUND(O254,)<>0,P254-ROUND(P254,)<>0),"No decimal places allowed","") ->  | T254: =IF(OR(G254<V254,H254<V254,K254<V254,L254<V254,M254<V254,O254<V254,P254<V254,P254<V254),"Deficit is too high in at least one period","") ->  | U254: =IF(OR(G254>W254,H254>W254,K254>W254,L254>W254,M254>W254,O254>W254,P254>W254),"Reserves balance is too high during at least one period","") ->  | V254: =VLOOKUP($C254,'Min Max table'!$A$5:$C$208,2,FALSE) -> -999999 | W254: =VLOOKUP($C254,'Min Max table'!$A$5:$C$205,3,FALSE) -> 999999 | X254: ="QU"&AB254 -> QU502 | Y254: =IF(Z254="","","Please refer to "&X254&" in the validations table") ->  | Z254: =IF(AC254>0,AD254,"") ->  | AA254: =VLOOKUP(X254,'Trust validations table'!$A$15:$E$346,4,FALSE) -> Trust reserves: Line 1000 - Centrally held reserves | AB254: 502 | AC254: =IF(OR(K254<0,M254<0,P254<0),AB254,0) -> 0 | AD254: There's a deficit on your closing reserves either at the end of the prior year, current year or forecast year. Tell us about the circumstances and the steps planned/taken to eliminate the deficit. | AE254: IF(OR(K224<0,M224<0,P224<0),AB231,0)
B255: Do you pool all of your GAG funding and are all Reserves are held centrally? | C255: No | D255: i
B257: Use the below 800 lines if you answered "No" to the above question and hold reserves at academy level. If you answered "Yes" and do not hold reserves at academy level - Skip to line 1990 - DfE Grant income in the Three year forecast section.
A258: UPIN | B258: Academy Name | C258: Line no. | D258: Help text | E258: Validation | R258: Help Text Guidance
A259: =IF('Organisation user'!B26="","",'Organisation user'!B26) ->  | B259: =IF('Organisation user'!C26="","",'Organisation user'!C26) ->  | C259: 800 | D259: i | E259: =IF($C$255="Yes","",IF(AND(AA259=0,OR(S259<>"",T259<>"",U259<>"",Z259<>"")),"Check- see columns S-Z for info","")) ->  | R259: The number of academies in the return should match the number of academy reserves. The balances should be the balance for each academy (unless you pool GAG funding). Deficits are entered as a negative value. Figures entered in here will automatically add into line 1001 - Total trust reserves. | S259: =IF(OR(G259-ROUND(G259,)<>0,H259-ROUND(H259,)<>0,K259-ROUND(K259,)<>0,L259-ROUND(L259,)<>0,M259-ROUND(M259,)<>0,O259-ROUND(O259,)<>0,P259-ROUND(P259,)<>0),"No decimal places allowed","") ->  | T259: =IF(OR(G259<V259,H259<V259,K259<V259,L259<V259,M259<V259,O259<V259,P259<V259),"A value S241is below the minimum value allowed","") ->  | U259: =IF(OR(G259>W259,H259>W259,K259>W259,L259>W259,M259>W259,O259>W259,P259>W259),"Input value is too high","") ->  | V259: =VLOOKUP($C259,'Min Max table'!$A$5:$C$208,2,FALSE) -> -200000 | W259: =VLOOKUP($C259,'Min Max table'!$A$5:$C$205,3,FALSE) -> 200000 | X259: ="QU"&AB259 -> QU310 | Y259: =IF(Z259="","","Please refer to "&X259&" in the validations table") ->  | Z259: =IF(AC259>0,AD259,"") ->  | AA259: =VLOOKUP(X259,'Trust validations table'!$A$15:$E$346,4,FALSE) -> Trust reserves: Line 800 - Academy reserves | AB259: 310 | AC259: =IF(OR(K259<0,M259<0,P259<0),AB259,0) -> 0 | AD259: There is a deficit on your closing reserves either at the end of Yr1, Yr2 or Yr3. Could you explain the circumstances and what steps are planned/ you took to eliminate the deficit. | AE259: IF(OR(K235<0,M235<0,P235<0),AB235,0)
A260: =IF('Organisation user'!B27="","",'Organisation user'!B27) ->  | B260: =IF('Organisation user'!C27="","",'Organisation user'!C27) ->  | C260: 801 | S260: =IF(OR(G260-ROUND(G260,)<>0,H260-ROUND(H260,)<>0,K260-ROUND(K260,)<>0,L260-ROUND(L260,)<>0,M260-ROUND(M260,)<>0,O260-ROUND(O260,)<>0,P260-ROUND(P260,)<>0),"No decimal places allowed","") ->  | T260: =IF(OR(G260<V260,H260<V260,K260<V260,L260<V260,M260<V260,O260<V260,P260<V260),"A value S241is below the minimum value allowed","") ->  | U260: =IF(OR(G260>W260,H260>W260,K260>W260,L260>W260,M260>W260,O260>W260,P260>W260),"Input value is too high","") ->  | V260: =VLOOKUP($C260,'Min Max table'!$A$5:$C$208,2,FALSE) -> -200000 | W260: =VLOOKUP($C260,'Min Max table'!$A$5:$C$205,3,FALSE) -> 200000 | X260: QU311 | AA260: =VLOOKUP(X260,'Trust validations table'!$A$15:$E$346,4,FALSE) -> Trust reserves: Line 800 - Academy reserves | AB260: =1+AB259 -> 311 | AC260: =IF(OR(K260<0,M260<0,P260<0),AB260,0) -> 0 | AD260: There is a deficit on your closing reserves either at the end of Yr1, Yr2 or Yr3. Could you explain the circumstances and what steps are planned/ you took to eliminate the deficit. | AE260: IF(OR(K236<0,M236<0,P236<0),AB236,0)
A261: =IF('Organisation user'!B28="","",'Organisation user'!B28) ->  | B261: =IF('Organisation user'!C28="","",'Organisation user'!C28) ->  | C261: 802 | V261: =VLOOKUP($C261,'Min Max table'!$A$5:$C$208,2,FALSE) -> -200000 | W261: =VLOOKUP($C261,'Min Max table'!$A$5:$C$205,3,FALSE) -> 200000 | X261: QU312 | AA261: =VLOOKUP(X261,'Trust validations table'!$A$15:$E$346,4,FALSE) -> Trust reserves: Line 800 - Academy reserves | AB261: =1+AB260 -> 312 | AC261: 0 | AD261: There is a deficit on your closing reserves either at the end of Yr1, Yr2 or Yr3. Could you explain the circumstances and what steps are planned/ you took to eliminate the deficit. | AE261: IF(OR(K237<0,M237<0,P237<0),AB237,0)
A262: =IF('Organisation user'!B29="","",'Organisation user'!B29) ->  | B262: =IF('Organisation user'!C29="","",'Organisation user'!C29) ->  | C262: 803 | V262: =VLOOKUP($C262,'Min Max table'!$A$5:$C$208,2,FALSE) -> -200000 | W262: =VLOOKUP($C262,'Min Max table'!$A$5:$C$205,3,FALSE) -> 200000 | X262: QU313 | AA262: =VLOOKUP(X262,'Trust validations table'!$A$15:$E$346,4,FALSE) -> Trust reserves: Line 800 - Academy reserves | AB262: 313 | AC262: 0 | AD262: There is a deficit on your closing reserves either at the end of Yr1, Yr2 or Yr3. Could you explain the circumstances and what steps are planned/ you took to eliminate the deficit. | AE262: IF(OR(K238<0,M238<0,P238<0),AB238,0)
... 117 more rows

Sheet Revenue Reserves Bal Details
A1: Revenue Reserve balance details | AA1: hidden from here
A3: You will trigger the Reserve balance details page within the online form if your revenue reserves in line 430 - Balance c/f 31 Aug 25 are equal to or greater than 20% of your total revenue income stated in line 298 – Total revenue income for 2024/2025. See the box below to identify if you will trigger the page. If your % is 20 or above, you will need to complete the following section.
B5: Your revenue reserves as a % of your total revenue income are:
B6: ='BFR 2025'!L110/'BFR 2025'!M58 -> 
A8: What is the value of actual reserves your trust is holding for contingency? This may be in line with your reserve policy and the level of reserves identified by trustees as being appropriate to hold. Setting aside some funds for contingency and uncertainty will support in unforeseen circumstances and with any unexpected extra costs.
A9: Enter all financial data using the format £'000. For example, for £100,000 enter £100
A11: £
B14: Provide more details and context to explain your answer
A18: Select the main plans for your remaining reserves balance from the options below. This is the difference between your Total reserves from line 430 and the actual reserves held for contingency amount you have told us above. For example if your Total reserves are £100,000.00 and your Actual reserves held for contingency are £20,000.00, then your remaining balance to disclose below would be £80,000.00. We want to know your plans for the £80,000.00. Enter the £80,000.00 using the format £,000 – for example £80,000.00 would be entered as 80. You can select more than one option. For example, 80 split across 3 options as 30, 30 and 20. Details should relate to plans for reserves you currently hold however if you allocate more funds to plans than you currently hold, provide the details of this as narrative.
B20: Your revenue reserve amount is:
A21: £ | B21: ='BFR 2025'!L110 -> 0
A24: FALSE | B24: IT and systems This could include plans to spend reserves on IT upgrades and installations, purchasing or maintenance of digital equipment, alarm systems, network costs.
C26: Provide further details for this
C29: Provide an approximate cost
B30: £
C32: Provide an approximate end date (MM/YYY)
A36: FALSE | B36: Pupil provision This could include plans to spend reserves on things specific to pupils such as curriculum or SEND. It could also capture the need for reserves to be held due to falling or raising pupil numbers.
C38: Provide further details for this
C41: Provide an approximate cost
B42: £
C44: Provide an approximate end date (MM/YYYY)
A48: FALSE | B48: Staff provision This could cover costs relating to the recruitment, management and development of staff within the trust for example planned training commitments. It also includes funding set aside for teacher pay awards.
C50: Provide further details for this
C53: Provide an approximate cost
B54: £
C56: Provide an approximate end date (MM/YYYY)
A60: FALSE | B60: Finance & strategy This could include the cost of plans to develop school improvement strategies, investments into central services to improve delivery, funds to offset deficits in future years, paying back loans etc.
C62: Provide further details for this
C65: Provide an approximate cost
B66: £
C68: Provide an approximate end date (MM/YYYY)
A72: FALSE | B72: New buildings & estates projects This could include plans to expand the academy trust's premises for example, building a new classroom or sports hall or purchasing new properties.
C74: Provide further details for this
C77: Provide an approximate cost
B78: £
C80: Provide an approximate end date (MM/YYYY)
A84: FALSE | B84: Maintenance & improvements to existing buildings & estate projects This could include any plans to spend reserves on the current buildings and estates within the academy trust for example, refurbishments to classrooms, buying furniture, replacing windows, investments into solar panels etc.
C86: Provide further details for this
C89: Provide an approximate cost
B90: £
C92: Provide an approximate end date (MM/YYYY)
A96: FALSE | B96: Other spend This should only include any plans that cannot be captured in the above spend categories.
C98: Provide further details for this
C101: Provide an approximate cost
B102: £
C104: Provide an approximate end date (MM/YYYY)

Sheet Summary declaration
A1: Summary Declaration
B3: To ensure that figures input into the form have been rounded to the nearest £000, please review and confirm that the information in the table below is a true picture of your trust.
B4: Tick the box to confirm that the reported as figures are a true reflection of your trusts figures and show the unrounded position (in the orange cells).
B5: If these figures are incorrect, please go to the relevant section to amend data input.
B6: As with the online form, enter all monetary balances in round £000s, not pounds and pence. For example, for £10,471.23 enter 10, but for £10,891.25 enter 11. Enter a six-figure amount like £453,678 as 454.
F8: Actuals | G8: Actuals | H8: TOTAL | J8: Actuals | K8: Forecast | L8: TOTAL | N8: Forecast | O8: Forecast | P8: TOTAL
B9: Section of workbook | D9: line no. | F9: Sep 23 - Mar 24 | G9: Apr 24 - Aug 24 | H9: 2023/24 | J9: Sep 24 - Mar 25 | K9: Apr 25 - Aug 25 | L9: 2024/25 | N9: Sep 25 - Mar 26 | O9: Apr 26 - Aug 26 | P9: 2025/26
B11: Revenue totals | C11: Net revenue income/(expenditure) for the period | D11: 400 | E11: calculated from input as (£000) | F11: ='BFR 2025'!G101 -> 0 | G11: ='BFR 2025'!H101 -> 0 | H11: ='BFR 2025'!I101 -> 0 | J11: ='BFR 2025'!K101 -> 0 | K11: ='BFR 2025'!L101 -> 0 | L11: ='BFR 2025'!M101 -> 0 | N11: ='BFR 2025'!O101 -> 0 | O11: ='BFR 2025'!P101 -> 0 | P11: ='BFR 2025'!Q101 -> 0
E12: reported as (£) | F12: =F11*1000 -> 0 | G12: =G11*1000 -> 0 | H12: =H11*1000 -> 0 | J12: =J11*1000 -> 0 | K12: =K11*1000 -> 0 | L12: =L11*1000 -> 0 | N12: =N11*1000 -> 0 | O12: =O11*1000 -> 0 | P12: =P11*1000 -> 0
B14: Capital totals | C14: Net capital income/(expenditure) for the period | D14: 660 | E14: calculated from input as (£000) | F14: ='BFR 2025'!G174 -> 0 | G14: ='BFR 2025'!H174 -> 0 | H14: ='BFR 2025'!I174 -> 0 | J14: ='BFR 2025'!K174 -> 0 | K14: ='BFR 2025'!L174 -> 0 | L14: ='BFR 2025'!M174 -> 0 | N14: ='BFR 2025'!O174 -> 0 | O14: ='BFR 2025'!P174 -> 0 | P14: ='BFR 2025'!Q174 -> 0
E15: reported as (£) | F15: =F14*1000 -> 0 | G15: =G14*1000 -> 0 | H15: =H14*1000 -> 0 | J15: =J14*1000 -> 0 | K15: =K14*1000 -> 0 | L15: =L14*1000 -> 0 | N15: =N14*1000 -> 0 | O15: =O14*1000 -> 0 | P15: =P14*1000 -> 0
F17: Balance at 31 Aug 23 | G17: Balance at 31 Mar 24 | J17: Balance at 31 Aug 24 | K17: Balance at 31 Mar 25 | L17: Balance at 31 Aug 25 | N17: Balance at 31 Mar 26 | O17: Balance at 31 Aug 26
B19: Reserves total | C19: Total trust reserves | D19: 1001 | E19: calculated from input as (£000) | F19: ='BFR 2025'!G247 -> 0 | G19: ='BFR 2025'!H247 -> 0 | J19: ='BFR 2025'!K247 -> 0 | K19: ='BFR 2025'!L247 -> 0 | L19: ='BFR 2025'!M247 -> 0 | N19: ='BFR 2025'!O247 -> 0 | O19: ='BFR 2025'!P247 -> 0
E20: reported as (£) | F20: =F19*1000 -> 0 | G20: =G19*1000 -> 0 | J20: =J19*1000 -> 0 | K20: =K19*1000 -> 0 | L20: =L19*1000 -> 0 | N20: =N19*1000 -> 0 | O20: =O19*1000 -> 0
B25: Three year forecast
B27: Section of form | D27: line no. | F27: 2025/26 | G27: 2026/27 | H27: 2027/2028
B29: Revenue Net | D29: 4000 | E29: calculated from input as (£000) | F29: ='BFR 2025'!H372 -> 0 | G29: ='BFR 2025'!I372 -> 0 | H29: ='BFR 2025'!J372 -> 0
E30: reported as (£) | F30: =F29*1000 -> 0 | G30: =G29*1000 -> 0 | H30: =H29*1000 -> 0
B31: Capital Net | D31: 6600 | E31: calculated from input as (£000) | F31: ='BFR 2025'!H380 -> 0 | G31: ='BFR 2025'!I380 -> 0 | H31: ='BFR 2025'!J380 -> 0
E32: reported as (£) | F32: =F31*1000 -> 0 | G32: =G31*1000 -> 0 | H32: 0
B33: Trust Reserves | D33: 8000 | E33: calculated from input as (£000) | F33: ='BFR 2025'!H393 -> 0 | G33: ='BFR 2025'!I393 -> 100 | H33: ='BFR 2025'!J393 -> 0
E34: reported as (£) | F34: =F33*1000 -> 0 | G34: =G33*1000 -> 100000 | H34: =H33*1000 -> 0
D37: Please confirm that these are your correct balances.
D39: No | F39: =IF(D39="Yes","","You must select yes") -> You must select yes

Sheet Preparer declaration
C2: Preparer Declaration
C4: Contact details of person completing the form
C6: Please enter these details so the DFE can contact you if there are any questions.
C8: Contact name:
C12: Contact email address:
C16: Contact phone number:
C21: Are there any other comments you wish to add in relation to this submission?
C27: Date:
C29: I confirm that I have selected and completed all relevant sections, input the required information accurately and resolved all validation flags. I confirm that the information entered is accurate, complete and relates to the correct periods on a consistent basis using the guidance provided by the Department for Education.
C34: No | F34: =IF(C34="Yes","","You must select yes") -> You must select yes
C37: No of validations outstanding | G37: =SUM('Trust validations table'!C5:C6) -> 13
D42: Yes
D43: No

Sheet Approver declaration
C2: Academy Trust Declaration (approver)
C4: Contact details of person completing the form
C5: Please enter these details so the DFE can contact you if there are any questions.
C7: Contact name:
C11: Contact email address:
C15: Contact phone number:
C19: Are you the Accounting Officer? | G19: No
E21: Name of Accounting Officer (if different to name above):
E25: E-mail address:
C30: Approve or reject submission? | G30: Reject
C32: Are there any other comments you wish to add in relation to this submission?
C38: Date:
C41: "I confirm that I have been authorised by the trust's accounting officer to submit this return. In doing so I confirm, on behalf of the trust's accounting officer, that the entries in the budget forecast return have been prepared on a consistent basis and presented in accordance with the guidance notes issued by the Department for Education." | L41: OR | M41: "I confirm that the entries in the budget forecast return have been prepared on a consistent basis and presented in accordance with the guidance notes issued by the Department for Education."
S42: No | U42: =IF(S42="Yes","","You must select yes") -> You must select yes
C45: "I confirm that the trustees have reviewed and approved the content of this form and that I am ready to submit" | M45: No | O45: =IF(M45="Yes","","You must select yes") -> You must select yes
C49: No of validations outstanding | G49: =SUM('Trust validations table'!C5:C6) -> 13
D54: Yes
D55: No

Sheet Min Max table
A1: Table of min and max values
A2: This table is for info only. The values are used in the 'BFR 2025' tab for the min/max tests.
A4: Line no. | B4: Minimum value | C4: Maximum value | D4: Description
A5: 101 | B5: =-100000 -> -100000 | C5: =100000 -> 100000 | D5: Rates reclaim
A6: 102 | B6: 0 | C6: =800000 -> 800000 | D6: General Annual Grant (GAG) (excluding Student Service Grant)
A7: 103 | B7: 0 | C7: =100000 -> 100000 | D7: Student Services Grant (Academy Post 16 Bursary Funding)
A8: 105 | B8: 0 | C8: 100000 | D8: Start Up Grants
A9: 108 | B9: 0 | C9: 100000 | D9: Pupil Premium & Service Premium
A10: 132 | B10: =-100000 -> -100000 | C10: 100000 | D10: Pupil Number Adjustment
A11: 135 | B11: 0 | C11: 100000 | D11: Other DfE revenue grants
A12: 136 | B12: 0 | C12: 100000 | D12: Universal Infant Free School Meals
A13: 137 | B13: 0 | C13: 100000 | D13: Insurance
A14: 138 | B14: 0 | C14: =300000 -> 300000 | D14: Sponsor Capacity Grant
A15: 150 | B15: =-100000 -> -100000 | C15: =300000 -> 300000 | D15: Other DfE family revenue Grants
A16: 199 | D16: Total DfE revenue Income
A17: 200 | B17: -400000 | C17: =100000 -> 100000 | D17: Local authority revenue income
A18: 205 | B18: -400000 | C18: =100000 -> 100000 | D18: Other government grants
A19: 210 | B19: -400000 | C19: =100000 -> 100000 | D19: Income from trading activities
A20: 211 | B20: -400000 | C20: =100000 -> 100000 | D20: Income from trading activities
A21: 212 | B21: -400000 | C21: =400000 -> 400000 | D21: ='BFR 2025'!B50 -> Revenue surplus transfer of an existing academy in / (out) of the trust
A22: 215 | B22: -400000 | C22: =400000 -> 400000 | D22: Revenue surplus transfer to academy on conversion
A23: 218
A24: 220 | B24: -500000 | C24: =100000 -> 100000 | D24: Other income, including investment income
A25: 250 | D25: Total Other revenue Income
A26: 255 | B26: =-400000 -> -400000 | C26: =400000 -> 400000 | D26: Transfers between Revenue and Capital (line 585)
A27: 298 | D27: Total Revenue Income
A28: 310 | B28: 0 | C28: =800000 -> 800000 | D28: Wages and Salaries
A29: 311 | B29: 0 | C29: =200000 -> 200000 | D29: Social Security Costs
A30: 320 | B30: 0 | C30: =200000 -> 200000 | D30: Pension Cost: Teaching staff
A31: 325 | B31: 0 | C31: =200000 -> 200000 | D31: Pension Cost: Non-teaching staff
A32: 335 | D32: Total staff costs
A33: 336 | B33: 0 | C33: 100000 | D33: ICT costs - connectivity
A34: 337 | B34: 0 | C34: 100000 | D34: ICT costs - Onsite servers
A35: 338 | B35: 0 | C35: 100000 | D35: ICT costs - IT learning resources
A36: 339 | B36: 0 | C36: 100000 | D36: ICT costs - Administration software and systems
A37: 340 | B37: 0 | C37: 100000 | D37: ICT costs - Laptops, desktops and tablets
A38: 341 | B38: 0 | C38: 100000 | D38: ICT costs - Other hardware
A39: 342 | B39: 0 | C39: 100000 | D39: ICT costs - IT support
A40: 330 | B40: 0 | C40: =200000 -> 200000 | D40: Other Staff Support Costs
A41: 349 | D41: Subtotal Support costs
A42: 350 | B42: -200000 | C42: =200000 -> 200000 | D42: ='BFR 2025'!B88 -> Revenue deficit transfer of an existing academy in / (out) of the trust
A43: 351 | B43: 0 | C43: =200000 -> 200000 | D43: Revenue deficit transfer to academy on conversion
A44: 352 | D44: Subtotal Transfers deficit
A45: 378 | B45: 0 | C45: 800000 | D45: Non staff costs (cash)
A46: 379 | B46: 0 | C46: =200000 -> 200000 | D46: Building repair & maintenance / Building improvements
A47: 380 | D47: Total revenue expenditure
A48: 395 | B48: 0 | C48: =200000 -> 200000 | D48: Other non cash costs
A49: 400 | D49: Net revenue income/(expenditure) for the period
A50: 410 | B50: =-400000 -> -400000 | C50: =400000 -> 400000 | D50: Balance b/f from previous period
A51: 430 | D51: Balance c/f to next period
A52: 510 | B52: =-400000 -> -400000 | C52: =400000 -> 400000 | D52: Devolved formula capital
A53: 520 | B53: =-400000 -> -400000 | C53: =400000 -> 400000 | D53: Value of any capital donation of an asset from the DfE for PSBP/Free Schools programme
A54: 530 | B54: =-400000 -> -400000 | C54: =400000 -> 400000 | D54: Other DfE income - Capital
A55: 540 | B55: =-400000 -> -400000 | C55: =400000 -> 400000 | D55: Other DfE family Capital Grants
A56: 550 | D56: Total DfE Capital Income
A57: 560 | B57: =-400000 -> -400000 | C57: =400000 -> 400000 | D57: Local authority capital income (cash)
A58: 570 | B58: =-400000 -> -400000 | C58: 400000 | D58: Non Government capital income
A59: 571 | B59: =-400000 -> -400000 | C59: 400000 | D59: Other Government Grant capital income
A60: 572 | B60: 0 | C60: 400000 | D60: Capital assets transferred to academy on conversion
A61: 573 | B61: 0 | C61: 400000 | D61: Capital assets transferred of an existing academy into the trust
A62: 574 | B62: 0 | C62: 400000 | D62: Endowment releases to fund capital expenditure
A63: 575 | B63: 0 | C63: 400000 | D63: Local authority donated assets
A64: 580 | D64: Total Other Capital Income
A65: 581 | B65: 0 | C65: 400000 | D65: Land & buildings disposals
A66: 582 | B66: 0 | C66: =200000 -> 200000 | D66: Other fixed assets disposals
A67: 584 | D67: Total Disposal proceeds
A68: 585 | D68: Transfers between Revenue and Capital (contra line 255)
A69: 599 | D69: Total Capital Income
A70: 601 | B70: 0 | C70: =400000 -> 400000 | D70: Land & buildings additions funded by DfE grants
A71: 605 | B71: 0 | C71: 400000 | D71: Land & buildings donated to the trust by the DfE (PSPB/Free Schools Programme)
A72: 606 | B72: 0 | C72: 400000 | D72: Local authority donated assets expense
A73: 615 | B73: 0 | C73: 400000 | D73: Land & buildings additions funded by other capital grants
A74: 620 | B74: 0 | C74: 400000 | D74: Land & buildings additions funded by reserves
A75: 621 | B75: 0 | C75: 100000 | D75: ICT costs - connectivity
A76: 622 | B76: 0 | C76: 100000 | D76: ICT costs - onsite servers
A77: 623 | B77: 0 | C77: 100000 | D77: ICT costs - administration software and systems
A78: 624 | B78: 0 | C78: 100000 | D78: ICT costs - laptops, desktops and tablets
A79: 625 | B79: 0 | C79: 100000 | D79: ICT costs - other hardware
A80: 636 | B80: 0 | C80: 400000 | D80: Other fixed assets additions funded by DfE grants
A81: 637 | B81: 0 | C81: 400000 | D81: Other fixed assets additions funded by other capital grants
A82: 638 | B82: 0 | C82: 400000 | D82: Other fixed assets additions funded by reserves
A83: 639 | B83: =-400000 -> -400000 | C83: 0 | D83: Capital assets transferred of an existing academy out of the trust
A84: 650 | D84: Total Capital Expenditure
A85: 660 | D85: Net Capital income/(expenditure) for the period
A86: 670 | B86: -400000 | C86: 400000 | D86: Capital Totals Bal Bfwd from previous
A87: 680 | D87: Capital Balance Cfwd to next period
A88: 700 | B88: 0 | C88: =400000 -> 400000 | D88: Cash at bank and in hand
A89: 701 | B89: =-200000 -> -200000 | C89: 0 | D89: Overdrafts
A90: 710 | B90: =-100000 -> -100000 | C90: =100000 -> 100000 | D90: Gain/loss on disposal of fixed assets
A91: 712 | B91: =-100000 -> -100000 | C91: =400000 -> 400000 | D91: Impairment charges
A92: 715 | B92: 0 | C92: =200000 -> 200000 | D92: Buildings depreciation
A93: 716 | B93: 0 | C93: =200000 -> 200000 | D93: Other assets donated depreciation
A94: 717 | B94: 0 | C94: =200000 -> 200000 | D94: Other assets owned depreciation
A95: 720 | D95: Total Depreciation
A96: 725 | B96: 0 | C96: =400000 -> 400000 | D96: Investments
A97: 730 | B97: 0 | C97: =100000 -> 100000 | D97: Investment liquidations
A98: 736 | B98: 0 | C98: =100000 -> 100000 | D98: Provision increase
A99: 737 | B99: =-100000 -> -100000 | C99: 0 | D99: Provisions release (enter as a negative value)
A100: 738 | B100: =-100000 -> -100000 | C100: 0 | D100: Provision utilisation
A101: 780 | B101: 0 | C101: =100000 -> 100000 | D101: Opening outstanding loans
A102: 785 | B102: =-100000 -> -100000 | C102: =100000 -> 100000 | D102: Increase/(Decrease) in outstanding loans
A103: 789 | D103: Closing outstanding loans
A104: 800 | B104: =-200000 -> -200000 | C104: =200000 -> 200000 | D104: UPIN
A105: 801 | B105: -200000 | C105: 200000 | D105: UPIN
A106: 802 | B106: -200000 | C106: 200000 | D106: UPIN
A107: 803 | B107: -200000 | C107: 200000 | D107: UPIN
A108: 804 | B108: -200000 | C108: 200000 | D108: UPIN
A109: 805 | B109: -200000 | C109: 200000 | D109: UPIN
A110: 806 | B110: -200000 | C110: 200000 | D110: UPIN
A111: 807 | B111: -200000 | C111: 200000 | D111: UPIN
A112: 808 | B112: -200000 | C112: 200000 | D112: UPIN
A113: 809 | B113: -200000 | C113: 200000 | D113: UPIN
A114: 810 | B114: -200000 | C114: 200000 | D114: UPIN
A115: 811 | B115: -200000 | C115: 200000 | D115: UPIN
A116: 812 | B116: -200000 | C116: 200000 | D116: UPIN
A117: 813 | B117: -200000 | C117: 200000 | D117: UPIN
A118: 814 | B118: -200000 | C118: 200000 | D118: UPIN
A119: 815 | B119: -200000 | C119: 200000 | D119: UPIN
A120: 816 | B120: -200000 | C120: 200000 | D120: UPIN
A121: 817 | B121: -200000 | C121: 200000 | D121: UPIN
A122: 818 | B122: -200000 | C122: 200000 | D122: UPIN
A123: 819 | B123: -200000 | C123: 200000 | D123: UPIN
A124: 820 | B124: -200000 | C124: 200000 | D124: UPIN
A125: 821 | B125: -200000 | C125: 200000 | D125: UPIN
A126: 822 | B126: -200000 | C126: 200000 | D126: UPIN
A127: 823 | B127: -200000 | C127: 200000 | D127: UPIN
A128: 824 | B128: -200000 | C128: 200000 | D128: UPIN
A129: 825 | B129: -200000 | C129: 200000 | D129: UPIN
A130: 826 | B130: -200000 | C130: 200000 | D130: UPIN
A131: 827 | B131: -200000 | C131: 200000 | D131: UPIN
A132: 828 | B132: -200000 | C132: 200000 | D132: UPIN
A133: 829 | B133: -200000 | C133: 200000 | D133: UPIN
A134: 830 | B134: -200000 | C134: 200000 | D134: UPIN
A135: 831 | B135: -200000 | C135: 200000 | D135: UPIN
A136: 832 | B136: -200000 | C136: 200000 | D136: UPIN
A137: 833 | B137: -200000 | C137: 200000 | D137: UPIN
A138: 834 | B138: -200000 | C138: 200000 | D138: UPIN
A139: 835 | B139: -200000 | C139: 200000 | D139: UPIN
A140: 836 | B140: -200000 | C140: 200000 | D140: UPIN
A141: 837 | B141: -200000 | C141: 200000 | D141: UPIN
A142: 838 | B142: -200000 | C142: 200000 | D142: UPIN
A143: 839 | B143: -200000 | C143: 200000 | D143: UPIN
A144: 840 | B144: -200000 | C144: 200000 | D144: UPIN
A145: 841 | B145: -200000 | C145: 200000 | D145: UPIN
A146: 842 | B146: -200000 | C146: 200000 | D146: UPIN
A147: 843 | B147: -200000 | C147: 200000 | D147: UPIN
A148: 844 | B148: -200000 | C148: 200000 | D148: UPIN
A149: 845 | B149: -200000 | C149: 200000 | D149: UPIN
A150: 846 | B150: -200000 | C150: 200000 | D150: UPIN
A151: 847 | B151: -200000 | C151: 200000 | D151: UPIN
A152: 848 | B152: -200000 | C152: 200000 | D152: UPIN
A153: 849 | B153: -200000 | C153: 200000 | D153: UPIN
A154: 850 | B154: -200000 | C154: 200000 | D154: UPIN
A155: 851 | B155: -200000 | C155: 200000 | D155: UPIN
A156: 852 | B156: -200000 | C156: 200000 | D156: UPIN
A157: 853 | B157: -200000 | C157: 200000 | D157: UPIN
A158: 854 | B158: -200000 | C158: 200000 | D158: UPIN
A159: 855 | B159: -200000 | C159: 200000 | D159: UPIN
A160: 856 | B160: -200000 | C160: 200000 | D160: UPIN
A161: 857 | B161: -200000 | C161: 200000 | D161: UPIN
A162: 858 | B162: -200000 | C162: 200000 | D162: UPIN
A163: 859 | B163: -200000 | C163: 200000 | D163: UPIN
A164: 860 | B164: -200000 | C164: 200000 | D164: UPIN
A165: 861 | B165: -200000 | C165: 200000 | D165: UPIN
A166: 862 | B166: -200000 | C166: 200000 | D166: UPIN
A167: 863 | B167: -200000 | C167: 200000 | D167: UPIN
A168: 864 | B168: =-200000 -> -200000 | C168: =200000 -> 200000 | D168: UPIN
A169: 865 | B169: -200000 | C169: 200000 | D169: UPIN
A170: 866 | B170: -200000 | C170: 200000 | D170: UPIN
A171: 867 | B171: -200000 | C171: 200000 | D171: UPIN
A172: 868 | B172: -200000 | C172: 200000 | D172: UPIN
A173: 869 | B173: -200000 | C173: 200000 | D173: UPIN
A174: 870 | B174: -200000 | C174: 200000 | D174: UPIN
A175: 871 | B175: -200000 | C175: 200000 | D175: UPIN
A176: 872 | B176: -200000 | C176: 200000 | D176: UPIN
A177: 873 | B177: -200000 | C177: 200000 | D177: UPIN
A178: 874 | B178: -200000 | C178: 200000 | D178: UPIN
A179: 875 | B179: -200000 | C179: 200000 | D179: UPIN
A180: 876 | B180: -200000 | C180: 200000 | D180: UPIN
A181: 877 | B181: -200000 | C181: 200000 | D181: UPIN
A182: 878 | B182: -200000 | C182: 200000 | D182: UPIN
A183: 879 | B183: -200000 | C183: 200000 | D183: UPIN
A184: 880 | B184: =-200000 -> -200000 | C184: =200000 -> 200000 | D184: UPIN
A185: 881 | B185: -200000 | C185: 200000 | D185: UPIN
A186: 882 | B186: -200000 | C186: 200000 | D186: UPIN
A187: 883 | B187: -200000 | C187: 200000 | D187: UPIN
A188: 884 | B188: -200000 | C188: 200000 | D188: UPIN
A189: 885 | B189: -200000 | C189: 200000 | D189: UPIN
A190: 886 | B190: -200000 | C190: 200000 | D190: UPIN
A191: 887 | B191: -200000 | C191: 200000 | D191: UPIN
A192: 888 | B192: -200000 | C192: 200000 | D192: UPIN
A193: 889 | B193: -200000 | C193: 200000 | D193: UPIN
A194: 999 | B194: 0 | C194: =999999 -> 999999 | D194: Pupil numbers (actual and estimated)
A195: 1000 | B195: =-999999 -> -999999 | C195: =999999 -> 999999 | D195: Centrally held reserves (MATs Only)
A196: 1001 | D196: Total Trust Reserves
A197: 1002 | B197: =-999999 -> -999999 | C197: =999999 -> 999999 | D197: Adjustments to reserve balances
A199: 3 year forecast
A200: Line no. | B200: Minimum value | C200: Maximum value | D200: Description
A201: 1990 | B201: 0 | C201: 800000 | D201: DfE grant income
A202: 2500 | B202: 0 | C202: 400000 | D202: Other income
... 23 more rows

Sheet Trust validations table
A1: Validations table
A2: Trust responses to queries | C2: Please complete your answers in this table. You can then review your answers and paste into the online form.
A5: No of 3Y forecast validations outstanding | C5: =COUNTIF('Trust validations table'!F134:F145,"Response outstanding") -> 4
A6: No of validations outstanding | C6: =COUNTIF('Trust validations table'!F15:F133,"Response outstanding") -> 9
A8: Query reference | C8: Query | D8: Section query relates to | E8: Trust Response | F8: STATUS
A11: FQ1 | B11: =RIGHT(A11,2) -> Q1
A12: FQ2 | B12: Q2
A13: FQ3 | B13: Q3
A14: FQ4 | B14: Q4
A15: QU1 | B15: 1 | C15: =IF(VLOOKUP($A15,'BFR 2025'!$X$31:$AA$395,3,FALSE)=0,"",VLOOKUP($A15,'BFR 2025'!$X$31:$AA$394,3,FALSE)) -> You have forecast zero for GAG income for next year (102). Briefly tell us why this value is zero? | D15: Revenue Income: Line 102 - General Annual Grant (GAG) (excluding Student Service Grant) | F15: =IF(C15="","OK",IF(E15="","Response Outstanding","Response Provided")) -> Response Outstanding
A16: QU99 | B16: 99 | C16: =IF(VLOOKUP($A16,'BFR 2025'!$X$23:$AA$395,3,FALSE)=0,"",VLOOKUP($A16,'BFR 2025'!$X$23:$AA$394,3,FALSE)) -> Please explain why your GAG per pupil is greater than £30k | D16: GAG line 102 divided by pupil numbers line 999 | F16: Response Outstanding
A17: QU2 | B17: 2 | C17: =IF(VLOOKUP($A17,'BFR 2025'!$X$31:$AA$395,3,FALSE)=0,"",VLOOKUP($A17,'BFR 2025'!$X$31:$AA$394,3,FALSE)) ->  | D17: Revenue Income: Line 132 - Pupil Number Adjustment | F17: OK
A18: QU3 | B18: 3 | C18: =IF(VLOOKUP($A18,'BFR 2025'!$X$31:$AA$383,3,FALSE)=0,"",VLOOKUP($A18,'BFR 2025'!$X$31:$AA$382,3,FALSE)) -> Income totals are zero in any year - is this correct? | D18: Revenue totals | F18: Response Outstanding
A19: QU4 | B19: 4 | C19: =IF(VLOOKUP($A19,'BFR 2025'!$X$31:$AA$383,3,FALSE)=0,"",VLOOKUP($A19,'BFR 2025'!$X$31:$AA$382,3,FALSE)) -> Expenditure totals are zero for any year - is this correct? | D19: Revenue totals | F19: Response Outstanding
A20: QU5 | B20: 5 | C20: =IF(VLOOKUP($A20,'BFR 2025'!$X$31:$AA$395,3,FALSE)=0,"",VLOOKUP($A20,'BFR 2025'!$X$31:$AA$394,3,FALSE)) ->  | D20: Revenue expenditure: Line 380 - Total revenue expenditure | F20: OK
A21: QU6 | B21: 6 | C21: =IF(VLOOKUP($A21,'BFR 2025'!$X$31:$AA$395,3,FALSE)=0,"",VLOOKUP($A21,'BFR 2025'!$X$31:$AA$394,3,FALSE)) ->  | D21: Revenue totals: Line 400 - Net revenue income/(expenditure) for the period | F21: OK
A22: QU7 | B22: 7 | C22: =IF(VLOOKUP($A22,'BFR 2025'!$X$31:$AA$395,3,FALSE)=0,"",VLOOKUP($A22,'BFR 2025'!$X$31:$AA$394,3,FALSE)) -> Explain where the opening balance (410) is derived from. This should be from the prior year's Accounts Return. | D22: Revenue totals: Line 410 - Balance b/f from previous period | F22: Response Outstanding
A23: QU8 | B23: 8 | C23: =IF(VLOOKUP($A23,'BFR 2025'!$X$31:$AA$395,3,FALSE)=0,"",VLOOKUP($A23,'BFR 2025'!$X$31:$AA$394,3,FALSE)) -> Please explain why the balance brought forward from previous period (410) is £0 | D23: Revenue totals | F23: Response Outstanding
A24: QU9 | B24: 9 | C24: =IF(VLOOKUP($A24,'BFR 2025'!$X$31:$AA$395,3,FALSE)=0,"",VLOOKUP($A24,'BFR 2025'!$X$31:$AA$394,3,FALSE)) ->  | D24: Revenue totals | F24: OK
A25: QU10 | B25: 10 | C25: =IF(VLOOKUP($A25,'BFR 2025'!$X$31:$AA$395,3,FALSE)=0,"",VLOOKUP($A25,'BFR 2025'!$X$31:$AA$394,3,FALSE)) ->  | D25: Revenue totals: Line 430 - Balance c/f to next period | F25: OK
A26: QU430 | B26: 430 | C26: =IF(VLOOKUP($A26,'BFR 2025'!$X$31:$AA$395,3,FALSE)=0,"",VLOOKUP($A26,'BFR 2025'!$X$31:$AA$394,3,FALSE)) ->  | D26: 20% reserves value
A27: QU11 | B27: 11 | C27: =IF(VLOOKUP($A27,'BFR 2025'!$X$31:$AA$395,3,FALSE)=0,"",VLOOKUP($A27,'BFR 2025'!$X$31:$AA$394,3,FALSE)) ->  | D27: Capital income: Line 570 - Non Government capital income | F27: OK
A28: QU12 | B28: 12 | C28: =IF(VLOOKUP($A28,'BFR 2025'!$X$31:$AA$395,3,FALSE)=0,"",VLOOKUP($A28,'BFR 2025'!$X$31:$AA$394,3,FALSE)) ->  | D28: Capital income: Line 571 - Other Government Grant capital income | F28: OK
A29: QU13 | B29: 13 | C29: =IF(VLOOKUP($A29,'BFR 2025'!$X$31:$AA$395,3,FALSE)=0,"",VLOOKUP($A29,'BFR 2025'!$X$31:$AA$394,3,FALSE)) ->  | D29: Capital income: Line 560 - Local authority capital income (cash) | F29: OK
A30: QU14 | B30: 14 | C30: =IF(VLOOKUP($A30,'BFR 2025'!$X$31:$AA$395,3,FALSE)=0,"",VLOOKUP($A30,'BFR 2025'!$X$31:$AA$394,3,FALSE)) ->  | D30: Capital totals: Line 660 - Net Capital income/(expenditure) for the period | F30: OK
A31: QU15 | B31: 15 | C31: =IF(VLOOKUP($A31,'BFR 2025'!$X$31:$AA$395,3,FALSE)=0,"",VLOOKUP($A31,'BFR 2025'!$X$31:$AA$394,3,FALSE)) -> Check that the figures you've entered for Cash at bank and in hand (700) are correct. If so, explain why your bank balances are all NIL. | D31: Other items: Line 700 - Cash at bank and in hand | F31: Response Outstanding
A32: QU16 | B32: 16 | C32: =IF(VLOOKUP($A32,'BFR 2025'!$X$31:$AA$395,3,FALSE)=0,"",VLOOKUP($A32,'BFR 2025'!$X$31:$AA$394,3,FALSE)) -> Enter your overdraft balances, if not applicable, please state this. If your overdraft was cleared before the balance dates then provide a brief explanation. | D32: Other items: Line 701 - Overdrafts | F32: Response Outstanding
A33: QU17 | B33: 17 | C33: =IF(VLOOKUP($A33,'BFR 2025'!$X$31:$AA$395,3,FALSE)=0,"",VLOOKUP($A33,'BFR 2025'!$X$31:$AA$394,3,FALSE)) ->  | D33: Other items: Line 725 - Investments | F33: OK
A34: QU18 | B34: 18 | C34: =IF(VLOOKUP($A34,'BFR 2025'!$X$31:$AA$395,3,FALSE)=0,"",VLOOKUP($A34,'BFR 2025'!$X$31:$AA$394,3,FALSE)) ->  | D34: Other items: Line 785 - Increase/(Decrease) in outstanding loans | F34: OK
A35: QU19 | B35: 19 | C35: =IF(VLOOKUP($A35,'BFR 2025'!$X$31:$AA$395,3,FALSE)=0,"",VLOOKUP($A35,'BFR 2025'!$X$31:$AA$394,3,FALSE)) ->  | D35: Other items: Line 789 -Closing outstanding loans | F35: OK
A36: QU20 | B36: 20 | C36: =IF(VLOOKUP($A36,'BFR 2025'!$X$31:$AA$395,3,FALSE)=0,"",VLOOKUP($A36,'BFR 2025'!$X$31:$AA$394,3,FALSE)) ->  | D36: Other items: Line 712 - Impairment charges | F36: OK
A37: QU21 | B37: 21 | C37: =IF(VLOOKUP($A37,'BFR 2025'!$X$31:$AA$395,3,FALSE)=0,"",VLOOKUP($A37,'BFR 2025'!$X$31:$AA$394,3,FALSE)) ->  | D37: Capital income: Line 585 - Transfers between Revenue and Capital (contra line 255) | F37: OK
A38: QU22 | B38: 22 | C38: =IF(VLOOKUP($A38,'BFR 2025'!$X$22:$AA$395,3,FALSE)=0,"",VLOOKUP($A38,'BFR 2025'!$X$22:$AA$394,3,FALSE)) -> Check that you've entered pupil numbers correctly (without rounding) or explain why you've inputted no pupil numbers. | D38: Other items: Line 999 - Pupil numbers | F38: Response Outstanding
A39: QU379 | B39: 379 | C39: =IF(VLOOKUP($A39,'BFR 2025'!$X$22:$AA$395,3,FALSE)=0,"",VLOOKUP($A39,'BFR 2025'!$X$22:$AA$394,3,FALSE)) ->  | D39: Building repair & maintenance / Building improvements: Line 379 disclosure only | F39: OK
A40: QU23 | B40: 23 | C40: =IF(VLOOKUP($A40,'BFR 2025'!$X$31:$AA$395,3,FALSE)=0,"",VLOOKUP($A40,'BFR 2025'!$X$31:$AA$394,3,FALSE)) ->  | D40: Revenue expenditure: Line 395 - Other Non cash costs | F40: OK
A41: QU500 | B41: 500 | C41: =IF(VLOOKUP($A41,'BFR 2025'!$X$31:$AA$395,3,FALSE)=0,"",VLOOKUP($A41,'BFR 2025'!$X$31:$AA$394,3,FALSE)) ->  | D41: Trust reserves: Line 1001 - Total Trust Reserves | F41: OK
A42: QU502 | B42: 502 | C42: =IF(VLOOKUP($A42,'BFR 2025'!$X$31:$AA$395,3,FALSE)=0,"",VLOOKUP($A42,'BFR 2025'!$X$31:$AA$394,3,FALSE)) ->  | D42: Trust reserves: Line 1000 - Centrally held reserves | F42: OK
A43: QU503 | B43: 503 | C43: =IF(VLOOKUP($A43,'BFR 2025'!$X$31:$AA$395,3,FALSE)=0,"",VLOOKUP($A43,'BFR 2025'!$X$31:$AA$394,3,FALSE)) ->  | D43: Trust reserves: Line 1002 - Adjustments to reserve balances | F43: OK
A44: QU310 | B44: 310 | C44: =IF(VLOOKUP($A44,'BFR 2025'!$X$31:$AA$395,3,FALSE)=0,"",VLOOKUP($A44,'BFR 2025'!$X$31:$AA$394,3,FALSE)) ->  | D44: Trust reserves: Line 800 - Academy reserves | F44: OK
A45: QU311 | B45: =1+B44 -> 311 | C45: =IF(VLOOKUP($A45,'BFR 2025'!$X$31:$AA$395,3,FALSE)=0,"",VLOOKUP($A45,'BFR 2025'!$X$31:$AA$394,3,FALSE)) ->  | D45: Trust reserves: Line 800 - Academy reserves | F45: OK
A46: QU312 | B46: =1+B45 -> 312 | C46: =IF(VLOOKUP($A46,'BFR 2025'!$X$31:$AA$395,3,FALSE)=0,"",VLOOKUP($A46,'BFR 2025'!$X$31:$AA$394,3,FALSE)) ->  | D46: Trust reserves: Line 800 - Academy reserves | F46: OK
A47: QU313 | B47: 313 | C47: =IF(VLOOKUP($A47,'BFR 2025'!$X$31:$AA$395,3,FALSE)=0,"",VLOOKUP($A47,'BFR 2025'!$X$31:$AA$394,3,FALSE)) ->  | D47: Trust reserves: Line 800 - Academy reserves | F47: OK
A48: QU314 | B48: 314 | C48: =IF(VLOOKUP($A48,'BFR 2025'!$X$31:$AA$395,3,FALSE)=0,"",VLOOKUP($A48,'BFR 2025'!$X$31:$AA$394,3,FALSE)) ->  | D48: Trust reserves: Line 800 - Academy reserves | F48: OK
A49: QU315 | B49: 315 | C49: =IF(VLOOKUP($A49,'BFR 2025'!$X$31:$AA$395,3,FALSE)=0,"",VLOOKUP($A49,'BFR 2025'!$X$31:$AA$394,3,FALSE)) ->  | D49: Trust reserves: Line 800 - Academy reserves | F49: OK
A50: QU316 | B50: 316 | C50: =IF(VLOOKUP($A50,'BFR 2025'!$X$31:$AA$395,3,FALSE)=0,"",VLOOKUP($A50,'BFR 2025'!$X$31:$AA$394,3,FALSE)) ->  | D50: Trust reserves: Line 800 - Academy reserves | F50: =IF(C50="","OK",IF(E50="","Response Outstanding","Response Provided")) -> OK
A51: QU317 | B51: 317 | C51: =IF(VLOOKUP($A51,'BFR 2025'!$X$31:$AA$395,3,FALSE)=0,"",VLOOKUP($A51,'BFR 2025'!$X$31:$AA$394,3,FALSE)) ->  | D51: Trust reserves: Line 800 - Academy reserves | F51: OK
A52: QU318 | B52: 318 | C52: =IF(VLOOKUP($A52,'BFR 2025'!$X$31:$AA$395,3,FALSE)=0,"",VLOOKUP($A52,'BFR 2025'!$X$31:$AA$394,3,FALSE)) ->  | D52: Trust reserves: Line 800 - Academy reserves | F52: OK
A53: QU319 | B53: 319 | C53: =IF(VLOOKUP($A53,'BFR 2025'!$X$31:$AA$395,3,FALSE)=0,"",VLOOKUP($A53,'BFR 2025'!$X$31:$AA$394,3,FALSE)) ->  | D53: Trust reserves: Line 800 - Academy reserves | F53: OK
A54: QU320 | B54: 320 | C54: =IF(VLOOKUP($A54,'BFR 2025'!$X$31:$AA$395,3,FALSE)=0,"",VLOOKUP($A54,'BFR 2025'!$X$31:$AA$394,3,FALSE)) ->  | D54: Trust reserves: Line 800 - Academy reserves | F54: OK
A55: QU321 | B55: 321 | C55: =IF(VLOOKUP($A55,'BFR 2025'!$X$31:$AA$395,3,FALSE)=0,"",VLOOKUP($A55,'BFR 2025'!$X$31:$AA$394,3,FALSE)) ->  | D55: Trust reserves: Line 800 - Academy reserves | F55: OK
A56: QU322 | B56: 322 | C56: =IF(VLOOKUP($A56,'BFR 2025'!$X$31:$AA$395,3,FALSE)=0,"",VLOOKUP($A56,'BFR 2025'!$X$31:$AA$394,3,FALSE)) ->  | D56: Trust reserves: Line 800 - Academy reserves | F56: OK
A57: QU323 | B57: 323 | C57: =IF(VLOOKUP($A57,'BFR 2025'!$X$31:$AA$395,3,FALSE)=0,"",VLOOKUP($A57,'BFR 2025'!$X$31:$AA$394,3,FALSE)) ->  | D57: Trust reserves: Line 800 - Academy reserves | F57: OK
A58: QU324 | B58: 324 | C58: =IF(VLOOKUP($A58,'BFR 2025'!$X$31:$AA$395,3,FALSE)=0,"",VLOOKUP($A58,'BFR 2025'!$X$31:$AA$394,3,FALSE)) ->  | D58: Trust reserves: Line 800 - Academy reserves | F58: OK
A59: QU325 | B59: 325 | C59: =IF(VLOOKUP($A59,'BFR 2025'!$X$31:$AA$395,3,FALSE)=0,"",VLOOKUP($A59,'BFR 2025'!$X$31:$AA$394,3,FALSE)) ->  | D59: Trust reserves: Line 800 - Academy reserves | F59: OK
A60: QU326 | B60: 326 | C60: =IF(VLOOKUP($A60,'BFR 2025'!$X$31:$AA$395,3,FALSE)=0,"",VLOOKUP($A60,'BFR 2025'!$X$31:$AA$394,3,FALSE)) ->  | D60: Trust reserves: Line 800 - Academy reserves | F60: OK
A61: QU327 | B61: 327 | C61: =IF(VLOOKUP($A61,'BFR 2025'!$X$31:$AA$395,3,FALSE)=0,"",VLOOKUP($A61,'BFR 2025'!$X$31:$AA$394,3,FALSE)) ->  | D61: Trust reserves: Line 800 - Academy reserves | F61: OK
A62: QU328 | B62: 328 | C62: =IF(VLOOKUP($A62,'BFR 2025'!$X$31:$AA$395,3,FALSE)=0,"",VLOOKUP($A62,'BFR 2025'!$X$31:$AA$394,3,FALSE)) ->  | D62: Trust reserves: Line 800 - Academy reserves | F62: OK
A63: QU329 | B63: 329 | C63: =IF(VLOOKUP($A63,'BFR 2025'!$X$31:$AA$395,3,FALSE)=0,"",VLOOKUP($A63,'BFR 2025'!$X$31:$AA$394,3,FALSE)) ->  | D63: Trust reserves: Line 800 - Academy reserves | F63: OK
A64: QU330 | B64: 330 | C64: =IF(VLOOKUP($A64,'BFR 2025'!$X$31:$AA$395,3,FALSE)=0,"",VLOOKUP($A64,'BFR 2025'!$X$31:$AA$394,3,FALSE)) ->  | D64: Trust reserves: Line 800 - Academy reserves | F64: OK
A65: QU331 | B65: 331 | C65: =IF(VLOOKUP($A65,'BFR 2025'!$X$31:$AA$395,3,FALSE)=0,"",VLOOKUP($A65,'BFR 2025'!$X$31:$AA$394,3,FALSE)) ->  | D65: Trust reserves: Line 800 - Academy reserves | F65: OK
A66: QU332 | B66: 332 | C66: =IF(VLOOKUP($A66,'BFR 2025'!$X$31:$AA$395,3,FALSE)=0,"",VLOOKUP($A66,'BFR 2025'!$X$31:$AA$394,3,FALSE)) ->  | D66: Trust reserves: Line 800 - Academy reserves | F66: OK
A67: QU333 | B67: 333 | C67: =IF(VLOOKUP($A67,'BFR 2025'!$X$31:$AA$395,3,FALSE)=0,"",VLOOKUP($A67,'BFR 2025'!$X$31:$AA$394,3,FALSE)) ->  | D67: Trust reserves: Line 800 - Academy reserves | F67: OK
A68: QU334 | B68: 334 | C68: =IF(VLOOKUP($A68,'BFR 2025'!$X$31:$AA$395,3,FALSE)=0,"",VLOOKUP($A68,'BFR 2025'!$X$31:$AA$394,3,FALSE)) ->  | D68: Trust reserves: Line 800 - Academy reserves | F68: OK
A69: QU335 | B69: 335 | C69: =IF(VLOOKUP($A69,'BFR 2025'!$X$31:$AA$395,3,FALSE)=0,"",VLOOKUP($A69,'BFR 2025'!$X$31:$AA$394,3,FALSE)) ->  | D69: Trust reserves: Line 800 - Academy reserves | F69: OK
A70: QU336 | B70: 336 | C70: =IF(VLOOKUP($A70,'BFR 2025'!$X$31:$AA$395,3,FALSE)=0,"",VLOOKUP($A70,'BFR 2025'!$X$31:$AA$394,3,FALSE)) ->  | D70: Trust reserves: Line 800 - Academy reserves | F70: OK
A71: QU337 | B71: 337 | C71: =IF(VLOOKUP($A71,'BFR 2025'!$X$31:$AA$395,3,FALSE)=0,"",VLOOKUP($A71,'BFR 2025'!$X$31:$AA$394,3,FALSE)) ->  | D71: Trust reserves: Line 800 - Academy reserves | F71: OK
A72: QU338 | B72: 338 | C72: =IF(VLOOKUP($A72,'BFR 2025'!$X$31:$AA$395,3,FALSE)=0,"",VLOOKUP($A72,'BFR 2025'!$X$31:$AA$394,3,FALSE)) ->  | D72: Trust reserves: Line 800 - Academy reserves | F72: OK
A73: QU339 | B73: 339 | C73: =IF(VLOOKUP($A73,'BFR 2025'!$X$31:$AA$395,3,FALSE)=0,"",VLOOKUP($A73,'BFR 2025'!$X$31:$AA$394,3,FALSE)) ->  | D73: Trust reserves: Line 800 - Academy reserves | F73: OK
A74: QU340 | B74: 340 | C74: =IF(VLOOKUP($A74,'BFR 2025'!$X$31:$AA$395,3,FALSE)=0,"",VLOOKUP($A74,'BFR 2025'!$X$31:$AA$394,3,FALSE)) ->  | D74: Trust reserves: Line 800 - Academy reserves | F74: OK
A75: QU341 | B75: 341 | C75: =IF(VLOOKUP($A75,'BFR 2025'!$X$31:$AA$395,3,FALSE)=0,"",VLOOKUP($A75,'BFR 2025'!$X$31:$AA$394,3,FALSE)) ->  | D75: Trust reserves: Line 800 - Academy reserves | F75: OK
A76: QU342 | B76: 342 | C76: =IF(VLOOKUP($A76,'BFR 2025'!$X$31:$AA$395,3,FALSE)=0,"",VLOOKUP($A76,'BFR 2025'!$X$31:$AA$394,3,FALSE)) ->  | D76: Trust reserves: Line 800 - Academy reserves | F76: OK
A77: QU343 | B77: 343 | C77: =IF(VLOOKUP($A77,'BFR 2025'!$X$31:$AA$395,3,FALSE)=0,"",VLOOKUP($A77,'BFR 2025'!$X$31:$AA$394,3,FALSE)) ->  | D77: Trust reserves: Line 800 - Academy reserves | F77: OK
A78: QU344 | B78: 344 | C78: =IF(VLOOKUP($A78,'BFR 2025'!$X$31:$AA$395,3,FALSE)=0,"",VLOOKUP($A78,'BFR 2025'!$X$31:$AA$394,3,FALSE)) ->  | D78: Trust reserves: Line 800 - Academy reserves | F78: OK
A79: QU345 | B79: 345 | C79: =IF(VLOOKUP($A79,'BFR 2025'!$X$31:$AA$395,3,FALSE)=0,"",VLOOKUP($A79,'BFR 2025'!$X$31:$AA$394,3,FALSE)) ->  | D79: Trust reserves: Line 800 - Academy reserves | F79: OK
A80: QU346 | B80: 346 | C80: =IF(VLOOKUP($A80,'BFR 2025'!$X$31:$AA$395,3,FALSE)=0,"",VLOOKUP($A80,'BFR 2025'!$X$31:$AA$394,3,FALSE)) ->  | D80: Trust reserves: Line 800 - Academy reserves | F80: OK
A81: QU347 | B81: 347 | C81: =IF(VLOOKUP($A81,'BFR 2025'!$X$31:$AA$395,3,FALSE)=0,"",VLOOKUP($A81,'BFR 2025'!$X$31:$AA$394,3,FALSE)) ->  | D81: Trust reserves: Line 800 - Academy reserves | F81: OK
A82: QU348 | B82: 348 | C82: =IF(VLOOKUP($A82,'BFR 2025'!$X$31:$AA$395,3,FALSE)=0,"",VLOOKUP($A82,'BFR 2025'!$X$31:$AA$394,3,FALSE)) ->  | D82: Trust reserves: Line 800 - Academy reserves | F82: =IF(C82="","OK",IF(E82="","Response Outstanding","Response Provided")) -> OK
A83: QU349 | B83: 349 | C83: =IF(VLOOKUP($A83,'BFR 2025'!$X$31:$AA$395,3,FALSE)=0,"",VLOOKUP($A83,'BFR 2025'!$X$31:$AA$394,3,FALSE)) ->  | D83: Trust reserves: Line 800 - Academy reserves | F83: OK
A84: QU350 | B84: 350 | C84: =IF(VLOOKUP($A84,'BFR 2025'!$X$31:$AA$395,3,FALSE)=0,"",VLOOKUP($A84,'BFR 2025'!$X$31:$AA$394,3,FALSE)) ->  | D84: Trust reserves: Line 800 - Academy reserves | F84: OK
A85: QU351 | B85: 351 | C85: =IF(VLOOKUP($A85,'BFR 2025'!$X$31:$AA$395,3,FALSE)=0,"",VLOOKUP($A85,'BFR 2025'!$X$31:$AA$394,3,FALSE)) ->  | D85: Trust reserves: Line 800 - Academy reserves | F85: OK
A86: QU352 | B86: 352 | C86: =IF(VLOOKUP($A86,'BFR 2025'!$X$31:$AA$395,3,FALSE)=0,"",VLOOKUP($A86,'BFR 2025'!$X$31:$AA$394,3,FALSE)) ->  | D86: Trust reserves: Line 800 - Academy reserves | F86: OK
A87: QU353 | B87: 353 | C87: =IF(VLOOKUP($A87,'BFR 2025'!$X$31:$AA$395,3,FALSE)=0,"",VLOOKUP($A87,'BFR 2025'!$X$31:$AA$394,3,FALSE)) ->  | D87: Trust reserves: Line 800 - Academy reserves | F87: OK
A88: QU354 | B88: 354 | C88: =IF(VLOOKUP($A88,'BFR 2025'!$X$31:$AA$395,3,FALSE)=0,"",VLOOKUP($A88,'BFR 2025'!$X$31:$AA$394,3,FALSE)) ->  | D88: Trust reserves: Line 800 - Academy reserves | F88: OK
A89: QU355 | B89: 355 | C89: =IF(VLOOKUP($A89,'BFR 2025'!$X$31:$AA$395,3,FALSE)=0,"",VLOOKUP($A89,'BFR 2025'!$X$31:$AA$394,3,FALSE)) ->  | D89: Trust reserves: Line 800 - Academy reserves | F89: OK
A90: QU356 | B90: 356 | C90: =IF(VLOOKUP($A90,'BFR 2025'!$X$31:$AA$395,3,FALSE)=0,"",VLOOKUP($A90,'BFR 2025'!$X$31:$AA$394,3,FALSE)) ->  | D90: Trust reserves: Line 800 - Academy reserves | F90: OK
A91: QU357 | B91: 357 | C91: =IF(VLOOKUP($A91,'BFR 2025'!$X$31:$AA$395,3,FALSE)=0,"",VLOOKUP($A91,'BFR 2025'!$X$31:$AA$394,3,FALSE)) ->  | D91: Trust reserves: Line 800 - Academy reserves | F91: OK
A92: QU358 | B92: 358 | C92: =IF(VLOOKUP($A92,'BFR 2025'!$X$31:$AA$395,3,FALSE)=0,"",VLOOKUP($A92,'BFR 2025'!$X$31:$AA$394,3,FALSE)) ->  | D92: Trust reserves: Line 800 - Academy reserves | F92: OK
A93: QU359 | B93: 359 | C93: =IF(VLOOKUP($A93,'BFR 2025'!$X$31:$AA$395,3,FALSE)=0,"",VLOOKUP($A93,'BFR 2025'!$X$31:$AA$394,3,FALSE)) ->  | D93: Trust reserves: Line 800 - Academy reserves | F93: OK
A94: QU360 | B94: 360 | C94: =IF(VLOOKUP($A94,'BFR 2025'!$X$31:$AA$395,3,FALSE)=0,"",VLOOKUP($A94,'BFR 2025'!$X$31:$AA$394,3,FALSE)) ->  | D94: Trust reserves: Line 800 - Academy reserves | F94: OK
A95: QU361 | B95: 361 | C95: =IF(VLOOKUP($A95,'BFR 2025'!$X$31:$AA$395,3,FALSE)=0,"",VLOOKUP($A95,'BFR 2025'!$X$31:$AA$394,3,FALSE)) ->  | D95: Trust reserves: Line 800 - Academy reserves | F95: OK
A96: QU362 | B96: 362 | C96: =IF(VLOOKUP($A96,'BFR 2025'!$X$31:$AA$395,3,FALSE)=0,"",VLOOKUP($A96,'BFR 2025'!$X$31:$AA$394,3,FALSE)) ->  | D96: Trust reserves: Line 800 - Academy reserves | F96: OK
A97: QU363 | B97: 363 | C97: =IF(VLOOKUP($A97,'BFR 2025'!$X$31:$AA$395,3,FALSE)=0,"",VLOOKUP($A97,'BFR 2025'!$X$31:$AA$394,3,FALSE)) ->  | D97: Trust reserves: Line 800 - Academy reserves | F97: OK
A98: QU364 | B98: 364 | C98: =IF(VLOOKUP($A98,'BFR 2025'!$X$31:$AA$395,3,FALSE)=0,"",VLOOKUP($A98,'BFR 2025'!$X$31:$AA$394,3,FALSE)) ->  | D98: Trust reserves: Line 800 - Academy reserves | F98: OK
A99: QU365 | B99: 365 | C99: =IF(VLOOKUP($A99,'BFR 2025'!$X$31:$AA$395,3,FALSE)=0,"",VLOOKUP($A99,'BFR 2025'!$X$31:$AA$394,3,FALSE)) ->  | D99: Trust reserves: Line 800 - Academy reserves | F99: OK
A100: QU366 | B100: 366 | C100: =IF(VLOOKUP($A100,'BFR 2025'!$X$31:$AA$395,3,FALSE)=0,"",VLOOKUP($A100,'BFR 2025'!$X$31:$AA$394,3,FALSE)) ->  | D100: Trust reserves: Line 800 - Academy reserves | F100: OK
A101: QU367 | B101: 367 | C101: =IF(VLOOKUP($A101,'BFR 2025'!$X$31:$AA$395,3,FALSE)=0,"",VLOOKUP($A101,'BFR 2025'!$X$31:$AA$394,3,FALSE)) ->  | D101: Trust reserves: Line 800 - Academy reserves | F101: OK
A102: QU368 | B102: 368 | C102: =IF(VLOOKUP($A102,'BFR 2025'!$X$31:$AA$395,3,FALSE)=0,"",VLOOKUP($A102,'BFR 2025'!$X$31:$AA$394,3,FALSE)) ->  | D102: Trust reserves: Line 800 - Academy reserves | F102: OK
A103: QU369 | B103: 369 | C103: =IF(VLOOKUP($A103,'BFR 2025'!$X$31:$AA$395,3,FALSE)=0,"",VLOOKUP($A103,'BFR 2025'!$X$31:$AA$394,3,FALSE)) ->  | D103: Trust reserves: Line 800 - Academy reserves | F103: OK
A104: QU370 | B104: 370 | C104: =IF(VLOOKUP($A104,'BFR 2025'!$X$31:$AA$395,3,FALSE)=0,"",VLOOKUP($A104,'BFR 2025'!$X$31:$AA$394,3,FALSE)) ->  | D104: Trust reserves: Line 800 - Academy reserves | F104: OK
A105: QU371 | B105: 371 | C105: =IF(VLOOKUP($A105,'BFR 2025'!$X$31:$AA$395,3,FALSE)=0,"",VLOOKUP($A105,'BFR 2025'!$X$31:$AA$394,3,FALSE)) ->  | D105: Trust reserves: Line 800 - Academy reserves | F105: OK
A106: QU372 | B106: 372 | C106: =IF(VLOOKUP($A106,'BFR 2025'!$X$31:$AA$395,3,FALSE)=0,"",VLOOKUP($A106,'BFR 2025'!$X$31:$AA$394,3,FALSE)) ->  | D106: Trust reserves: Line 800 - Academy reserves | F106: OK
A107: QU373 | B107: 373 | C107: =IF(VLOOKUP($A107,'BFR 2025'!$X$31:$AA$395,3,FALSE)=0,"",VLOOKUP($A107,'BFR 2025'!$X$31:$AA$394,3,FALSE)) ->  | D107: Trust reserves: Line 800 - Academy reserves | F107: OK
A108: QU374 | B108: 374 | C108: =IF(VLOOKUP($A108,'BFR 2025'!$X$31:$AA$395,3,FALSE)=0,"",VLOOKUP($A108,'BFR 2025'!$X$31:$AA$394,3,FALSE)) ->  | D108: Trust reserves: Line 800 - Academy reserves | F108: OK
A109: QU375 | B109: 375 | C109: =IF(VLOOKUP($A109,'BFR 2025'!$X$31:$AA$395,3,FALSE)=0,"",VLOOKUP($A109,'BFR 2025'!$X$31:$AA$394,3,FALSE)) ->  | D109: Trust reserves: Line 800 - Academy reserves | F109: OK
A110: QU376 | B110: =1+B109 -> 376 | C110: =IF(VLOOKUP($A110,'BFR 2025'!$X$31:$AA$395,3,FALSE)=0,"",VLOOKUP($A110,'BFR 2025'!$X$31:$AA$394,3,FALSE)) ->  | D110: Trust reserves: Line 800 - Academy reserves | F110: OK
A111: QU377 | B111: 377 | C111: =IF(VLOOKUP($A111,'BFR 2025'!$X$31:$AA$395,3,FALSE)=0,"",VLOOKUP($A111,'BFR 2025'!$X$31:$AA$394,3,FALSE)) ->  | D111: Trust reserves: Line 800 - Academy reserves | F111: OK
A112: QU378 | B112: 378 | C112: =IF(VLOOKUP($A112,'BFR 2025'!$X$31:$AA$395,3,FALSE)=0,"",VLOOKUP($A112,'BFR 2025'!$X$31:$AA$394,3,FALSE)) ->  | D112: Trust reserves: Line 800 - Academy reserves | F112: OK
A113: QU379 | B113: 379 | C113: =IF(VLOOKUP($A113,'BFR 2025'!$X$31:$AA$395,3,FALSE)=0,"",VLOOKUP($A113,'BFR 2025'!$X$31:$AA$394,3,FALSE)) ->  | D113: Trust reserves: Line 800 - Academy reserves | F113: OK
A114: QU380 | B114: 380 | C114: =IF(VLOOKUP($A114,'BFR 2025'!$X$31:$AA$395,3,FALSE)=0,"",VLOOKUP($A114,'BFR 2025'!$X$31:$AA$394,3,FALSE)) ->  | D114: Trust reserves: Line 800 - Academy reserves | F114: =IF(C114="","OK",IF(E114="","Response Outstanding","Response Provided")) -> OK
A115: QU381 | B115: 381 | C115: =IF(VLOOKUP($A115,'BFR 2025'!$X$31:$AA$395,3,FALSE)=0,"",VLOOKUP($A115,'BFR 2025'!$X$31:$AA$394,3,FALSE)) ->  | D115: Trust reserves: Line 800 - Academy reserves | F115: OK
A116: QU382 | B116: 382 | C116: =IF(VLOOKUP($A116,'BFR 2025'!$X$31:$AA$395,3,FALSE)=0,"",VLOOKUP($A116,'BFR 2025'!$X$31:$AA$394,3,FALSE)) ->  | D116: Trust reserves: Line 800 - Academy reserves | F116: OK
A117: QU383 | B117: 383 | C117: =IF(VLOOKUP($A117,'BFR 2025'!$X$31:$AA$395,3,FALSE)=0,"",VLOOKUP($A117,'BFR 2025'!$X$31:$AA$394,3,FALSE)) ->  | D117: Trust reserves: Line 800 - Academy reserves | F117: OK
A118: QU384 | B118: 384 | C118: =IF(VLOOKUP($A118,'BFR 2025'!$X$31:$AA$395,3,FALSE)=0,"",VLOOKUP($A118,'BFR 2025'!$X$31:$AA$394,3,FALSE)) ->  | D118: Trust reserves: Line 800 - Academy reserves | F118: OK
A119: QU385 | B119: 385 | C119: =IF(VLOOKUP($A119,'BFR 2025'!$X$31:$AA$395,3,FALSE)=0,"",VLOOKUP($A119,'BFR 2025'!$X$31:$AA$394,3,FALSE)) ->  | D119: Trust reserves: Line 800 - Academy reserves | F119: OK
A120: QU386 | B120: 386 | C120: =IF(VLOOKUP($A120,'BFR 2025'!$X$31:$AA$395,3,FALSE)=0,"",VLOOKUP($A120,'BFR 2025'!$X$31:$AA$394,3,FALSE)) ->  | D120: Trust reserves: Line 800 - Academy reserves | F120: OK
A121: QU387 | B121: 387 | C121: =IF(VLOOKUP($A121,'BFR 2025'!$X$31:$AA$395,3,FALSE)=0,"",VLOOKUP($A121,'BFR 2025'!$X$31:$AA$394,3,FALSE)) ->  | D121: Trust reserves: Line 800 - Academy reserves | F121: OK
A122: QU388 | B122: 388 | C122: =IF(VLOOKUP($A122,'BFR 2025'!$X$31:$AA$395,3,FALSE)=0,"",VLOOKUP($A122,'BFR 2025'!$X$31:$AA$394,3,FALSE)) ->  | D122: Trust reserves: Line 800 - Academy reserves | F122: OK
A123: QU389 | B123: 389 | C123: =IF(VLOOKUP($A123,'BFR 2025'!$X$31:$AA$395,3,FALSE)=0,"",VLOOKUP($A123,'BFR 2025'!$X$31:$AA$394,3,FALSE)) ->  | D123: Trust reserves: Line 800 - Academy reserves | F123: OK
A124: QU390 | B124: 390 | C124: =IF(VLOOKUP($A124,'BFR 2025'!$X$31:$AA$395,3,FALSE)=0,"",VLOOKUP($A124,'BFR 2025'!$X$31:$AA$394,3,FALSE)) ->  | D124: Trust reserves: Line 800 - Academy reserves | F124: OK
A125: QU391 | B125: 391 | C125: =IF(VLOOKUP($A125,'BFR 2025'!$X$31:$AA$395,3,FALSE)=0,"",VLOOKUP($A125,'BFR 2025'!$X$31:$AA$394,3,FALSE)) ->  | D125: Trust reserves: Line 800 - Academy reserves | F125: OK
A126: QU392 | B126: 392 | C126: =IF(VLOOKUP($A126,'BFR 2025'!$X$31:$AA$395,3,FALSE)=0,"",VLOOKUP($A126,'BFR 2025'!$X$31:$AA$394,3,FALSE)) ->  | D126: Trust reserves: Line 800 - Academy reserves | F126: OK
A127: QU393 | B127: 393 | C127: =IF(VLOOKUP($A127,'BFR 2025'!$X$31:$AA$395,3,FALSE)=0,"",VLOOKUP($A127,'BFR 2025'!$X$31:$AA$394,3,FALSE)) ->  | D127: Trust reserves: Line 800 - Academy reserves | F127: OK
A128: QU394 | B128: 394 | C128: =IF(VLOOKUP($A128,'BFR 2025'!$X$31:$AA$395,3,FALSE)=0,"",VLOOKUP($A128,'BFR 2025'!$X$31:$AA$394,3,FALSE)) ->  | D128: Trust reserves: Line 800 - Academy reserves | F128: OK
A129: QU395 | B129: 395 | C129: =IF(VLOOKUP($A129,'BFR 2025'!$X$31:$AA$395,3,FALSE)=0,"",VLOOKUP($A129,'BFR 2025'!$X$31:$AA$394,3,FALSE)) ->  | D129: Trust reserves: Line 800 - Academy reserves | F129: OK
A130: QU396 | B130: 396 | C130: =IF(VLOOKUP($A130,'BFR 2025'!$X$31:$AA$395,3,FALSE)=0,"",VLOOKUP($A130,'BFR 2025'!$X$31:$AA$394,3,FALSE)) ->  | D130: Trust reserves: Line 800 - Academy reserves | F130: OK
A131: QU397 | B131: 397 | C131: =IF(VLOOKUP($A131,'BFR 2025'!$X$31:$AA$395,3,FALSE)=0,"",VLOOKUP($A131,'BFR 2025'!$X$31:$AA$394,3,FALSE)) ->  | D131: Trust reserves: Line 800 - Academy reserves | F131: OK
A132: QU398 | B132: 398 | C132: =IF(VLOOKUP($A132,'BFR 2025'!$X$31:$AA$395,3,FALSE)=0,"",VLOOKUP($A132,'BFR 2025'!$X$31:$AA$394,3,FALSE)) ->  | D132: Trust reserves: Line 800 - Academy reserves | F132: OK
A133: QU399 | B133: 399 | C133: =IF(VLOOKUP($A133,'BFR 2025'!$X$31:$AA$395,3,FALSE)=0,"",VLOOKUP($A133,'BFR 2025'!$X$31:$AA$394,3,FALSE)) ->  | D133: Trust reserves: Line 800 - Academy reserves | F133: OK
A134: QU2980 | B134: 2980 | C134: =IF(VLOOKUP($A134,'BFR 2025'!$X$31:$AA$395,3,FALSE)=0,"",VLOOKUP($A134,'BFR 2025'!$X$31:$AA$394,3,FALSE)) -> Provide a brief summary of your assumptions regarding income. | D134: 3 year forecast: Line 2980 - subtotal income | F134: Response Outstanding
A135: QU2980a | B135: 2980a | C135: =IF(VLOOKUP($A135,'BFR 2025'!$X$31:$AA$395,3,FALSE)=0,"",VLOOKUP($A135,'BFR 2025'!$X$31:$AA$394,3,FALSE)) -> Explain why one or more of the forecast years is zero. | D135: 3 year forecast: Line 2980 - subtotal income at zero | F135: Response Outstanding
A136: QU3800 | B136: 3800 | C136: =IF(VLOOKUP($A136,'BFR 2025'!$X$31:$AA$395,3,FALSE)=0,"",VLOOKUP($A136,'BFR 2025'!$X$31:$AA$394,3,FALSE)) -> Provide a brief summary of your assumptions regarding expenditure. | D136: 3 year forecast: Line 3800- subtotal costs | F136: Response Outstanding
A137: QU3800a | B137: 3800a | C137: =IF(VLOOKUP($A137,'BFR 2025'!$X$31:$AA$395,3,FALSE)=0,"",VLOOKUP($A137,'BFR 2025'!$X$31:$AA$394,3,FALSE)) -> Explain why one or more of the forecast years is zero. | D137: 3 year forecast: Line 3800- subtotal costs at zero | F137: Response Outstanding
A138: QU6600 | B138: 6600 | C138: =IF(VLOOKUP($A138,'BFR 2025'!$X$31:$AA$395,3,FALSE)=0,"",VLOOKUP($A138,'BFR 2025'!$X$31:$AA$394,3,FALSE)) ->  | D138: 3 year forecast: Line 6600 - Capital Net | F138: =IF(C138="","OK",IF(E138="","Response Outstanding","Response Provided")) -> OK
A139: QU7200 | B139: 7200 | C139: =IF(VLOOKUP($A139,'BFR 2025'!$X$31:$AA$395,3,FALSE)=0,"",VLOOKUP($A139,'BFR 2025'!$X$31:$AA$394,3,FALSE)) ->  | D139: 3 year forecast: Line 7200 - Depreciation | F139: OK
A140: QU7100 | B140: 7100 | C140: =IF(VLOOKUP($A140,'BFR 2025'!$X$31:$AA$395,3,FALSE)=0,"",VLOOKUP($A140,'BFR 2025'!$X$31:$AA$394,3,FALSE)) ->  | D140: 3 year forecast: Line 7100 - Any other non cash costs | F140: OK
A141: QU7000 | B141: 7000 | C141: =IF(VLOOKUP($A141,'BFR 2025'!$X$31:$AA$395,3,FALSE)=0,"",VLOOKUP($A141,'BFR 2025'!$X$31:$AA$394,3,FALSE)) ->  | D141: 3 year forecast: Line 7000 - Cash | F141: OK
A142: QU4300 | B142: 4300 | C142: =IF(VLOOKUP($A142,'BFR 2025'!$X$31:$AA$395,3,FALSE)=0,"",VLOOKUP($A142,'BFR 2025'!$X$31:$AA$394,3,FALSE)) ->  | D142: 3 year forecast: Line 4300 - Revenue Reserve balance c/f 31 Aug 2026/2027/2028 | F142: OK
A143: QU8000 | B143: 8000 | C143: =IF(VLOOKUP($A143,'BFR 2025'!$X$31:$AA$395,3,FALSE)=0,"",VLOOKUP($A143,'BFR 2025'!$X$31:$AA$394,3,FALSE)) ->  | D143: 3 year forecast: Line 8000 - Trust reserves balances at 31 Aug 2026/2027/2028 | F143: OK
A144: QU8001 | B144: 8001 | C144: =IF(VLOOKUP($A144,'BFR 2025'!$X$31:$AA$395,3,FALSE)=0,"",VLOOKUP($A144,'BFR 2025'!$X$31:$AA$394,3,FALSE)) ->  | D144: 3 year forecast: Line 8001 - Reported as | F144: OK
A145: QU9000 | B145: 9000 | C145: =IF(VLOOKUP($A145,'BFR 2025'!$X$31:$AA$395,3,FALSE)=0,"",VLOOKUP($A145,'BFR 2025'!$X$31:$AA$394,3,FALSE)) ->  | D145: 3 year forecast: Line 9000 - Pupil numbers | F145: OK
